Service Area,Service Division,Expense Type,Expense Code,Detailed Expense Type,Payment Date,Transaction Number,Amount Exc VAT,Supplier Name
"Regeneration, Economy and Growth",Business Durham CL0850,Premises,120021,Energy Costs,02/11/2020,3798361-108002913554,"2,185.50",NPOWER.
Resources - C A C,Centrally Administered costs 069006,Supplies and Services,338013,Services,02/11/2020,3798355-1753887,"48,257.00",MAZARS LLP.
"Regeneration, Economy and Growth",Corporate Property and Land,Third Party Payments,430100,Rendered by Private Contractors,02/11/2020,3798359-29836,"1,943.10",NE & C WINDOWS & DOORS LTD.
"Regeneration, Economy and Growth",Corporate Property and Land,Third Party Payments,430100,Rendered by Private Contractors,02/11/2020,3798359-29818,"45,000.00",NE & C WINDOWS & DOORS LTD.
"Regeneration, Economy and Growth",Corporate Property and Land,Third Party Payments,430100,Rendered by Private Contractors,02/11/2020,3798320-6746,800.00,BELL CONTROL SOLUTIONS LTD.
"Regeneration, Economy and Growth",Corporate Property and Land,Supplies and Services,304221,Equipment and Materials,02/11/2020,3798332-059-270867,"1,154.40",EDMUNDSON ELECTRICAL LTD.
Resources BK0010,Digital and Customer Services,Supplies and Services,342051,Computers and Communications,02/11/2020,3798336-HEX67000705728,"4,083.91",EXPERIAN LTD.
Resources BK0010,Digital and Customer Services,Supplies and Services,342033,Computers and Communications,02/11/2020,3798327-29835,"13,500.88",CRISTIE DATA LTD.
Dedicated Schools Grant BG0015,DSG High Needs Block,Third Party Payments,425005,Rendered by Voluntary Organisations,02/11/2020,3798349-0000005210,"2,786.00",KEYS GROUP T/A ALLIANCE CARE AND EDUCATION LTD.
Dedicated Schools Grant BG0015,DSG High Needs Block,Supplies and Services,304259,Equipment and Materials,02/11/2020,3798375-6629,"1,070.00",SHAPE ADAPTATIONS LTD.
Neighbourhoods and Climate Change,Environmental Services,Supplies and Services,304221,Equipment and Materials,02/11/2020,3798381-SI-2618284,614.50,SPALDINGS (UK) LTD.
Neighbourhoods and Climate Change,Environmental Services,Supplies and Services,304221,Equipment and Materials,02/11/2020,3798334-6876161,"3,425.00",ESE WORLD LTD.
Neighbourhoods and Climate Change,Environmental Services,Supplies and Services,328041,Clothing uniforms and laundry E328,02/11/2020,3798390-NSIN00044055,638.70,THOMAS OWEN & SONS (NEWCASTLE) LTD.
Neighbourhoods and Climate Change,Environmental Services,Supplies and Services,304999,Equipment and Materials,02/11/2020,3798350-SI02-0291044,731.10,KILLGERM CHEMICALS LTD.
Neighbourhoods and Climate Change,Environmental Services,Supplies and Services,338027,Services,02/11/2020,3798380-0000847256,"1,249.90",SOCOTEC UK LTD.
Adult and Health Services,Head of Adults,Supplies and Services,384616,Miscellaneous Expenses,02/11/2020,3798316-AHS06081,"2,202.71",AUCKLAND HOME SOLUTIONS CIC.
Adult and Health Services,Head of Adults,Supplies and Services,384616,Miscellaneous Expenses,02/11/2020,3798316-AHS06588,912.92,AUCKLAND HOME SOLUTIONS CIC.
Adult and Health Services,Head of Adults,Supplies and Services,384616,Miscellaneous Expenses,02/11/2020,3798316-AHS07020,814.76,AUCKLAND HOME SOLUTIONS CIC.
Adult and Health Services,Head of Adults,Supplies and Services,384616,Miscellaneous Expenses,02/11/2020,3798316-AHS07873,"1,629.52",AUCKLAND HOME SOLUTIONS CIC.
Children and Young Peoples Services,Head of Early Help Inclusion & Vulnerable Children.,Supplies and Services,304259,Equipment and Materials,02/11/2020,3798386-INV-7530,507.00,TALKING MATS LTD.
Children and Young Peoples Services,Head of Education and Skills,Construction work A908,908105,Construction work,02/11/2020,3798366-900900572,"22,847.75",PORTAKABIN LTD.
Children and Young Peoples Services,Head of Education and Skills,Supplies and Services,338027,Services,02/11/2020,3798397-1362,"1,990.00",WAVEHILL SOCIAL & ECONOMIC RESEARCH.
Neighbourhoods and Climate Change,Technical Services CM0300,Stock A926,926900,Stock in hand-Inventory system,02/11/2020,3798364-XL261495,655.49,PARK ELECTRICAL DISTRIBUTORS LTD.
Neighbourhoods and Climate Change,Technical Services CM0300,Supplies and Services,304221,Equipment and Materials,02/11/2020,3798337-134493,"5,266.08",FABRIKAT (NOTTINGHAM) LTD.
Neighbourhoods and Climate Change,Technical Services CM0300,Supplies and Services,304221,Equipment and Materials,02/11/2020,3798379-083204,"2,475.23",SIMMONSIGNS LTD.
Neighbourhoods and Climate Change,Technical Services CM0300,Supplies and Services,304221,Equipment and Materials,02/11/2020,3798348-0113/00206959,522.82,JT DOVE LTD.
Neighbourhoods and Climate Change,Technical Services CM0300,Supplies and Services,304221,Equipment and Materials,02/11/2020,3798348-0303/00181006,997.96,JT DOVE LTD.
Neighbourhoods and Climate Change,Technical Services CM0300,Supplies and Services,304221,Equipment and Materials,02/11/2020,3798352-CINV-080846,"1,077.21",LIMELIGHT SIGNS LTD.
Neighbourhoods and Climate Change,Technical Services CM0300,Third Party Payments,430100,Rendered by Private Contractors,02/11/2020,3798369-2858/201039,"22,485.40",RAINTON CONSTRUCTION LTD.
Neighbourhoods and Climate Change,Technical Services CM0300,Third Party Payments,430100,Rendered by Private Contractors,02/11/2020,3798369-2858/201040,"12,793.76",RAINTON CONSTRUCTION LTD.
Neighbourhoods and Climate Change,Technical Services CM0300,Third Party Payments,430100,Rendered by Private Contractors,02/11/2020,3798369-2858/201041,"68,481.62",RAINTON CONSTRUCTION LTD.
Neighbourhoods and Climate Change,Technical Services CM0300,Third Party Payments,430100,Rendered by Private Contractors,02/11/2020,3798369-2858/201042,"15,206.94",RAINTON CONSTRUCTION LTD.
Neighbourhoods and Climate Change,Technical Services CM0300,Third Party Payments,430100,Rendered by Private Contractors,02/11/2020,3798369-2858/201043,"45,277.23",RAINTON CONSTRUCTION LTD.
Neighbourhoods and Climate Change,Technical Services CM0300,Supplies and Services,304221,Equipment and Materials,02/11/2020,3798378-714560162139,"2,213.50",SIG TRADING LTD.
"Regeneration, Economy and Growth",Transport and Contracted Services,Third Party Payments,430109,Rendered by Private Contractors,02/11/2020,3798358-0000093771,511.19,NAL LTD.
Adult and Health Services,Central/Other,Transport,230005,Contract Hire,03/11/2020,3799186-1850,"1,636.36",LD TAXIS.
Children and Young Peoples Services,Childrens Services Operational Support,Intangible Assets,917001,Software capitalised licence fees,03/11/2020,3799191-027215,"6,700.00",LIQUIDLOGIC LTD.
Adult and Health Services,Commissioning inc Supporting People,Third Party Payments,442002,Supporting People E442,03/11/2020,3799153-1101018622,"71,516.00",HOME GROUP LTD.
Adult and Health Services,Commissioning inc Supporting People,Supplies and Services,377015,County Durham Development,03/11/2020,3799120-419,"1,012.50",DURHAM COUNTY CARERS SUPPORT.
Adult and Health Services,Commissioning inc Supporting People,Supplies and Services,338066,Services,03/11/2020,3799303-1034,"2,000.00",TRUSTEES OF ST MARY`S CONVENT.
"Regeneration, Economy and Growth",Corporate Property and Land,Fees,901002,Consultants fees 901002,03/11/2020,3799133-131148/09,"10,500.00",FAIRHURST (CONSULTING ENGINEERS).
"Regeneration, Economy and Growth",Corporate Property and Land,Third Party Payments,430100,Rendered by Private Contractors,03/11/2020,3799078-4100700397,"1,755.00",BRIAN YOUNGER T/A B & E YOUNGER FLOORING.
"Regeneration, Economy and Growth",Corporate Property and Land,Third Party Payments,430100,Rendered by Private Contractors,03/11/2020,3799229-2436,"3,572.50",PARAMOUNT CEILINGS & PARTITIONS.
"Regeneration, Economy and Growth",Corporate Property and Land,Third Party Payments,430100,Rendered by Private Contractors,03/11/2020,3799158-9645,"3,120.00",INGLEFORD SCAFFOLDING LTD.
"Regeneration, Economy and Growth",Corporate Property and Land,Supplies and Services,304221,Equipment and Materials,03/11/2020,3799263-10346718,"1,545.00",SIG TRADING LTD T/A CARPET & FLOORING LTD.*
"Regeneration, Economy and Growth",Corporate Property and Land,Third Party Payments,430100,Rendered by Private Contractors,03/11/2020,3799164-45525,"1,623.00",JBL SERVICES LTD.
"Regeneration, Economy and Growth",Corporate Property and Land,Third Party Payments,430100,Rendered by Private Contractors,03/11/2020,3799164-45527,582.00,JBL SERVICES LTD.
"Regeneration, Economy and Growth",Corporate Property and Land,Supplies and Services,304221,Equipment and Materials,03/11/2020,3799083-140002997,"5,843.54",CARLISLE CONSTRUCTION MATERIALS LTD.
"Regeneration, Economy and Growth",Culture Sport and Tourism,Supplies and Services,304259,Equipment and Materials,03/11/2020,3799189-88297,"2,600.00",LEISURETEQ.
"Regeneration, Economy and Growth",Culture Sport and Tourism,Premises,145023,Cleaning and Domestic Supplies,03/11/2020,3799145-06/094072,884.52,GREENHAM TRADING LTD.
"Regeneration, Economy and Growth",Culture Sport and Tourism,Construction work A908,908105,Construction work,03/11/2020,3799119-10966,725.00,DUNELM GEOTECHNICAL & ENVIRONMENTAL LTD.
"Regeneration, Economy and Growth",Culture Sport and Tourism,Third Party Payments,430131,Rendered by Private Contractors,03/11/2020,3799292-TT/2010,600.00,TERESA DONNELLAN T/A T TRAINING.
"Regeneration, Economy and Growth",Culture Sport and Tourism,Supplies and Services,304259,Equipment and Materials,03/11/2020,3799272-00375820,"2,563.06",STAGE ELECTRICS PARTNERSHIP LTD.
"Regeneration, Economy and Growth",Culture Sport and Tourism,Supplies and Services,304259,Equipment and Materials,03/11/2020,3799272-00375823,775.20,STAGE ELECTRICS PARTNERSHIP LTD.
"Regeneration, Economy and Growth",Culture Sport and Tourism,Premises,106083,Centrally Controlled Rep and Maint,03/11/2020,3799269-SI-20210156,"1,000.00",SPORTS MAINTENANCE SERVICES LTD.
"Regeneration, Economy and Growth",Culture Sport and Tourism,Supplies and Services,384199,Miscellaneous Expenses,03/11/2020,3799144-INV20210044,"9,800.00",GLOBAL TOURISM SOLUTIONS (UK) LTD.
"Regeneration, Economy and Growth",Culture Sport and Tourism,Supplies and Services,384199,Miscellaneous Expenses,03/11/2020,3799142-228,"1,975.00",REDACTED - PAYMENT TO INDIVIDUAL
"Regeneration, Economy and Growth",Development and Housing,Supplies and Services,384700,Miscellaneous Expenses,03/11/2020,3799096-RED-10-2020-209,500.00,COFFEE @ CHESNEY`S.
"Regeneration, Economy and Growth",Development and Housing,Cap Exp on Grants & Other Financial Assistance (REFCUS),918501,Exp assets not owned by authority,03/11/2020,3799192-261020,"1,200.00",LUCIE BROWNLEE (CREATIVE WRITER).
Resources BK0010,Digital and Customer Services,Supplies and Services,342033,Computers and Communications,03/11/2020,3799287-134645,"4,375.50",SWITCHSHOP LTD.
Resources BK0010,Digital and Customer Services,Supplies and Services,304252,Equipment and Materials,03/11/2020,3799046-181,748.66,ADAM BURGESS-HALL T/A RED ENGINEERING.
Resources BK0010,Digital and Customer Services,Supplies and Services,332029,Printing Stationery and Gen Off Exps,03/11/2020,3799274-135402,965.00,STATEX PRESS NORTHERN LTD.
Resources BK0010,Digital and Customer Services,Supplies and Services,344015,Telephones,03/11/2020,3799305-0054524,"1,098.00",VODAFONE LTD.
Dedicated Schools Grant BG0015,DSG High Needs Block,Supplies and Services,384302,Miscellaneous Expenses,03/11/2020,3799125-FBSI159,"5,000.00",EDEN LEARNING TRUST T/A FERRYHILL BUSINESS & ENTERPRISE COLLEGE.
Dedicated Schools Grant BG0015,DSG High Needs Block,Transport,230009,Contract Hire,03/11/2020,3799273-05217,"1,371.00",STANLEY TRAVEL (NORTH EAST) LTD.
Dedicated Schools Grant BG0015,DSG High Needs Block,Supplies and Services,342053,Computers and Communications,03/11/2020,3799135-INV-1995-11291,500.00,FLASH ACADEMY.
Neighbourhoods and Climate Change,Environmental Services,Supplies and Services,304221,Equipment and Materials,03/11/2020,3799123-0000056726,"1,416.00",EAST RIDING HORTICULTURE LTD.
Neighbourhoods and Climate Change,Environmental Services,Third Party Payments,430100,Rendered by Private Contractors,03/11/2020,3799053-77R/20/92108,"1,245.00",ALAN M RANSON FUNERAL SERVICE.
Neighbourhoods and Climate Change,Environmental Services,Supplies and Services,304221,Equipment and Materials,03/11/2020,3799147-149521,811.00,GUSTHARTS LTD.
Neighbourhoods and Climate Change,Environmental Services,Transport,210057,Repair and Maintenance of Vehicles,03/11/2020,3799113-DE11354529,633.02,DENNIS EAGLE LTD.
Neighbourhoods and Climate Change,Environmental Services,Transport,210057,Repair and Maintenance of Vehicles,03/11/2020,3799113-DE11355249,512.64,DENNIS EAGLE LTD.
Neighbourhoods and Climate Change,Environmental Services,Transport,210057,Repair and Maintenance of Vehicles,03/11/2020,3799217-78410,691.22,NORPLAST LTD.
Neighbourhoods and Climate Change,Environmental Services,Transport,210057,Repair and Maintenance of Vehicles,03/11/2020,3799217-78411,"1,580.00",NORPLAST LTD.
Neighbourhoods and Climate Change,Environmental Services,Supplies and Services,384194,Miscellaneous Expenses,03/11/2020,3799257-5871,731.16,SAFE STRIP UK LTD.
Neighbourhoods and Climate Change,Environmental Services,Supplies and Services,384194,Miscellaneous Expenses,03/11/2020,3799257-5873,530.16,SAFE STRIP UK LTD.
Neighbourhoods and Climate Change,Environmental Services,Supplies and Services,384194,Miscellaneous Expenses,03/11/2020,3799257-5875,570.16,SAFE STRIP UK LTD.
Neighbourhoods and Climate Change,Environmental Services,Supplies and Services,384194,Miscellaneous Expenses,03/11/2020,3799257-5879,578.16,SAFE STRIP UK LTD.
Adult and Health Services,Head of Adults,Supplies and Services,338365,Services,03/11/2020,3799068-DHP088,"22,493.95",BERNICIA GROUP LTD.*
Adult and Health Services,Head of Adults,Supplies and Services,384616,Miscellaneous Expenses,03/11/2020,3799178-C9STAG/2020/OCT,533.15,KARBON HOMES LTD FORMERLY CESTRIA HOUSING ASSOCIATION LTD.
Adult and Health Services,Head of Adults,Third Party Payments,474101,Purchase of Care,03/11/2020,3799074-RESNURSADDITIONAL7/3,566.00,BONDCARE WILLINGTON LTD.
Adult and Health Services,Head of Adults,Third Party Payments,471101,Purchase of Care,03/11/2020,3799196-RESNURSADDITIONAL7/6,"9,843.00",MARIPOSA CARE LTD.
Adult and Health Services,Head of Adults,Third Party Payments,474101,Purchase of Care,03/11/2020,3799233-RESNURSADDITIONAL7/4,"11,575.20",PERFECT CARE LTD.
Adult and Health Services,Head of Adults,Third Party Payments,470101,Purchase of Care,03/11/2020,3799282-RESNURSADDITIONAL7/9,"5,346.00",SUNNY OKUKPOLOR HUMPHREYS.
Children and Young Peoples Services,Head of Childrens Social Care,Third Party Payments,425021,Rendered by Voluntary Organisations,03/11/2020,3799179-200172-W1SU,"16,752.78",KEDLESTON GROUP LTD.
Children and Young Peoples Services,Head of Childrens Social Care,Third Party Payments,425021,Rendered by Voluntary Organisations,03/11/2020,3799179-200237-W1AU,"61,596.08",KEDLESTON GROUP LTD.
Children and Young Peoples Services,Head of Childrens Social Care,Third Party Payments,425021,Rendered by Voluntary Organisations,03/11/2020,3799313-06555,"15,953.93",YOUNG FOUNDATIONS LTD.
Children and Young Peoples Services,Head of Childrens Social Care,Supplies and Services,372009,Subscriptions E372,03/11/2020,3799213-SI-526,"10,050.00",NATP LTD (NATIONAL ASSOCIATION OF THERAPEUTIC PARENTS).
Children and Young Peoples Services,Head of Childrens Social Care,Transport,230005,Contract Hire,03/11/2020,3799278-OCT4/STL,"1,060.00",STL CABS.
Children and Young Peoples Services,Head of Childrens Social Care,Supplies and Services,338043,Services,03/11/2020,3799100-3061-20/1389,500.00,COOPER STOTT SOLICITORS.
Children and Young Peoples Services,Head of Childrens Social Care,Supplies and Services,338045,Services,03/11/2020,3799134-INV-19312,"3,276.00",FL 360 LTD T/A FORESIGHT CLINICAL SERVICES LTD.
Children and Young Peoples Services,Head of Childrens Social Care,Third Party Payments,440062,Other third party payments E440,03/11/2020,3799260-3,"8,733.63",SECOND TO NONE CARE LTD.
Children and Young Peoples Services,Head of Childrens Social Care,Supplies and Services,384199,Miscellaneous Expenses,03/11/2020,3799115-LAC/LAC/HUTTON/66225/2,"1,230.00",DMA LAW LTD.
Children and Young Peoples Services,Head of Childrens Social Care,Transport,230005,Contract Hire,03/11/2020,3799093-CLUB2043B,592.00,CLUBMAN CABS.
Children and Young Peoples Services,Head of Early Help Inclusion & Vulnerable Children.,Supplies and Services,308011,Furniture,03/11/2020,3799054-169944,636.00,ALBANY OFFICE EQUIPMENT (WHOLESALE) LTD.
Children and Young Peoples Services,Head of Early Help Inclusion & Vulnerable Children.,Supplies and Services,304259,Equipment and Materials,03/11/2020,3799232-2927196,"1,591.65",PEARSON EDUCATION LTD.
Children and Young Peoples Services,Head of Early Help Inclusion & Vulnerable Children.,Premises,145009,Cleaning and Domestic Supplies,03/11/2020,3799157-5084,975.00,INDUSTRIAL DEEP CLEANING LTD.
Children and Young Peoples Services,Head of Early Help Inclusion & Vulnerable Children.,Supplies and Services,304259,Equipment and Materials,03/11/2020,3799059-307336,896.99,APEX RADIO SYSTEMS LTD.
Children and Young Peoples Services,Head of Early Help Inclusion & Vulnerable Children.,Supplies and Services,384199,Miscellaneous Expenses,03/11/2020,3799084-LS32,"1,750.00",CAROL ANDREWS.
Children and Young Peoples Services,Head of Education and Skills,Supplies and Services,312009,Newspapers books and periodicals E312,03/11/2020,3799061-6362239,766.96,ASKEWS & HOLTS LIBRARY SERVICES LTD.
Children and Young Peoples Services,Head of Education and Skills,Supplies and Services,338027,Services,03/11/2020,3799183-1610,895.00,KYM SCOTT CONSULTANCY LTD.
Children and Young Peoples Services,Head of Education and Skills,Transport,230007,Contract Hire,03/11/2020,3799309-16239,"1,377.00",WEARDALE MOTOR SERVICES LTD.
Children and Young Peoples Services,Head of Education and Skills,Transport,230034,Contract Hire,03/11/2020,3799203-229,"1,394.00",MR BRIAN JOHNSON T/A BRYS TAXIS.
Children and Young Peoples Services,Head of Education and Skills,Transport,230007,Contract Hire,03/11/2020,3799309-16237,"2,366.40",WEARDALE MOTOR SERVICES LTD.
Children and Young Peoples Services,Head of Education and Skills,Transport,230009,Contract Hire,03/11/2020,3799042-01-OCT20,884.00,A & P TAXIS.
Children and Young Peoples Services,Head of Education and Skills,Transport,230034,Contract Hire,03/11/2020,3799154-39,918.00,HORNDALE TAXIS LTD.
Children and Young Peoples Services,Head of Education and Skills,Transport,230034,Contract Hire,03/11/2020,3799081-BIL0205,"2,074.00",CA MUSGROVE.
Children and Young Peoples Services,Head of Education and Skills,Transport,230034,Contract Hire,03/11/2020,3799167-46-OCT20,"1,224.00",JOHN CRAKE & SONS MINI BUSES LTD.
Children and Young Peoples Services,Head of Education and Skills,Transport,230007,Contract Hire,03/11/2020,3799095-C/11220,"3,162.00",COCHRANES T/A KELVIN TRAVEL.
Children and Young Peoples Services,Head of Education and Skills,Transport,230034,Contract Hire,03/11/2020,3799165-1893,"1,046.86",JDS PRIVATE HIRE DURHAM.
Children and Young Peoples Services,Head of Education and Skills,Transport,230009,Contract Hire,03/11/2020,3799138-3-7368,"1,152.00",G ANGHEL T/A A TAXI.
Children and Young Peoples Services,Head of Education and Skills,Transport,230008,Contract Hire,03/11/2020,3799073-E013-OCT20,"1,699.32",BLACKHALL TAXIS.
Children and Young Peoples Services,Head of Education and Skills,Transport,230008,Contract Hire,03/11/2020,3799165-1904,931.60,JDS PRIVATE HIRE DURHAM.
Children and Young Peoples Services,Head of Education and Skills,Transport,230008,Contract Hire,03/11/2020,3799205-CP/09/20,"1,647.99",MR J AGAR T/A PARK TAXIS.
Children and Young Peoples Services,Head of Education and Skills,Transport,230034,Contract Hire,03/11/2020,3799186-1848,884.00,LD TAXIS.
Children and Young Peoples Services,Head of Education and Skills,Transport,230012,Contract Hire,03/11/2020,3799165-1900,"1,242.36",JDS PRIVATE HIRE DURHAM.
Children and Young Peoples Services,Head of Education and Skills,Transport,230034,Contract Hire,03/11/2020,3799163-61,"2,074.00",JAYS TAXIS/JOHN GARLAND (TAXIS).
Children and Young Peoples Services,Head of Education and Skills,Transport,230034,Contract Hire,03/11/2020,3799060-OCT2020-02,952.00,ARMSTRONG`S TAXIS.
Children and Young Peoples Services,Head of Education and Skills,Transport,230007,Contract Hire,03/11/2020,3799199-318,"1,564.00",MICKS TAXIS - MURTON.
Children and Young Peoples Services,Head of Education and Skills,Transport,230034,Contract Hire,03/11/2020,3799199-319,"1,224.00",MICKS TAXIS - MURTON.
Children and Young Peoples Services,Head of Education and Skills,Transport,230034,Contract Hire,03/11/2020,3799036-102002,"1,649.00",24/7 TAXI SERVICES LTD.
Children and Young Peoples Services,Head of Education and Skills,Transport,230007,Contract Hire,03/11/2020,3799036-92003,562.88,24/7 TAXI SERVICES LTD.
Children and Young Peoples Services,Head of Education and Skills,Transport,230007,Contract Hire,03/11/2020,3799139-22453,"2,246.04",GARNETTS LTD (COACHES).
Children and Young Peoples Services,Head of Education and Skills,Transport,230007,Contract Hire,03/11/2020,3799139-22453-4035,"2,070.26",GARNETTS LTD (COACHES).
Children and Young Peoples Services,Head of Education and Skills,Transport,230007,Contract Hire,03/11/2020,3799139-22453-4036,"2,246.04",GARNETTS LTD (COACHES).
Children and Young Peoples Services,Head of Education and Skills,Transport,230007,Contract Hire,03/11/2020,3799139-22453-4037,"4,038.86",GARNETTS LTD (COACHES).
Children and Young Peoples Services,Head of Education and Skills,Transport,230007,Contract Hire,03/11/2020,3799139-22453-4038,"2,070.26",GARNETTS LTD (COACHES).
Children and Young Peoples Services,Head of Education and Skills,Transport,230003,Contract Hire,03/11/2020,3799089-47122,"2,656.00",CHRISTOPHER JAMES GRIERSON T/A GRIERSONS COACHES.
Children and Young Peoples Services,Head of Education and Skills,Transport,230003,Contract Hire,03/11/2020,3799139-22458-3301,"3,043.00",GARNETTS LTD (COACHES).
Children and Young Peoples Services,Head of Education and Skills,Transport,230003,Contract Hire,03/11/2020,3799139-22458-3302,"3,043.00",GARNETTS LTD (COACHES).
Children and Young Peoples Services,Head of Education and Skills,Transport,230007,Contract Hire,03/11/2020,3799308-1224-2020,"1,320.90",WAYNE`S TAXIS.
Children and Young Peoples Services,Head of Education and Skills,Transport,230007,Contract Hire,03/11/2020,3799169-CORPTRAVWPAOCT20,686.00,JOHN W CROOK T/A CORPORATE TRAVEL.
Children and Young Peoples Services,Head of Education and Skills,Transport,230007,Contract Hire,03/11/2020,3799188-29405,"1,793.50",LEE`S COACHES LTD.
Children and Young Peoples Services,Head of Education and Skills,Transport,230007,Contract Hire,03/11/2020,3799188-29406,"3,315.00",LEE`S COACHES LTD.
Children and Young Peoples Services,Head of Education and Skills,Transport,230007,Contract Hire,03/11/2020,3799045-AC2004,"1,054.00",ACE TAXIS (WINSTON).
Children and Young Peoples Services,Head of Education and Skills,Transport,230007,Contract Hire,03/11/2020,3799139-22461,"2,533.00",GARNETTS LTD (COACHES).
Children and Young Peoples Services,Head of Education and Skills,Transport,230007,Contract Hire,03/11/2020,3799309-16230,"3,060.00",WEARDALE MOTOR SERVICES LTD.
Children and Young Peoples Services,Head of Education and Skills,Transport,230003,Contract Hire,03/11/2020,3799309-16231,"3,502.00",WEARDALE MOTOR SERVICES LTD.
Children and Young Peoples Services,Head of Education and Skills,Transport,230007,Contract Hire,03/11/2020,3799139-22454,"2,312.00",GARNETTS LTD (COACHES).
Children and Young Peoples Services,Head of Education and Skills,Transport,230007,Contract Hire,03/11/2020,3799139-22454-3029,"2,431.00",GARNETTS LTD (COACHES).
Children and Young Peoples Services,Head of Education and Skills,Transport,230003,Contract Hire,03/11/2020,3799139-22454-3020,"2,448.00",GARNETTS LTD (COACHES).
Children and Young Peoples Services,Head of Education and Skills,Transport,230003,Contract Hire,03/11/2020,3799139-22454-3024,"2,023.00",GARNETTS LTD (COACHES).
Children and Young Peoples Services,Head of Education and Skills,Transport,230003,Contract Hire,03/11/2020,3799139-22454-3027,"2,159.00",GARNETTS LTD (COACHES).
Children and Young Peoples Services,Head of Education and Skills,Transport,230003,Contract Hire,03/11/2020,3799139-22454-3028,"2,363.00",GARNETTS LTD (COACHES).
Children and Young Peoples Services,Head of Education and Skills,Transport,230007,Contract Hire,03/11/2020,3799276-6555,"1,688.00",STEPHEN MAUDE LTD T/A MAUDES COACHES.
Children and Young Peoples Services,Head of Education and Skills,Transport,230007,Contract Hire,03/11/2020,3799300-WA10013,812.25,TRAVEL 6.
Children and Young Peoples Services,Head of Education and Skills,Transport,230006,Contract Hire,03/11/2020,3799087-02-F828,780.00,CHAPMAN TRAVEL.
Children and Young Peoples Services,Head of Education and Skills,Transport,230007,Contract Hire,03/11/2020,3799139-22456,"1,977.44",GARNETTS LTD (COACHES).
Children and Young Peoples Services,Head of Education and Skills,Transport,230007,Contract Hire,03/11/2020,3799139-22456-3435,"2,784.00",GARNETTS LTD (COACHES).
Children and Young Peoples Services,Head of Education and Skills,Transport,230007,Contract Hire,03/11/2020,3799139-22460,"5,389.00",GARNETTS LTD (COACHES).
Children and Young Peoples Services,Head of Education and Skills,Transport,230007,Contract Hire,03/11/2020,3799290-4055/40,"3,720.00",TED WILFORD COACHES.
Children and Young Peoples Services,Head of Education and Skills,Transport,230007,Contract Hire,03/11/2020,3799290-4297/12,"3,720.00",TED WILFORD COACHES.
Children and Young Peoples Services,Head of Education and Skills,Transport,230007,Contract Hire,03/11/2020,3799165-1894,"1,050.40",JDS PRIVATE HIRE DURHAM.
Children and Young Peoples Services,Head of Education and Skills,Transport,230007,Contract Hire,03/11/2020,3799188-29402,"1,733.92",LEE`S COACHES LTD.
Children and Young Peoples Services,Head of Education and Skills,Transport,230007,Contract Hire,03/11/2020,3799188-29403,"1,776.32",LEE`S COACHES LTD.
Children and Young Peoples Services,Head of Education and Skills,Transport,230007,Contract Hire,03/11/2020,3799139-22462-4227,"3,043.00",GARNETTS LTD (COACHES).
Children and Young Peoples Services,Head of Education and Skills,Transport,230007,Contract Hire,03/11/2020,3799139-22462-4404,"12,512.00",GARNETTS LTD (COACHES).
Children and Young Peoples Services,Head of Education and Skills,Transport,230009,Contract Hire,03/11/2020,3799165-1895,724.03,JDS PRIVATE HIRE DURHAM.
Children and Young Peoples Services,Head of Education and Skills,Transport,230009,Contract Hire,03/11/2020,3799165-1896,"1,224.00",JDS PRIVATE HIRE DURHAM.
Children and Young Peoples Services,Head of Education and Skills,Transport,230009,Contract Hire,03/11/2020,3799165-1910,646.00,JDS PRIVATE HIRE DURHAM.
Children and Young Peoples Services,Head of Education and Skills,Transport,230007,Contract Hire,03/11/2020,3799139-22450,"4,233.00",GARNETTS LTD (COACHES).
Children and Young Peoples Services,Head of Education and Skills,Transport,230007,Contract Hire,03/11/2020,3799218-INV-6599,"2,227.00",NORTH EAST COACHWAYS LTD.
Children and Young Peoples Services,Head of Education and Skills,Transport,230009,Contract Hire,03/11/2020,3799036-102017,542.30,24/7 TAXI SERVICES LTD.
Children and Young Peoples Services,Head of Education and Skills,Transport,230003,Contract Hire,03/11/2020,3799089-47128,"2,822.00",CHRISTOPHER JAMES GRIERSON T/A GRIERSONS COACHES.
Children and Young Peoples Services,Head of Education and Skills,Transport,230003,Contract Hire,03/11/2020,3799089-47129,"2,737.00",CHRISTOPHER JAMES GRIERSON T/A GRIERSONS COACHES.
Children and Young Peoples Services,Head of Education and Skills,Transport,230003,Contract Hire,03/11/2020,3799089-47130,"2,907.00",CHRISTOPHER JAMES GRIERSON T/A GRIERSONS COACHES.
Children and Young Peoples Services,Head of Education and Skills,Transport,230003,Contract Hire,03/11/2020,3799139-22458-3303,"3,043.00",GARNETTS LTD (COACHES).
Children and Young Peoples Services,Head of Education and Skills,Transport,230003,Contract Hire,03/11/2020,3799188-29404,"3,825.00",LEE`S COACHES LTD.
Children and Young Peoples Services,Head of Education and Skills,Transport,230003,Contract Hire,03/11/2020,3799218-INV-6602,"3,162.00",NORTH EAST COACHWAYS LTD.
Children and Young Peoples Services,Head of Education and Skills,Transport,230007,Contract Hire,03/11/2020,3799139-22451,"4,165.00",GARNETTS LTD (COACHES).
Children and Young Peoples Services,Head of Education and Skills,Transport,230007,Contract Hire,03/11/2020,3799218-INV-6598,"3,231.87",NORTH EAST COACHWAYS LTD.
Children and Young Peoples Services,Head of Education and Skills,Transport,230007,Contract Hire,03/11/2020,3799218-INV-6604,"2,227.00",NORTH EAST COACHWAYS LTD.
Children and Young Peoples Services,Head of Education and Skills,Transport,230003,Contract Hire,03/11/2020,3799066-STJOHNS803102020,"2,482.00",BELL BROTHERS TRAVEL.
Children and Young Peoples Services,Head of Education and Skills,Transport,230003,Contract Hire,03/11/2020,3799139-22459,"2,703.00",GARNETTS LTD (COACHES).
Children and Young Peoples Services,Head of Education and Skills,Transport,230003,Contract Hire,03/11/2020,3799139-22459-3004,"2,788.00",GARNETTS LTD (COACHES).
Children and Young Peoples Services,Head of Education and Skills,Transport,230003,Contract Hire,03/11/2020,3799139-22459-3005,"5,066.00",GARNETTS LTD (COACHES).
Children and Young Peoples Services,Head of Education and Skills,Transport,230003,Contract Hire,03/11/2020,3799139-22459-3008,"2,873.00",GARNETTS LTD (COACHES).
Children and Young Peoples Services,Head of Education and Skills,Transport,230003,Contract Hire,03/11/2020,3799139-22459-3223,"5,406.00",GARNETTS LTD (COACHES).
Children and Young Peoples Services,Head of Education and Skills,Transport,230003,Contract Hire,03/11/2020,3799139-22459-3262,"3,179.00",GARNETTS LTD (COACHES).
Children and Young Peoples Services,Head of Education and Skills,Transport,230003,Contract Hire,03/11/2020,3799139-22459-3333,"2,856.00",GARNETTS LTD (COACHES).
Children and Young Peoples Services,Head of Education and Skills,Transport,230003,Contract Hire,03/11/2020,3799188-29396,"4,173.50",LEE`S COACHES LTD.
Children and Young Peoples Services,Head of Education and Skills,Transport,230003,Contract Hire,03/11/2020,3799188-29397,"4,003.50",LEE`S COACHES LTD.
Children and Young Peoples Services,Head of Education and Skills,Transport,230003,Contract Hire,03/11/2020,3799253-ROXDCC216,"2,652.00",ROXBYS BUS HIRE.
Children and Young Peoples Services,Head of Education and Skills,Transport,230003,Contract Hire,03/11/2020,3799089-47131,"2,160.00",CHRISTOPHER JAMES GRIERSON T/A GRIERSONS COACHES.
Children and Young Peoples Services,Head of Education and Skills,Transport,230003,Contract Hire,03/11/2020,3799095-C/11218,"2,336.00",COCHRANES T/A KELVIN TRAVEL.
Children and Young Peoples Services,Head of Education and Skills,Transport,230003,Contract Hire,03/11/2020,3799095-C/11219,"2,472.00",COCHRANES T/A KELVIN TRAVEL.
Children and Young Peoples Services,Head of Education and Skills,Transport,230003,Contract Hire,03/11/2020,3799253-ROXDCC217,"2,312.00",ROXBYS BUS HIRE.
Children and Young Peoples Services,Head of Education and Skills,Transport,230003,Contract Hire,03/11/2020,3799290-5030/39/40,"2,826.28",TED WILFORD COACHES.
Children and Young Peoples Services,Head of Education and Skills,Transport,230008,Contract Hire,03/11/2020,3799036-102004,"2,540.31",24/7 TAXI SERVICES LTD.
Children and Young Peoples Services,Head of Education and Skills,Transport,230008,Contract Hire,03/11/2020,3799036-102005,"1,944.12",24/7 TAXI SERVICES LTD.
Children and Young Peoples Services,Head of Education and Skills,Transport,230008,Contract Hire,03/11/2020,3799036-102007,"1,054.00",24/7 TAXI SERVICES LTD.
Children and Young Peoples Services,Head of Education and Skills,Transport,230008,Contract Hire,03/11/2020,3799036-92007,"2,401.56",24/7 TAXI SERVICES LTD.
Children and Young Peoples Services,Head of Education and Skills,Transport,230008,Contract Hire,03/11/2020,3799086-048,"2,074.00",CHANNER`S CABS.
Children and Young Peoples Services,Head of Education and Skills,Transport,230008,Contract Hire,03/11/2020,3799163-62,"1,054.00",JAYS TAXIS/JOHN GARLAND (TAXIS).
Children and Young Peoples Services,Head of Education and Skills,Transport,230008,Contract Hire,03/11/2020,3799163-64,"2,754.00",JAYS TAXIS/JOHN GARLAND (TAXIS).
Children and Young Peoples Services,Head of Education and Skills,Transport,230008,Contract Hire,03/11/2020,3799165-1897,"2,153.63",JDS PRIVATE HIRE DURHAM.
Children and Young Peoples Services,Head of Education and Skills,Transport,230006,Contract Hire,03/11/2020,3799186-1852,676.00,LD TAXIS.
Children and Young Peoples Services,Head of Education and Skills,Transport,230008,Contract Hire,03/11/2020,3799186-1849,"1,849.26",LD TAXIS.
Children and Young Peoples Services,Head of Education and Skills,Transport,230008,Contract Hire,03/11/2020,3799186-1851,"1,734.00",LD TAXIS.
Children and Young Peoples Services,Head of Education and Skills,Transport,230007,Contract Hire,03/11/2020,3799199-316,877.71,MICKS TAXIS - MURTON.
Children and Young Peoples Services,Head of Education and Skills,Transport,230006,Contract Hire,03/11/2020,3799199-320,918.00,MICKS TAXIS - MURTON.
Children and Young Peoples Services,Head of Education and Skills,Supplies and Services,304259,Equipment and Materials,03/11/2020,3799047-DCCS2020070,575.00,ADDED BRASS LTD T/A DURHAM MUSIC SHOP.
Children and Young Peoples Services,Head of Education and Skills,Transport,230008,Contract Hire,03/11/2020,3799165-1909,"1,830.40",JDS PRIVATE HIRE DURHAM.
Children and Young Peoples Services,Head of Education and Skills,Transport,230008,Contract Hire,03/11/2020,3799036-102009,"2,241.79",24/7 TAXI SERVICES LTD.
Children and Young Peoples Services,Head of Education and Skills,Transport,230008,Contract Hire,03/11/2020,3799062-004,"3,145.00",AUCKLAND TRAVEL.
Children and Young Peoples Services,Head of Education and Skills,Transport,230008,Contract Hire,03/11/2020,3799204-E052OCT,"1,434.00",MR DOMINICK JONES T/A DJ PRIVATE HIRE.
Children and Young Peoples Services,Head of Education and Skills,Transport,230008,Contract Hire,03/11/2020,3799204-M054OCT,"1,434.00",MR DOMINICK JONES T/A DJ PRIVATE HIRE.
Children and Young Peoples Services,Head of Education and Skills,Transport,230034,Contract Hire,03/11/2020,3799036-102011,"2,227.00",24/7 TAXI SERVICES LTD.
Children and Young Peoples Services,Head of Education and Skills,Transport,230008,Contract Hire,03/11/2020,3799110-3591,"2,269.33",DAVES MINIBUSES.
Children and Young Peoples Services,Head of Education and Skills,Transport,230008,Contract Hire,03/11/2020,3799110-3592,"1,700.00",DAVES MINIBUSES.
Children and Young Peoples Services,Head of Education and Skills,Transport,230008,Contract Hire,03/11/2020,3799165-1905,"1,703.91",JDS PRIVATE HIRE DURHAM.
Children and Young Peoples Services,Head of Education and Skills,Transport,230008,Contract Hire,03/11/2020,3799036-102010,"2,854.80",24/7 TAXI SERVICES LTD.
Children and Young Peoples Services,Head of Education and Skills,Transport,230008,Contract Hire,03/11/2020,3799036-102018,"2,505.00",24/7 TAXI SERVICES LTD.
Children and Young Peoples Services,Head of Education and Skills,Transport,230008,Contract Hire,03/11/2020,3799036-102012,610.00,24/7 TAXI SERVICES LTD.
Children and Young Peoples Services,Head of Education and Skills,Transport,230008,Contract Hire,03/11/2020,3799036-102014,"1,564.00",24/7 TAXI SERVICES LTD.
Children and Young Peoples Services,Head of Education and Skills,Transport,230008,Contract Hire,03/11/2020,3799036-102019,"2,057.00",24/7 TAXI SERVICES LTD.
Children and Young Peoples Services,Head of Education and Skills,Transport,230008,Contract Hire,03/11/2020,3799036-92014,"1,681.00",24/7 TAXI SERVICES LTD.
Children and Young Peoples Services,Head of Education and Skills,Transport,230008,Contract Hire,03/11/2020,3799060-OCT2020-01,"1,202.82",ARMSTRONG`S TAXIS.
Children and Young Peoples Services,Head of Education and Skills,Transport,230008,Contract Hire,03/11/2020,3799076-BZ00351,"1,036.66",BREZ`S TAXIS.
Children and Young Peoples Services,Head of Education and Skills,Transport,230008,Contract Hire,03/11/2020,3799076-BZ00352,"1,010.14",BREZ`S TAXIS.
Children and Young Peoples Services,Head of Education and Skills,Transport,230016,Contract Hire,03/11/2020,3799092-N112-GHH10/20,"1,727.42",CJ`S EXECUTIVE TRAVEL LTD.
Children and Young Peoples Services,Head of Education and Skills,Transport,230008,Contract Hire,03/11/2020,3799062-005,"2,142.00",AUCKLAND TRAVEL.
Children and Young Peoples Services,Head of Education and Skills,Transport,230008,Contract Hire,03/11/2020,3799062-006,"2,278.00",AUCKLAND TRAVEL.
Children and Young Peoples Services,Head of Education and Skills,Transport,230008,Contract Hire,03/11/2020,3799081-BIL0204,935.68,CA MUSGROVE.
Children and Young Peoples Services,Head of Education and Skills,Transport,230008,Contract Hire,03/11/2020,3799097-1694,"1,693.20",CONNORS MINI BUSES.*
Children and Young Peoples Services,Head of Education and Skills,Transport,230008,Contract Hire,03/11/2020,3799097-1695,"1,971.49",CONNORS MINI BUSES.*
Children and Young Peoples Services,Head of Education and Skills,Transport,230008,Contract Hire,03/11/2020,3799097-1696,"1,729.24",CONNORS MINI BUSES.*
Children and Young Peoples Services,Head of Education and Skills,Transport,230008,Contract Hire,03/11/2020,3799097-1697,"2,215.27",CONNORS MINI BUSES.*
Children and Young Peoples Services,Head of Education and Skills,Transport,230008,Contract Hire,03/11/2020,3799110-3589,"2,078.42",DAVES MINIBUSES.
Children and Young Peoples Services,Head of Education and Skills,Transport,230008,Contract Hire,03/11/2020,3799110-3593,"1,791.80",DAVES MINIBUSES.
Children and Young Peoples Services,Head of Education and Skills,Transport,230016,Contract Hire,03/11/2020,3799163-65,"2,104.00",JAYS TAXIS/JOHN GARLAND (TAXIS).
Children and Young Peoples Services,Head of Education and Skills,Transport,230008,Contract Hire,03/11/2020,3799163-51-N003,"2,080.00",JAYS TAXIS/JOHN GARLAND (TAXIS).
Children and Young Peoples Services,Head of Education and Skills,Transport,230008,Contract Hire,03/11/2020,3799165-1901,"1,404.71",JDS PRIVATE HIRE DURHAM.
Children and Young Peoples Services,Head of Education and Skills,Transport,230008,Contract Hire,03/11/2020,3799165-1902,"1,545.64",JDS PRIVATE HIRE DURHAM.
Children and Young Peoples Services,Head of Education and Skills,Transport,230008,Contract Hire,03/11/2020,3799165-1903,"1,405.05",JDS PRIVATE HIRE DURHAM.
Children and Young Peoples Services,Head of Education and Skills,Transport,230008,Contract Hire,03/11/2020,3799165-1906,"1,258.00",JDS PRIVATE HIRE DURHAM.
Children and Young Peoples Services,Head of Education and Skills,Transport,230008,Contract Hire,03/11/2020,3799165-1907,"1,405.05",JDS PRIVATE HIRE DURHAM.
Children and Young Peoples Services,Head of Education and Skills,Transport,230008,Contract Hire,03/11/2020,3799165-1908,"1,038.00",JDS PRIVATE HIRE DURHAM.
Children and Young Peoples Services,Head of Education and Skills,Transport,230008,Contract Hire,03/11/2020,3799165-1911,"1,564.00",JDS PRIVATE HIRE DURHAM.
Children and Young Peoples Services,Head of Education and Skills,Transport,230008,Contract Hire,03/11/2020,3799165-1912,"2,380.00",JDS PRIVATE HIRE DURHAM.
Children and Young Peoples Services,Head of Education and Skills,Transport,230006,Contract Hire,03/11/2020,3799177-1120,"2,142.00",K & R TAXIS (STANLEY).
Children and Young Peoples Services,Head of Education and Skills,Transport,230008,Contract Hire,03/11/2020,3799177-1114,"2,355.80",K & R TAXIS (STANLEY).
Children and Young Peoples Services,Head of Education and Skills,Transport,230008,Contract Hire,03/11/2020,3799177-1117,"2,742.10",K & R TAXIS (STANLEY).
Children and Young Peoples Services,Head of Education and Skills,Transport,230008,Contract Hire,03/11/2020,3799177-1121,"2,036.43",K & R TAXIS (STANLEY).
Children and Young Peoples Services,Head of Education and Skills,Transport,230008,Contract Hire,03/11/2020,3799177-1122,"2,125.00",K & R TAXIS (STANLEY).
Children and Young Peoples Services,Head of Education and Skills,Transport,230008,Contract Hire,03/11/2020,3799055-7,"2,159.00",AMANDA SMITH T/A WEARDALE WHEELS.
Children and Young Peoples Services,Head of Education and Skills,Transport,230008,Contract Hire,03/11/2020,3799108-1703,"1,573.52",DA TAXIS.
Children and Young Peoples Services,Head of Education and Skills,Transport,230008,Contract Hire,03/11/2020,3799108-1704,"1,339.26",DA TAXIS.
Children and Young Peoples Services,Head of Education and Skills,Transport,230008,Contract Hire,03/11/2020,3799139-22463,"2,703.00",GARNETTS LTD (COACHES).
Children and Young Peoples Services,Head of Education and Skills,Transport,230008,Contract Hire,03/11/2020,3799139-22463-W099,"3,145.00",GARNETTS LTD (COACHES).
Children and Young Peoples Services,Head of Education and Skills,Transport,230006,Contract Hire,03/11/2020,3799297-TS-21/46,"1,466.39",TOP STAR TRAVEL.
Children and Young Peoples Services,Head of Education and Skills,Transport,230008,Contract Hire,03/11/2020,3799309-16232,"2,450.55",WEARDALE MOTOR SERVICES LTD.
Children and Young Peoples Services,Head of Education and Skills,Transport,230008,Contract Hire,03/11/2020,3799309-16234,"3,179.00",WEARDALE MOTOR SERVICES LTD.
Children and Young Peoples Services,Head of Education and Skills,Transport,230008,Contract Hire,03/11/2020,3799108-1701,"1,284.00",DA TAXIS.
Children and Young Peoples Services,Head of Education and Skills,Transport,230008,Contract Hire,03/11/2020,3799108-1702,"1,756.50",DA TAXIS.
Children and Young Peoples Services,Head of Education and Skills,Transport,230008,Contract Hire,03/11/2020,3799180-S020-OCT20,"1,620.65",KEITH GIBSON T/A KEITH`S TAXIS.
Children and Young Peoples Services,Head of Education and Skills,Transport,230008,Contract Hire,03/11/2020,3799077-2-OCT20,"2,397.00",BRIAN PURVIS T/A BJ`S TAXIS.
Children and Young Peoples Services,Head of Education and Skills,Transport,230008,Contract Hire,03/11/2020,3799163-63,"2,074.00",JAYS TAXIS/JOHN GARLAND (TAXIS).
Children and Young Peoples Services,Head of Education and Skills,Transport,230008,Contract Hire,03/11/2020,3799165-1898,"2,112.00",JDS PRIVATE HIRE DURHAM.
Children and Young Peoples Services,Head of Education and Skills,Transport,230008,Contract Hire,03/11/2020,3799111-0070,"3,744.00",DAVID WALKER TAXIS.
Children and Young Peoples Services,Head of Education and Skills,Transport,230010,Contract Hire,03/11/2020,3799051-008-OCT2020,610.00,AIRPORT TRANSFER DURHAM.
Children and Young Peoples Services,Head of Education and Skills,Transport,230010,Contract Hire,03/11/2020,3799051-008-OCT2020A,"1,253.45",AIRPORT TRANSFER DURHAM.
Children and Young Peoples Services,Head of Education and Skills,Transport,230010,Contract Hire,03/11/2020,3799052-94,"1,651.38",AJ JOBLING T/A CASTLE TAXIS.
Children and Young Peoples Services,Head of Education and Skills,Transport,230010,Contract Hire,03/11/2020,3799165-1913,"1,953.00",JDS PRIVATE HIRE DURHAM.
Children and Young Peoples Services,Head of Education and Skills,Transport,230010,Contract Hire,03/11/2020,3799273-05216,"2,076.96",STANLEY TRAVEL (NORTH EAST) LTD.
Children and Young Peoples Services,Head of Education and Skills,Transport,230008,Contract Hire,03/11/2020,3799277-044,"1,428.00",STEVEN HENDERSON T/A HENDYS TAXIS.
Children and Young Peoples Services,Head of Education and Skills,Transport,230010,Contract Hire,03/11/2020,3799300-WL20013,"1,351.26",TRAVEL 6.
Children and Young Peoples Services,Head of Education and Skills,Transport,230006,Contract Hire,03/11/2020,3799036-102008,"1,010.00",24/7 TAXI SERVICES LTD.
Children and Young Peoples Services,Head of Education and Skills,Transport,230006,Contract Hire,03/11/2020,3799036-92010,"1,010.00",24/7 TAXI SERVICES LTD.
Children and Young Peoples Services,Head of Education and Skills,Transport,230006,Contract Hire,03/11/2020,3799057-10,"1,838.00",ANDREW ROBSON`S TAXI.
Children and Young Peoples Services,Head of Education and Skills,Transport,230006,Contract Hire,03/11/2020,3799072-F780-OCT20,558.00,BL TAXIS.
Children and Young Peoples Services,Head of Education and Skills,Transport,230006,Contract Hire,03/11/2020,3799105-22,"1,530.56",CRAIG MASSEY`S TAXIS.
Children and Young Peoples Services,Head of Education and Skills,Transport,230006,Contract Hire,03/11/2020,3799109-DPHCOCT2001,992.00,DALELINK PRIVATE HIRE.
Children and Young Peoples Services,Head of Education and Skills,Transport,230006,Contract Hire,03/11/2020,3799148-001-F711,780.00,GUY`S TAXIS.
Children and Young Peoples Services,Head of Education and Skills,Transport,230006,Contract Hire,03/11/2020,3799169-CORPTRAVBACOCT20,699.00,JOHN W CROOK T/A CORPORATE TRAVEL.
Children and Young Peoples Services,Head of Education and Skills,Transport,230006,Contract Hire,03/11/2020,3799199-317,693.00,MICKS TAXIS - MURTON.
Children and Young Peoples Services,Head of Education and Skills,Transport,230006,Contract Hire,03/11/2020,3799205-JB/09/20,"1,436.00",MR J AGAR T/A PARK TAXIS.
Children and Young Peoples Services,Head of Education and Skills,Transport,230006,Contract Hire,03/11/2020,3799205-JB/10/20,"1,190.00",MR J AGAR T/A PARK TAXIS.
Children and Young Peoples Services,Head of Education and Skills,Transport,230006,Contract Hire,03/11/2020,3799206-134,639.00,MR JOHN ALLINSON T/A AALPHA TAXIS.
Children and Young Peoples Services,Head of Education and Skills,Transport,230006,Contract Hire,03/11/2020,3799237-2-OCT20,"1,571.00",PETER`S TAXIS.
Children and Young Peoples Services,Head of Education and Skills,Transport,230006,Contract Hire,03/11/2020,3799277-045,"1,344.00",STEVEN HENDERSON T/A HENDYS TAXIS.
Children and Young Peoples Services,Head of Education and Skills,Transport,230006,Contract Hire,03/11/2020,3799306-F702-OCT,"1,392.00",WAINE SANDERSON T/A 1A CAB.
Children and Young Peoples Services,Head of Education and Skills,Supplies and Services,338094,Services,03/11/2020,3799101-442,765.00,CORNERSTONES CENTRE FOR THE COMMUNITY.
Resources BK0010,Legal & Democratic Services,Supplies and Services,338101,Services,03/11/2020,3799216-3010012440,"19,042.10",NEWCASTLE UPON TYNE HOSPITALS NHS FOUNDATION TRUST.
Resources BK0010,Legal & Democratic Services,Supplies and Services,338102,Services,03/11/2020,3799221-7510376412,700.97,NORTHUMBRIA HEALTHCARE NHS FOUNDATION TRUST.
Resources BK0010,Legal & Democratic Services,Supplies and Services,338042,Services,03/11/2020,3799114-351841/INVDR759,"1,020.00",DERE STREET BARRISTERS.
Resources BK0010,Legal & Democratic Services,Supplies and Services,338042,Services,03/11/2020,3799302-268639/INVPG270,500.00,TRINITY CHAMBERS.
Resources BK0010,Legal & Democratic Services,Supplies and Services,338042,Services,03/11/2020,3799302-284357/INVTS446,650.00,TRINITY CHAMBERS.
Adult and Health Services,Public Health CC0450,Third Party Payments,460305,Contract Payments,03/11/2020,3799034-INV-0006,"21,000.00",23 LTD T/A SMOKE FREE.
Adult and Health Services,Public Health CC0450,Third Party Payments,460803,Contract Payments,03/11/2020,3799267-7910052477,"2,797.47",SOUTH TYNESIDE & SUNDERLAND NHS FOUNDATION TRUST.
Neighbourhoods and Climate Change,Technical Services CM0300,Third Party Payments,430128,Rendered by Private Contractors,03/11/2020,3799143-1127,"1,334.50",GH & RG STOBBS.
Neighbourhoods and Climate Change,Technical Services CM0300,Third Party Payments,430128,Rendered by Private Contractors,03/11/2020,3799176-INV-0285,"3,400.00",JW TEWARD & SONS.
Neighbourhoods and Climate Change,Technical Services CM0300,Third Party Payments,460502,Contract Payments,03/11/2020,3799198-0300000848,"12,901.00",METEO GROUP UK LTD.
Neighbourhoods and Climate Change,Technical Services CM0300,Third Party Payments,430128,Rendered by Private Contractors,03/11/2020,3799234-13091,"1,293.75",PETER MONKHOUSE HAULAGE.
Neighbourhoods and Climate Change,Technical Services CM0300,Stock A926,926900,Stock in hand-Inventory system,03/11/2020,3799174-0104/00209206,"1,468.15",JT DOVE LTD.
Neighbourhoods and Climate Change,Technical Services CM0300,Stock A926,926900,Stock in hand-Inventory system,03/11/2020,3799230-XL261620,547.50,PARK ELECTRICAL DISTRIBUTORS LTD.
Neighbourhoods and Climate Change,Technical Services CM0300,Stock A926,926900,Stock in hand-Inventory system,03/11/2020,3799230-XL261624,"2,338.20",PARK ELECTRICAL DISTRIBUTORS LTD.
Neighbourhoods and Climate Change,Technical Services CM0300,Stock A926,926900,Stock in hand-Inventory system,03/11/2020,3799295-NSIN00045359,749.64,THOMAS OWEN & SONS (NEWCASTLE) LTD.
Neighbourhoods and Climate Change,Technical Services CM0300,Stock A926,926900,Stock in hand-Inventory system,03/11/2020,3799298-103920,"1,200.00",TOTAL RENTAL SOLUTIONS.
Neighbourhoods and Climate Change,Technical Services CM0300,Stock A926,926900,Stock in hand-Inventory system,03/11/2020,3799298-103921,"2,280.00",TOTAL RENTAL SOLUTIONS.
Neighbourhoods and Climate Change,Technical Services CM0300,Stock A926,926900,Stock in hand-Inventory system,03/11/2020,3799298-103922,"1,000.80",TOTAL RENTAL SOLUTIONS.
Neighbourhoods and Climate Change,Technical Services CM0300,Stock A926,926900,Stock in hand-Inventory system,03/11/2020,3799298-103926,"1,344.00",TOTAL RENTAL SOLUTIONS.
Neighbourhoods and Climate Change,Technical Services CM0300,Stock A926,926900,Stock in hand-Inventory system,03/11/2020,3799298-103929,"1,344.00",TOTAL RENTAL SOLUTIONS.
Neighbourhoods and Climate Change,Technical Services CM0300,Stock A926,926900,Stock in hand-Inventory system,03/11/2020,3799298-103930,"2,841.56",TOTAL RENTAL SOLUTIONS.
Neighbourhoods and Climate Change,Technical Services CM0300,Third Party Payments,430100,Rendered by Private Contractors,03/11/2020,3799174-0303/00209208,685.00,JT DOVE LTD.
Neighbourhoods and Climate Change,Technical Services CM0300,Third Party Payments,430100,Rendered by Private Contractors,03/11/2020,3799244-167137,"2,776.00",PREMIER TRAFFIC MANAGEMENT LTD.
Neighbourhoods and Climate Change,Technical Services CM0300,Supplies and Services,338066,Services,03/11/2020,3799310-383,950.00,WHORLTON LAND SURVEYS LTD.
Neighbourhoods and Climate Change,Technical Services CM0300,Supplies and Services,304221,Equipment and Materials,03/11/2020,3799174-0303/00209209,"1,323.20",JT DOVE LTD.
Neighbourhoods and Climate Change,Technical Services CM0300,Third Party Payments,430100,Rendered by Private Contractors,03/11/2020,3799225-23082,"1,400.00",OLIVERS TREE SERVICES LTD.
Neighbourhoods and Climate Change,Technical Services CM0300,Supplies and Services,338044,Services,03/11/2020,3799049-28440514,"9,348.00",AECOM LTD.
Neighbourhoods and Climate Change,Technical Services CM0300,Supplies and Services,338044,Services,03/11/2020,3799049-28440520,"7,872.00",AECOM LTD.
"Regeneration, Economy and Growth",Business Durham CL0850,Construction work A908,908105,Construction work,04/11/2020,3799453-P2724IN06,"5,855.83",IRIS PROJECT SOLUTIONS LTD.
"Regeneration, Economy and Growth",Business Durham CL0850,Supplies and Services,336005,Advertising E336,04/11/2020,3799511-3145,500.00,MJG PUBLISHING LTD T/A NORTHERN INSIGHT MAGAZINE.
Neighbourhoods and Climate Change,Community Protection,Supplies and Services,338045,Services,04/11/2020,3799552-112123-15/10/20,"2,729.25",PAUL ROONEY (FOUNTAIN CHAMBERS).
"Regeneration, Economy and Growth",Corporate Property and Land,Supplies and Services,384199,Miscellaneous Expenses,04/11/2020,3799580-TEC556452,"2,016.75",RPS CONSULTING SERVICES LTD.
"Regeneration, Economy and Growth",Corporate Property and Land,Supplies and Services,384199,Miscellaneous Expenses,04/11/2020,3799580-TEC556458,"3,413.00",RPS CONSULTING SERVICES LTD.
"Regeneration, Economy and Growth",Corporate Property and Land,Fees,901002,Consultants fees 901002,04/11/2020,3799580-TEC556457,"4,140.00",RPS CONSULTING SERVICES LTD.
"Regeneration, Economy and Growth",Corporate Property and Land,Supplies and Services,338078,Services,04/11/2020,3799584-12785,"1,075.00",SAFEGUARD SECURITY (NE) LTD.
"Regeneration, Economy and Growth",Corporate Property and Land,Third Party Payments,430100,Rendered by Private Contractors,04/11/2020,3799332-GSI-100958,"1,137.40",ALFRED BAGNALL & SONS (NORTH EAST) LTD.
"Regeneration, Economy and Growth",Corporate Property and Land,Third Party Payments,430100,Rendered by Private Contractors,04/11/2020,3799353-SI0038216,"1,757.20",BOLTON GATE SERVICES LTD.
"Regeneration, Economy and Growth",Corporate Property and Land,Third Party Payments,430100,Rendered by Private Contractors,04/11/2020,3799608-16004,"1,190.00",STONE TECHNICAL SERVICES LTD.
Regeneration and Local Services,COVID19 - Regeneration Economy and Growth,Supplies and Services,384199,Miscellaneous Expenses,04/11/2020,3799347-BEC-DFC-4100695707-29102020,"1,500.00",BETHANY ELEN COYLE (MUSICIAN).
"Regeneration, Economy and Growth",Culture Sport and Tourism,Supplies and Services,384199,Miscellaneous Expenses,04/11/2020,3799543-00014151,674.40,NSL LTD.
"Regeneration, Economy and Growth",Culture Sport and Tourism,Supplies and Services,384700,Miscellaneous Expenses,04/11/2020,3799536-1334,"45,000.00",NEW WRITING NORTH LTD.
"Regeneration, Economy and Growth",Culture Sport and Tourism,Intangible Assets,917003,Software capitalised implementation fees,04/11/2020,3799357-10567,"1,400.00",BRAMBLE HUB LTD.
"Regeneration, Economy and Growth",Culture Sport and Tourism,Third Party Payments,430100,Rendered by Private Contractors,04/11/2020,3799596-15978,641.58,SMITH CONSTRUCTION (HECKINGTON) LTD.
"Regeneration, Economy and Growth",Culture Sport and Tourism,Supplies and Services,342051,Computers and Communications,04/11/2020,3799357-10563,"18,697.57",BRAMBLE HUB LTD.
"Regeneration, Economy and Growth",Culture Sport and Tourism,Construction work A908,908105,Construction work,04/11/2020,3799603-00375821,"11,316.40",STAGE ELECTRICS PARTNERSHIP LTD.
"Regeneration, Economy and Growth",Culture Sport and Tourism,Supplies and Services,312013,Newspapers books and periodicals E312,04/11/2020,3799352-53735,"2,540.62",BOLINDA DIGITAL LTD.
"Regeneration, Economy and Growth",Culture Sport and Tourism,Supplies and Services,312013,Newspapers books and periodicals E312,04/11/2020,3799352-53890,660.65,BOLINDA DIGITAL LTD.
"Regeneration, Economy and Growth",Culture Sport and Tourism,Supplies and Services,312013,Newspapers books and periodicals E312,04/11/2020,3799352-54319,"1,025.92",BOLINDA DIGITAL LTD.
"Regeneration, Economy and Growth",Culture Sport and Tourism,Supplies and Services,312013,Newspapers books and periodicals E312,04/11/2020,3799352-55068,668.22,BOLINDA DIGITAL LTD.
"Regeneration, Economy and Growth",Culture Sport and Tourism,Supplies and Services,384199,Miscellaneous Expenses,04/11/2020,3799410-GALA53,703.81,REDACTED - PAYMENT TO INDIVIDUAL
Dedicated Schools Grant BG0015,Dedicated Schools Grant CG0050,Central Support and Other Recharges,615208,Support Services,04/11/2020,3799534-RES-11-2020-013,"17,592.48",NEW COLLEGE ACADEMIES TRUST - CONSETT ACADEMY.
Dedicated Schools Grant BG0015,Dedicated Schools Grant CG0050,Central Support and Other Recharges,615208,Support Services,04/11/2020,3799404-RES-11-2020-014,698.11,EDEN LEARNING TRUST T/A WOODHAM ACADEMY.
Dedicated Schools Grant BG0015,Dedicated Schools Grant CG0050,Central Support and Other Recharges,615208,Support Services,04/11/2020,3799404-RES-11-2020-015,698.11,EDEN LEARNING TRUST T/A WOODHAM ACADEMY.
"Regeneration, Economy and Growth",Development and Housing,Cap Exp on Grants & Other Financial Assistance (REFCUS),918501,Exp assets not owned by authority,04/11/2020,3799328-RED-11-2020-008,"2,250.00",ADOBE BUILDING SERVICES.
Resources BK0010,Digital and Customer Services,Supplies and Services,332029,Printing Stationery and Gen Off Exps,04/11/2020,3799594-25393,"1,975.00",SIMPLY STRIPES (THE SIGNMAKERS) LTD.
Resources BK0010,Digital and Customer Services,Supplies and Services,344135,Telephones,04/11/2020,3799498-12545009,"3,020.25",MAINTEL EUROPE LTD.
Resources BK0010,Digital and Customer Services,Supplies and Services,344015,Telephones,04/11/2020,3799638-0054525,"1,220.00",VODAFONE LTD.
Resources BK0010,Digital and Customer Services,Stock A926,926900,Stock in hand-Inventory system,04/11/2020,3799391-7402657006,"4,166.80",DELL COMPUTER CORPORATION LTD.
Resources BK0010,Digital and Customer Services,Stock A926,926900,Stock in hand-Inventory system,04/11/2020,3799647-KX65801,"1,004.00",XMA LTD.
Neighbourhoods and Climate Change,Environmental Services,Supplies and Services,304221,Equipment and Materials,04/11/2020,3799331-CD971041997,957.00,AGROVISTA UK LTD FORMERLY SHERRIFF AMENITY.
Neighbourhoods and Climate Change,Environmental Services,Transport,210057,Repair and Maintenance of Vehicles,04/11/2020,3799392-DE11353396,778.07,DENNIS EAGLE LTD.
Neighbourhoods and Climate Change,Environmental Services,Transport,210057,Repair and Maintenance of Vehicles,04/11/2020,3799645-902784569,891.90,WIRTGEN LTD.
Neighbourhoods and Climate Change,Environmental Services,Supplies and Services,304999,Equipment and Materials,04/11/2020,3799362-7442,958.21,CATHEDRAL LOCK & SAFE SERVICES LTD.
Neighbourhoods and Climate Change,Environmental Services,Third Party Payments,430100,Rendered by Private Contractors,04/11/2020,3799567-10266,"1,910.00",PROBE INDUSTRIES LTD.
Neighbourhoods and Climate Change,Environmental Services,Third Party Payments,430100,Rendered by Private Contractors,04/11/2020,3799567-10272,"1,200.00",PROBE INDUSTRIES LTD.
Neighbourhoods and Climate Change,Environmental Services,Supplies and Services,384899,Miscellaneous Expenses,04/11/2020,3799400-19238,"1,164.00",DURHAM WILDLIFE TRUST LTD.
Neighbourhoods and Climate Change,Environmental Services,Supplies and Services,384540,Miscellaneous Expenses,04/11/2020,3799488-BEEP2020002,700.00,LEC CONSULTANCY LTD.
Resources BK0010,Finance & Transactional Services,Supplies and Services,372009,Subscriptions E372,04/11/2020,3799366-INV-42824-Q1N2,"3,095.00",CHARTERED INSTITUTE OF PAYROLL PROFESSIONALS (CIPP).
Resources BK0010,Finance & Transactional Services,Supplies and Services,340001,Postages E340,04/11/2020,3799578-9061698793,"9,018.75",ROYAL MAIL GROUP PLC.
Adult and Health Services,Head of Adults,Transport,230005,Contract Hire,04/11/2020,3799469-51-OCT20,790.75,JOHN CRAKE & SONS MINI BUSES LTD.
Adult and Health Services,Head of Adults,Transport,230005,Contract Hire,04/11/2020,3799320-I1020/SF,513.45,AABAT TAXIS.
Adult and Health Services,Head of Adults,Transport,230005,Contract Hire,04/11/2020,3799320-I1020/SK,"2,121.02",AABAT TAXIS.
Adult and Health Services,Head of Adults,Transport,230005,Contract Hire,04/11/2020,3799447-IR2010003,"2,156.00",I & R EXECUTIVE TRAVEL.
Adult and Health Services,Head of Adults,Transport,230005,Contract Hire,04/11/2020,3799551-EAS150,"1,350.00",PAUL GREEN T/A GREEN TAXIS.
Adult and Health Services,Head of Adults,Transport,230005,Contract Hire,04/11/2020,3799320-11020/SH,"1,104.00",AABAT TAXIS.
Adult and Health Services,Head of Adults,Transport,230005,Contract Hire,04/11/2020,3799320-11020/SQ,522.66,AABAT TAXIS.
Adult and Health Services,Head of Adults,Transport,230005,Contract Hire,04/11/2020,3799320-I1020/ST,509.98,AABAT TAXIS.
Adult and Health Services,Head of Adults,Transport,230005,Contract Hire,04/11/2020,3799349-EAS193-OCT20,"1,258.00",BLACKHALL TAXIS.
Adult and Health Services,Head of Adults,Transport,230005,Contract Hire,04/11/2020,3799490-PEACO002/OCT,669.42,LETS TRAVEL.
Adult and Health Services,Head of Adults,Supplies and Services,338044,Services,04/11/2020,3799480-115/20,"1,025.00",KEITH MCKINSTRIE INDEPENDENT SOCIAL WORK.
Adult and Health Services,Head of Adults,Third Party Payments,478151,Purchase of Care,04/11/2020,3799323-1182,"7,835.10",ACCEPT CARE LTD.
Adult and Health Services,Head of Adults,Supplies and Services,304259,Equipment and Materials,04/11/2020,3799630-KITCHENHIRE01/11-30/11/20,"1,000.00",TUDHOE COMMUNITY CENTRE.
Children and Young Peoples Services,Head of Childrens Social Care,Third Party Payments,440038,Other third party payments E440,04/11/2020,3799372-3843,858.90,CITY OF SUNDERLAND YMCA LTD.
Children and Young Peoples Services,Head of Childrens Social Care,Third Party Payments,440038,Other third party payments E440,04/11/2020,3799372-3853,858.90,CITY OF SUNDERLAND YMCA LTD.
Children and Young Peoples Services,Head of Childrens Social Care,Third Party Payments,440038,Other third party payments E440,04/11/2020,3799372-3863,858.90,CITY OF SUNDERLAND YMCA LTD.
Children and Young Peoples Services,Head of Childrens Social Care,Third Party Payments,440038,Other third party payments E440,04/11/2020,3799442-68603-LR11-4/2020,992.04,HOME GROUP LTD FORMERLY STONHAM HOUSING ASSOCIATION LTD.
Children and Young Peoples Services,Head of Childrens Social Care,Third Party Payments,440038,Other third party payments E440,04/11/2020,3799621-HH58,"1,802.70",THE CYRENIANS LTD T/A CHANGING LIVES.
Children and Young Peoples Services,Head of Childrens Social Care,Third Party Payments,440038,Other third party payments E440,04/11/2020,3799621-HH59,"1,802.70",THE CYRENIANS LTD T/A CHANGING LIVES.
Children and Young Peoples Services,Head of Childrens Social Care,Third Party Payments,440038,Other third party payments E440,04/11/2020,3799621-HH61,"1,802.70",THE CYRENIANS LTD T/A CHANGING LIVES.
Children and Young Peoples Services,Head of Childrens Social Care,Third Party Payments,440038,Other third party payments E440,04/11/2020,3799621-SI1000002393,"4,425.00",THE CYRENIANS LTD T/A CHANGING LIVES.
Children and Young Peoples Services,Head of Childrens Social Care,Third Party Payments,425041,Rendered by Voluntary Organisations,04/11/2020,3799393-10200160,"35,269.30",DIAGRAMA CHILDREN`S SERVICES.
Children and Young Peoples Services,Head of Childrens Social Care,Third Party Payments,425041,Rendered by Voluntary Organisations,04/11/2020,3799416-6555,"32,063.00",FAMILIES FOR CHILDREN TRUST.
Children and Young Peoples Services,Head of Childrens Social Care,Third Party Payments,425041,Rendered by Voluntary Organisations,04/11/2020,3799601-996617,"2,959.30",ST FRANCIS CHILDRENS SOCIETY.
Children and Young Peoples Services,Head of Childrens Social Care,Third Party Payments,440039,Other third party payments E440,04/11/2020,3799372-3837,800.00,CITY OF SUNDERLAND YMCA LTD.
Children and Young Peoples Services,Head of Childrens Social Care,Third Party Payments,440039,Other third party payments E440,04/11/2020,3799372-3847,800.00,CITY OF SUNDERLAND YMCA LTD.
Children and Young Peoples Services,Head of Childrens Social Care,Third Party Payments,440039,Other third party payments E440,04/11/2020,3799372-3857,800.00,CITY OF SUNDERLAND YMCA LTD.
Children and Young Peoples Services,Head of Childrens Social Care,Third Party Payments,440039,Other third party payments E440,04/11/2020,3799513-JHYD003ILA,700.50,MOVING UP CARE LTD.
Children and Young Peoples Services,Head of Childrens Social Care,Employees,080025,Agency Staff,04/11/2020,3799426-2443166,"135,160.49",GEOMETRIC RESULTS INTERNATIONAL.
Children and Young Peoples Services,Head of Childrens Social Care,Supplies and Services,372009,Subscriptions E372,04/11/2020,3799454-HP00545,"2,575.00",ISLINGTON COUNCIL.*
Children and Young Peoples Services,Head of Childrens Social Care,Supplies and Services,338044,Services,04/11/2020,3799397-PE-1-151020,621.80,DR URSULA CAWTHORNE T/A CAWTHORNE PSYCHOLOGICAL SERVICES LTD.
Children and Young Peoples Services,Head of Childrens Social Care,Supplies and Services,338044,Services,04/11/2020,3799417-NE20C00426,599.05,FAMILY PSYCHOLOGY UK LTD.
Children and Young Peoples Services,Head of Childrens Social Care,Third Party Payments,425028,Rendered by Voluntary Organisations,04/11/2020,3799600-143,"20,640.00",SPORT WORKS LTD.
Children and Young Peoples Services,Head of Childrens Social Care,Third Party Payments,486048,Service level agreements E486,04/11/2020,3799325-R81IN2/00010816,"1,927.86",ACTION FOR CHILDREN SERVICES LTD.*
Children and Young Peoples Services,Head of Early Help Inclusion & Vulnerable Children.,Supplies and Services,304252,Equipment and Materials,04/11/2020,3799329-45559925-61,"1,080.00",ADT FIRE & SECURITY PLC.
Children and Young Peoples Services,Head of Early Help Inclusion & Vulnerable Children.,Supplies and Services,304252,Equipment and Materials,04/11/2020,3799329-45574088-61,"1,005.62",ADT FIRE & SECURITY PLC.
Children and Young Peoples Services,Head of Education and Skills,Transport,230007,Contract Hire,04/11/2020,3799341-790,"1,649.00",AT TAXIS LTD.
Children and Young Peoples Services,Head of Education and Skills,Transport,230007,Contract Hire,04/11/2020,3799605-55945,842.52,STANLEY TRAVEL (NORTH EAST) LTD.
Children and Young Peoples Services,Head of Education and Skills,Transport,230007,Contract Hire,04/11/2020,3799555-1086,"2,037.00",PBS TRAVEL LTD.
Children and Young Peoples Services,Head of Education and Skills,Transport,230007,Contract Hire,04/11/2020,3799389-441,714.00,DA TRAVEL.
Children and Young Peoples Services,Head of Education and Skills,Transport,230007,Contract Hire,04/11/2020,3799555-1086/SEP20,"2,142.00",PBS TRAVEL LTD.
Children and Young Peoples Services,Head of Education and Skills,Transport,230008,Contract Hire,04/11/2020,3799341-789,"1,649.00",AT TAXIS LTD.
Children and Young Peoples Services,Head of Education and Skills,Transport,230012,Contract Hire,04/11/2020,3799321-O477,"1,531.50",ABC & OUSTON CABS.
Children and Young Peoples Services,Head of Education and Skills,Transport,230034,Contract Hire,04/11/2020,3799341-788,"1,207.00",AT TAXIS LTD.
Children and Young Peoples Services,Head of Education and Skills,Transport,230007,Contract Hire,04/11/2020,3799514-AT223,544.00,MR AG WILSON T/A ALAN`S TAXIS (DURHAM CITY).
Children and Young Peoples Services,Head of Education and Skills,Transport,230007,Contract Hire,04/11/2020,3799408-5234/1020,"2,032.00",ELLIOTTS OF TRIMDON.
Children and Young Peoples Services,Head of Education and Skills,Transport,230007,Contract Hire,04/11/2020,3799463-3018,"2,312.00",JEFF ANDERSON COACHES LTD.
Children and Young Peoples Services,Head of Education and Skills,Transport,230034,Contract Hire,04/11/2020,3799315-102001,"1,037.00",24/7 TAXI SERVICES LTD.
Children and Young Peoples Services,Head of Education and Skills,Transport,230007,Contract Hire,04/11/2020,3799613-10/2020/004,"1,394.00",TARNS TAXIS LTD.
Children and Young Peoples Services,Head of Education and Skills,Transport,230003,Contract Hire,04/11/2020,3799605-55943,"10,836.00",STANLEY TRAVEL (NORTH EAST) LTD.
Children and Young Peoples Services,Head of Education and Skills,Transport,230003,Contract Hire,04/11/2020,3799605-55944,"8,772.00",STANLEY TRAVEL (NORTH EAST) LTD.
Children and Young Peoples Services,Head of Education and Skills,Transport,230007,Contract Hire,04/11/2020,3799430-02-OCT20,"2,261.00",GRAHAM WILLIAMS T/A BUS 2 MINIBUS HIRE.
Children and Young Peoples Services,Head of Education and Skills,Transport,230012,Contract Hire,04/11/2020,3799320-I1020/SG,"1,007.00",AABAT TAXIS.
Children and Young Peoples Services,Head of Education and Skills,Transport,230012,Contract Hire,04/11/2020,3799320-I1020/SS,"1,122.00",AABAT TAXIS.
Children and Young Peoples Services,Head of Education and Skills,Transport,230007,Contract Hire,04/11/2020,3799320-I1020/SL,"1,019.66",AABAT TAXIS.
Children and Young Peoples Services,Head of Education and Skills,Transport,230034,Contract Hire,04/11/2020,3799346-HHOUGH/BB1020,"1,386.00",BENS TAXIS.
Children and Young Peoples Services,Head of Education and Skills,Transport,230007,Contract Hire,04/11/2020,3799516-188,714.00,MR DAVID CULLEN T/A JED`S TAXIS.
Children and Young Peoples Services,Head of Education and Skills,Transport,230007,Contract Hire,04/11/2020,3799351-95H,"2,108.00",BOBS TAXIS.
Children and Young Peoples Services,Head of Education and Skills,Transport,230007,Contract Hire,04/11/2020,3799555-1086SEP20,"1,848.00",PBS TRAVEL LTD.
Children and Young Peoples Services,Head of Education and Skills,Transport,230007,Contract Hire,04/11/2020,3799463-3020,"1,481.72",JEFF ANDERSON COACHES LTD.
Children and Young Peoples Services,Head of Education and Skills,Transport,230034,Contract Hire,04/11/2020,3799497-194,"1,311.75",M BUTCHER T/A M & M`S TAXIS.
Children and Young Peoples Services,Head of Education and Skills,Transport,230007,Contract Hire,04/11/2020,3799341-791,"1,649.00",AT TAXIS LTD.
Children and Young Peoples Services,Head of Education and Skills,Transport,230007,Contract Hire,04/11/2020,3799320-1020/SM,816.00,AABAT TAXIS.
Children and Young Peoples Services,Head of Education and Skills,Transport,230007,Contract Hire,04/11/2020,3799408-4402/1020,623.90,ELLIOTTS OF TRIMDON.
Children and Young Peoples Services,Head of Education and Skills,Transport,230007,Contract Hire,04/11/2020,3799576-1466,"2,171.41",ROBERTS TOURS.
Children and Young Peoples Services,Head of Education and Skills,Transport,230007,Contract Hire,04/11/2020,3799576-1467,"2,717.11",ROBERTS TOURS.
Children and Young Peoples Services,Head of Education and Skills,Transport,230007,Contract Hire,04/11/2020,3799456-6014,639.03,J YOUNG T/A VIP TAXIS.
Children and Young Peoples Services,Head of Education and Skills,Transport,230007,Contract Hire,04/11/2020,3799613-10/2020/005,"1,054.00",TARNS TAXIS LTD.
Children and Young Peoples Services,Head of Education and Skills,Transport,230034,Contract Hire,04/11/2020,3799320-1020/SO,796.40,AABAT TAXIS.
Children and Young Peoples Services,Head of Education and Skills,Transport,230008,Contract Hire,04/11/2020,3799320-I1020/SP,"1,128.12",AABAT TAXIS.
Children and Young Peoples Services,Head of Education and Skills,Transport,230008,Contract Hire,04/11/2020,3799342-2-OCT20,888.00,B&C YELLOWCAB TAXI`S.
Children and Young Peoples Services,Head of Education and Skills,Transport,230007,Contract Hire,04/11/2020,3799351-95G,"1,542.00",BOBS TAXIS.
Children and Young Peoples Services,Head of Education and Skills,Transport,230016,Contract Hire,04/11/2020,3799456-6013,"1,054.00",J YOUNG T/A VIP TAXIS.
Children and Young Peoples Services,Head of Education and Skills,Transport,230006,Contract Hire,04/11/2020,3799458-0777,"1,871.25",JACKSON`S TAXI.
Children and Young Peoples Services,Head of Education and Skills,Transport,230006,Contract Hire,04/11/2020,3799482-106,"1,298.80",KINGSWAY CABS LTD.
Children and Young Peoples Services,Head of Education and Skills,Transport,230008,Contract Hire,04/11/2020,3799482-105,"1,530.00",KINGSWAY CABS LTD.
Children and Young Peoples Services,Head of Education and Skills,Transport,230008,Contract Hire,04/11/2020,3799507-A032/OCT,"3,218.00",MICHAEL ANDERSON T/A TAXI DURHAM.
Children and Young Peoples Services,Head of Education and Skills,Transport,230034,Contract Hire,04/11/2020,3799514-AT222,855.00,MR AG WILSON T/A ALAN`S TAXIS (DURHAM CITY).
Children and Young Peoples Services,Head of Education and Skills,Construction work A908,908105,Construction work,04/11/2020,3799534-5100225,"3,010.00",NEW COLLEGE ACADEMIES TRUST - CONSETT ACADEMY.
Children and Young Peoples Services,Head of Education and Skills,Transport,230034,Contract Hire,04/11/2020,3799471-215,795.00,JOHN ROBSON T/A ACE TAXIS.
Children and Young Peoples Services,Head of Education and Skills,Transport,230003,Contract Hire,04/11/2020,3799605-55936,"2,652.00",STANLEY TRAVEL (NORTH EAST) LTD.
Children and Young Peoples Services,Head of Education and Skills,Supplies and Services,336005,Advertising E336,04/11/2020,3799505-INV-2651,693.75,MEDIA PARTNERSHIP LTD.
Children and Young Peoples Services,Head of Education and Skills,Supplies and Services,384199,Miscellaneous Expenses,04/11/2020,3799330-DW0093/1,767.18,ADVANCED GARAGE & MOT CENTRE.
Children and Young Peoples Services,Head of Education and Skills,Supplies and Services,384199,Miscellaneous Expenses,04/11/2020,3799604-LWE0005/EL,"1,932.43",STANLEY EVENTS LTD.
Children and Young Peoples Services,Head of Education and Skills,Transport,230008,Contract Hire,04/11/2020,3799408-M042/1020,"1,515.22",ELLIOTTS OF TRIMDON.
Children and Young Peoples Services,Head of Education and Skills,Transport,230008,Contract Hire,04/11/2020,3799553-DCC324,"1,239.00",PAUL`S TAXIS..
Children and Young Peoples Services,Head of Education and Skills,Transport,230008,Contract Hire,04/11/2020,3799605-55941,"2,840.00",STANLEY TRAVEL (NORTH EAST) LTD.
Children and Young Peoples Services,Head of Education and Skills,Transport,230008,Contract Hire,04/11/2020,3799605-55942,"2,414.00",STANLEY TRAVEL (NORTH EAST) LTD.
Children and Young Peoples Services,Head of Education and Skills,Transport,230008,Contract Hire,04/11/2020,3799646-09,"2,830.16",WISS TAXIS.
Children and Young Peoples Services,Head of Education and Skills,Transport,230008,Contract Hire,04/11/2020,3799320-I1020/SR,"2,059.50",AABAT TAXIS.
Children and Young Peoples Services,Head of Education and Skills,Transport,230008,Contract Hire,04/11/2020,3799462-1916,"1,961.65",JDS PRIVATE HIRE DURHAM.
Children and Young Peoples Services,Head of Education and Skills,Transport,230008,Contract Hire,04/11/2020,3799553-DCC322,"3,266.12",PAUL`S TAXIS..
Children and Young Peoples Services,Head of Education and Skills,Transport,230016,Contract Hire,04/11/2020,3799533-67,"1,960.00",NEIL PASSMOOR T/A NEIL`S TAXI.
Children and Young Peoples Services,Head of Education and Skills,Transport,230016,Contract Hire,04/11/2020,3799533-68,"1,684.00",NEIL PASSMOOR T/A NEIL`S TAXI.
Children and Young Peoples Services,Head of Education and Skills,Transport,230008,Contract Hire,04/11/2020,3799553-DCC323,"1,380.80",PAUL`S TAXIS..
Children and Young Peoples Services,Head of Education and Skills,Transport,230008,Contract Hire,04/11/2020,3799408-E060/1020,"1,714.75",ELLIOTTS OF TRIMDON.
Children and Young Peoples Services,Head of Education and Skills,Transport,230008,Contract Hire,04/11/2020,3799447-IR2010002,"2,479.64",I & R EXECUTIVE TRAVEL.
Children and Young Peoples Services,Head of Education and Skills,Transport,230008,Contract Hire,04/11/2020,3799515-11-M019,924.00,MR BW YOUNG T/A ESH TAXIS.
Children and Young Peoples Services,Head of Education and Skills,Transport,230008,Contract Hire,04/11/2020,3799517-3046OCT,744.50,MR DOMINICK JONES T/A DJ PRIVATE HIRE.
Children and Young Peoples Services,Head of Education and Skills,Transport,230008,Contract Hire,04/11/2020,3799320-I1020/SN,"2,482.61",AABAT TAXIS.
Children and Young Peoples Services,Head of Education and Skills,Transport,230008,Contract Hire,04/11/2020,3799321-O476,"1,720.08",ABC & OUSTON CABS.
Children and Young Peoples Services,Head of Education and Skills,Transport,230008,Contract Hire,04/11/2020,3799456-6011,974.44,J YOUNG T/A VIP TAXIS.
Children and Young Peoples Services,Head of Education and Skills,Transport,230016,Contract Hire,04/11/2020,3799447-IR2010001,"1,747.26",I & R EXECUTIVE TRAVEL.
Children and Young Peoples Services,Head of Education and Skills,Transport,230008,Contract Hire,04/11/2020,3799491-0011,560.00,LEWIS PATTISON T/A LEWIS TAXIS.
Children and Young Peoples Services,Head of Education and Skills,Transport,230008,Contract Hire,04/11/2020,3799491-0011/2,600.00,LEWIS PATTISON T/A LEWIS TAXIS.
Children and Young Peoples Services,Head of Education and Skills,Transport,230008,Contract Hire,04/11/2020,3799522-3137,"2,159.00",MR S BOWERS T/A DH7 TAXIS.
Children and Young Peoples Services,Head of Education and Skills,Transport,230008,Contract Hire,04/11/2020,3799554-311020M012,"1,394.00",PB PRIVATE HIRE.
Children and Young Peoples Services,Head of Education and Skills,Transport,230008,Contract Hire,04/11/2020,3799320-I1020,"2,754.00",AABAT TAXIS.
Children and Young Peoples Services,Head of Education and Skills,Transport,230008,Contract Hire,04/11/2020,3799333-021020AT,884.00,AMBER TRAVEL.
Children and Young Peoples Services,Head of Education and Skills,Transport,230016,Contract Hire,04/11/2020,3799389-440,"1,054.00",DA TRAVEL.
Children and Young Peoples Services,Head of Education and Skills,Transport,230008,Contract Hire,04/11/2020,3799390-1020-001,"1,721.42",DCM TAXIS.
Children and Young Peoples Services,Head of Education and Skills,Transport,230008,Contract Hire,04/11/2020,3799428-010/OCT,"1,829.20",GMC TAXIS NORTH EAST.
Children and Young Peoples Services,Head of Education and Skills,Transport,230008,Contract Hire,04/11/2020,3799463-3022,"1,638.51",JEFF ANDERSON COACHES LTD.
Children and Young Peoples Services,Head of Education and Skills,Transport,230008,Contract Hire,04/11/2020,3799646-02/N324,"2,074.00",WISS TAXIS.
Children and Young Peoples Services,Head of Education and Skills,Transport,230008,Contract Hire,04/11/2020,3799320-I1020/SD,"1,385.06",AABAT TAXIS.
Children and Young Peoples Services,Head of Education and Skills,Transport,230008,Contract Hire,04/11/2020,3799320-I1020/SJ,976.56,AABAT TAXIS.
Children and Young Peoples Services,Head of Education and Skills,Transport,230008,Contract Hire,04/11/2020,3799341-786,"2,210.00",AT TAXIS LTD.
Children and Young Peoples Services,Head of Education and Skills,Transport,230008,Contract Hire,04/11/2020,3799341-787,714.00,AT TAXIS LTD.
Children and Young Peoples Services,Head of Education and Skills,Transport,230008,Contract Hire,04/11/2020,3799463-3019,"1,595.33",JEFF ANDERSON COACHES LTD.
Children and Young Peoples Services,Head of Education and Skills,Transport,230008,Contract Hire,04/11/2020,3799522-3138,"1,338.25",MR S BOWERS T/A DH7 TAXIS.
Children and Young Peoples Services,Head of Education and Skills,Transport,230010,Contract Hire,04/11/2020,3799521-10/20/BL,"1,411.60",MR RICHARD STANDLEY T/A RS TAXI SERVICES.
Children and Young Peoples Services,Head of Education and Skills,Transport,230006,Contract Hire,04/11/2020,3799316-610,513.00,A BARKER.
Children and Young Peoples Services,Head of Education and Skills,Transport,230006,Contract Hire,04/11/2020,3799316-629/2,806.00,A BARKER.
Children and Young Peoples Services,Head of Education and Skills,Transport,230006,Contract Hire,04/11/2020,3799320-1020/SI,"1,164.00",AABAT TAXIS.
Children and Young Peoples Services,Head of Education and Skills,Transport,230006,Contract Hire,04/11/2020,3799365-14-F748,"1,454.00",CHAPMAN TRAVEL.
Children and Young Peoples Services,Head of Education and Skills,Transport,230006,Contract Hire,04/11/2020,3799389-438,770.00,DA TRAVEL.
Children and Young Peoples Services,Head of Education and Skills,Transport,230006,Contract Hire,04/11/2020,3799389-439,984.00,DA TRAVEL.
Children and Young Peoples Services,Head of Education and Skills,Transport,230006,Contract Hire,04/11/2020,3799487-1847,654.00,LD TAXIS.
Children and Young Peoples Services,Head of Education and Skills,Transport,230006,Contract Hire,04/11/2020,3799523-INV0001-OCT,504.00,MR S HUSSAIN T/A EMPIRE CARS.
Resources BK0010,Legal & Democratic Services,Supplies and Services,338025,Services,04/11/2020,3799381-HMC05,520.00,COMPLETE FUNERAL SERVICES LTD.
Resources BK0010,Legal & Democratic Services,Supplies and Services,332029,Printing Stationery and Gen Off Exps,04/11/2020,3799326-PSI0145334,"1,349.81",ADARE SEC LTD.
Resources BK0010,Legal & Democratic Services,Supplies and Services,332029,Printing Stationery and Gen Off Exps,04/11/2020,3799326-PSI0145335,"7,923.63",ADARE SEC LTD.
Adult and Health Services,Public Health CC0450,Third Party Payments,460803,Contract Payments,04/11/2020,3799538-7032600091,"33,833.00",NHS DDES CCG.
Adult and Health Services,Public Health CC0450,Third Party Payments,460803,Contract Payments,04/11/2020,3799322-INV-0870,"124,855.00",ABL HEALTH LTD.
Adult and Health Services,Public Health CC0450,Third Party Payments,460803,Contract Payments,04/11/2020,3799387-INV-832,"8,676.25",CRUSE BEREAVEMENT CARE.
Adult and Health Services,Public Health CC0450,Third Party Payments,460803,Contract Payments,04/11/2020,3799562-17376/14,"5,462.93",PIONEERING CARE PARTNERSHIP.
Neighbourhoods and Climate Change,Technical Services CM0300,Third Party Payments,430128,Rendered by Private Contractors,04/11/2020,3799414-281,660.50,F WARD FARM.
Neighbourhoods and Climate Change,Technical Services CM0300,Third Party Payments,430128,Rendered by Private Contractors,04/11/2020,3799445-904,958.50,HT DAVIES & PARTNERS.
Neighbourhoods and Climate Change,Technical Services CM0300,Construction work A908,908105,Construction work,04/11/2020,3799457-24686,"2,098.45",JACK COUPE & SONS LTD T/A COUPE LINE.
Neighbourhoods and Climate Change,Technical Services CM0300,Construction work A908,908109,Capital - Resurfacing,04/11/2020,3799537-34916420,"1,951.59",NEWSQUEST (YORKSHIRE & NORTH EAST) LTD.
Neighbourhoods and Climate Change,Technical Services CM0300,Stock A926,926900,Stock in hand-Inventory system,04/11/2020,3799415-134520,505.04,FABRIKAT (NOTTINGHAM) LTD.
Neighbourhoods and Climate Change,Technical Services CM0300,Stock A926,926900,Stock in hand-Inventory system,04/11/2020,3799415-134566,"4,545.36",FABRIKAT (NOTTINGHAM) LTD.
Neighbourhoods and Climate Change,Technical Services CM0300,Stock A926,926900,Stock in hand-Inventory system,04/11/2020,3799446-145067,"2,131.00",HYDRAM ENGINEERING LTD.
Neighbourhoods and Climate Change,Technical Services CM0300,Stock A926,926900,Stock in hand-Inventory system,04/11/2020,3799548-XL261621,"1,196.00",PARK ELECTRICAL DISTRIBUTORS LTD.
Neighbourhoods and Climate Change,Technical Services CM0300,Third Party Payments,430100,Rendered by Private Contractors,04/11/2020,3799319-8833,"1,520.00",A19 DRILLING LTD.
Neighbourhoods and Climate Change,Technical Services CM0300,Supplies and Services,304221,Equipment and Materials,04/11/2020,3799429-1014378,665.00,GRAB & DELIVER LTD.
Neighbourhoods and Climate Change,Technical Services CM0300,Third Party Payments,430100,Rendered by Private Contractors,04/11/2020,3799441-3152,"4,255.00",HIGHWAY CONSTRUCTION SERVICES LTD.
Neighbourhoods and Climate Change,Technical Services CM0300,Third Party Payments,430100,Rendered by Private Contractors,04/11/2020,3799478-60420,776.16,KAEFER LTD.
Neighbourhoods and Climate Change,Technical Services CM0300,Third Party Payments,430100,Rendered by Private Contractors,04/11/2020,3799478-62633,"1,373.78",KAEFER LTD.
Neighbourhoods and Climate Change,Technical Services CM0300,Third Party Payments,430100,Rendered by Private Contractors,04/11/2020,3799478-62676,"26,177.02",KAEFER LTD.
Neighbourhoods and Climate Change,Technical Services CM0300,Third Party Payments,430100,Rendered by Private Contractors,04/11/2020,3799478-63740,"1,292.38",KAEFER LTD.
Neighbourhoods and Climate Change,Technical Services CM0300,Third Party Payments,430100,Rendered by Private Contractors,04/11/2020,3799478-63741,"2,974.10",KAEFER LTD.
Neighbourhoods and Climate Change,Technical Services CM0300,Third Party Payments,430100,Rendered by Private Contractors,04/11/2020,3799478-63758,"1,889.54",KAEFER LTD.
Neighbourhoods and Climate Change,Technical Services CM0300,Third Party Payments,430100,Rendered by Private Contractors,04/11/2020,3799564-167144,"64,354.97",PREMIER TRAFFIC MANAGEMENT LTD.
Neighbourhoods and Climate Change,Technical Services CM0300,Supplies and Services,384167,Miscellaneous Expenses,04/11/2020,3799589-WWB1152039,"3,937.50",SGS UNITED KINGDOM LTD.
Neighbourhoods and Climate Change,Technical Services CM0300,Third Party Payments,460006,Contract Payments,04/11/2020,3799452-INV-20412,900.00,INTEGRATED SKILLS LTD.
Neighbourhoods and Climate Change,Technical Services CM0300,Third Party Payments,460006,Contract Payments,04/11/2020,3799452-INV-20413,"2,100.00",INTEGRATED SKILLS LTD.
Neighbourhoods and Climate Change,Technical Services CM0300,Third Party Payments,460053,Contract Payments,04/11/2020,3799457-24698,"1,514.28",JACK COUPE & SONS LTD T/A COUPE LINE.
Neighbourhoods and Climate Change,Technical Services CM0300,Supplies and Services,372009,Subscriptions E372,04/11/2020,3799369-3154568,"1,795.00",CIPFA LTD.
Neighbourhoods and Climate Change,Technical Services CM0300,Third Party Payments,410037,Rendered by Other Local Authorities,04/11/2020,3799478-62632,"1,892.78",KAEFER LTD.
"Regeneration, Economy and Growth",Transport and Contracted Services,Third Party Payments,430106,Rendered by Private Contractors,04/11/2020,3799569-2110,"4,293.60",R COOPER T/A DC TAXIS.
Chief Executive's Office,Communications Management,Supplies and Services,336005,Advertising E336,05/11/2020,3799834-34710514,791.66,NEWSQUEST (YORKSHIRE & NORTH EAST) LTD.
Neighbourhoods and Climate Change,Community Protection,Supplies and Services,338027,Services,05/11/2020,3799653-28441055,"1,305.00",AECOM LTD.
"Regeneration, Economy and Growth",Corporate Property and Land,Third Party Payments,430100,Rendered by Private Contractors,05/11/2020,3799678-4100698760,"2,980.00",BRIAN YOUNGER T/A B & E YOUNGER FLOORING.
"Regeneration, Economy and Growth",Corporate Property and Land,Third Party Payments,430100,Rendered by Private Contractors,05/11/2020,3799695-501,837.20,CEILINGS DIRECT LTD.
"Regeneration, Economy and Growth",Corporate Property and Land,Supplies and Services,304221,Equipment and Materials,05/11/2020,3799906-JE01999/1/TL/HLB,"1,050.00",T MANNERS & SONS LTD.
"Regeneration, Economy and Growth",Corporate Property and Land,Third Party Payments,430100,Rendered by Private Contractors,05/11/2020,3799708-9057,"1,240.00",COMMERCIAL COVERINGS LTD.
"Regeneration, Economy and Growth",Corporate Property and Land,Supplies and Services,304221,Equipment and Materials,05/11/2020,3799931-04023385,540.00,UK ELECTRIC LTD.*
"Regeneration, Economy and Growth",Corporate Property and Land,Supplies and Services,304221,Equipment and Materials,05/11/2020,3799936-6890354686,"10,642.20",VIESSMANN LTD.
"Regeneration, Economy and Growth",Corporate Property and Land,Third Party Payments,430100,Rendered by Private Contractors,05/11/2020,3799852-INV238433,720.00,POINTER FIRE LTD.
"Regeneration, Economy and Growth",Culture Sport and Tourism,Third Party Payments,430100,Rendered by Private Contractors,05/11/2020,3799888-15984,673.91,SMITH CONSTRUCTION (HECKINGTON) LTD.
"Regeneration, Economy and Growth",Development and Housing,Supplies and Services,304358,Equipment and Materials,05/11/2020,3799759-62474,"1,398.00",HF COLTON PLANT HIRE LTD.*
"Regeneration, Economy and Growth",Development and Housing,Supplies and Services,304358,Equipment and Materials,05/11/2020,3799759-62484,"2,596.80",HF COLTON PLANT HIRE LTD.*
"Regeneration, Economy and Growth",Development and Housing,Supplies and Services,304358,Equipment and Materials,05/11/2020,3799759-62507,"1,730.20",HF COLTON PLANT HIRE LTD.*
"Regeneration, Economy and Growth",Development and Housing,Supplies and Services,304358,Equipment and Materials,05/11/2020,3799759-62508,"1,073.00",HF COLTON PLANT HIRE LTD.*
"Regeneration, Economy and Growth",Development and Housing,Supplies and Services,342051,Computers and Communications,05/11/2020,3799661-9950765,998.86,ANCHOR COMPUTER SYSTEMS LTD.
"Regeneration, Economy and Growth",Development and Housing,Supplies and Services,384199,Miscellaneous Expenses,05/11/2020,3799758-011-614-242,593.32,HAYAT EXPRESS HOTEL.
Dedicated Schools Grant BG0015,DSG High Needs Block,Transport,230009,Contract Hire,05/11/2020,3799668-04164,588.00,ATLAS TAXIS CONSETT.
Neighbourhoods and Climate Change,Environmental Services,Third Party Payments,430100,Rendered by Private Contractors,05/11/2020,3799650-3010,"6,384.00",A & J GUTHRIE.
Neighbourhoods and Climate Change,Environmental Services,Third Party Payments,430100,Rendered by Private Contractors,05/11/2020,3799656-91R/20/92112,"1,245.00",ALAN M RANSON FUNERAL SERVICE.
Neighbourhoods and Climate Change,Environmental Services,Supplies and Services,384199,Miscellaneous Expenses,05/11/2020,3799657-83022,"3,650.00",ALAN SEWELL LTD.
Neighbourhoods and Climate Change,Environmental Services,Third Party Payments,430100,Rendered by Private Contractors,05/11/2020,3799650-3009,"5,822.54",A & J GUTHRIE.
Neighbourhoods and Climate Change,Environmental Services,Supplies and Services,384199,Miscellaneous Expenses,05/11/2020,3799767-2810,"4,215.00",IAN C LIDDLE T/A IC LIDDLE SERVICES.
Neighbourhoods and Climate Change,Environmental Services,Third Party Payments,430100,Rendered by Private Contractors,05/11/2020,3799767-2807,"2,171.47",IAN C LIDDLE T/A IC LIDDLE SERVICES.
Neighbourhoods and Climate Change,Environmental Services,Supplies and Services,304252,Equipment and Materials,05/11/2020,3799772-88045,"1,447.76",INITIAL PROJECTS LTD T/A ENITIAL.
Neighbourhoods and Climate Change,Environmental Services,Supplies and Services,384199,Miscellaneous Expenses,05/11/2020,3799915-0610,725.00,THE SKILL MILL LTD.
Adult and Health Services,Head of Adults,Transport,230005,Contract Hire,05/11/2020,3799655-0038,896.33,AIRPORT TAXIS 4U.
Adult and Health Services,Head of Adults,Transport,230005,Contract Hire,05/11/2020,3799875-SEP20,"2,040.00",S DUNCAN PRIVATE HIRE.
Adult and Health Services,Head of Adults,Transport,230005,Contract Hire,05/11/2020,3799668-04163,677.14,ATLAS TAXIS CONSETT.
Adult and Health Services,Head of Adults,Transport,230005,Contract Hire,05/11/2020,3799829-007,"1,566.00",MRS SAMANTHA MACKENZIE T/A SAM`S TAXIS.
Adult and Health Services,Head of Adults,Transport,230005,Contract Hire,05/11/2020,3799829-012,"1,566.00",MRS SAMANTHA MACKENZIE T/A SAM`S TAXIS.
Adult and Health Services,Head of Adults,Transport,230005,Contract Hire,05/11/2020,3799920-DM120-OCT,"3,344.00",TONY RIDLEY T/A COLORS TAXIS LTD.
Adult and Health Services,Head of Adults,Transport,230005,Contract Hire,05/11/2020,3799921-64-2020,520.00,TONYS TAXIS (A BIRCH).
Adult and Health Services,Head of Adults,Supplies and Services,384616,Miscellaneous Expenses,05/11/2020,3799672-0712021/MULB,547.68,BERNICIA GROUP LTD.*
Adult and Health Services,Head of Adults,Third Party Payments,478151,Purchase of Care,05/11/2020,3799735-20855,"2,079.00",ESSENTIAL CARE & SUPPORT LTD.
Adult and Health Services,Head of Adults,Third Party Payments,478151,Purchase of Care,05/11/2020,3799735-20856,"1,911.00",ESSENTIAL CARE & SUPPORT LTD.
Adult and Health Services,Head of Adults,Third Party Payments,478151,Purchase of Care,05/11/2020,3799743-0000002168,"2,998.80",FLEXIBLE SUPPORT OPTIONS LTD.
Adult and Health Services,Head of Adults,Supplies and Services,304259,Equipment and Materials,05/11/2020,3799700-CN30051108,708.48,CITRON HYGIENE UK LTD.
Children and Young Peoples Services,Head of Childrens Social Care,Third Party Payments,425021,Rendered by Voluntary Organisations,05/11/2020,3799660-ALEX055,"32,138.99",ALEXANDERS HOUSE.
Children and Young Peoples Services,Head of Childrens Social Care,Third Party Payments,425021,Rendered by Voluntary Organisations,05/11/2020,3799664-INV-1344,"22,755.00",ARTEMIS SUPPORT LTD.
Children and Young Peoples Services,Head of Childrens Social Care,Third Party Payments,440038,Other third party payments E440,05/11/2020,3799702-3838,800.00,CITY OF SUNDERLAND YMCA LTD.
Children and Young Peoples Services,Head of Childrens Social Care,Third Party Payments,440038,Other third party payments E440,05/11/2020,3799702-3839,800.00,CITY OF SUNDERLAND YMCA LTD.
Children and Young Peoples Services,Head of Childrens Social Care,Third Party Payments,440038,Other third party payments E440,05/11/2020,3799702-3848,800.00,CITY OF SUNDERLAND YMCA LTD.
Children and Young Peoples Services,Head of Childrens Social Care,Third Party Payments,440038,Other third party payments E440,05/11/2020,3799702-3849,800.00,CITY OF SUNDERLAND YMCA LTD.
Children and Young Peoples Services,Head of Childrens Social Care,Third Party Payments,440038,Other third party payments E440,05/11/2020,3799702-3858,800.00,CITY OF SUNDERLAND YMCA LTD.
Children and Young Peoples Services,Head of Childrens Social Care,Third Party Payments,440038,Other third party payments E440,05/11/2020,3799702-3859,800.00,CITY OF SUNDERLAND YMCA LTD.
Children and Young Peoples Services,Head of Childrens Social Care,Third Party Payments,425021,Rendered by Voluntary Organisations,05/11/2020,3799756-1286,"1,028.58",GREENLEAF HOUSE CO LTD.
Children and Young Peoples Services,Head of Childrens Social Care,Third Party Payments,425021,Rendered by Voluntary Organisations,05/11/2020,3799766-0008,"2,170.00",HUDSON HOUSE HOLIDAY LET.
Children and Young Peoples Services,Head of Childrens Social Care,Third Party Payments,425021,Rendered by Voluntary Organisations,05/11/2020,3799770-KR14/15/16/17,"27,016.48",INCLUDE IN AUTISM.
Children and Young Peoples Services,Head of Childrens Social Care,Third Party Payments,440038,Other third party payments E440,05/11/2020,3799785-72-20/10/20,"5,515.60",JIGSAW RECOVERY PROJECT CIC.
Children and Young Peoples Services,Head of Childrens Social Care,Third Party Payments,440038,Other third party payments E440,05/11/2020,3799785-73,560.00,JIGSAW RECOVERY PROJECT CIC.
Children and Young Peoples Services,Head of Childrens Social Care,Third Party Payments,440038,Other third party payments E440,05/11/2020,3799871-1634,"3,372.87",ROC SOLID LTD.
Children and Young Peoples Services,Head of Childrens Social Care,Third Party Payments,440038,Other third party payments E440,05/11/2020,3799871-1638,"2,015.36",ROC SOLID LTD.
Children and Young Peoples Services,Head of Childrens Social Care,Third Party Payments,440038,Other third party payments E440,05/11/2020,3799871-1642,"2,596.76",ROC SOLID LTD.
Children and Young Peoples Services,Head of Childrens Social Care,Third Party Payments,425021,Rendered by Voluntary Organisations,05/11/2020,3799870-5411,"33,472.00",ROC FAMILY SUPPORT LTD.
Children and Young Peoples Services,Head of Childrens Social Care,Third Party Payments,425021,Rendered by Voluntary Organisations,05/11/2020,3799870-5415,"7,840.00",ROC FAMILY SUPPORT LTD.
Children and Young Peoples Services,Head of Childrens Social Care,Third Party Payments,440038,Other third party payments E440,05/11/2020,3799870-5412,"22,160.00",ROC FAMILY SUPPORT LTD.
Children and Young Peoples Services,Head of Childrens Social Care,Third Party Payments,440046,Other third party payments E440,05/11/2020,3799870-5365,"22,160.00",ROC FAMILY SUPPORT LTD.
Children and Young Peoples Services,Head of Childrens Social Care,Third Party Payments,440046,Other third party payments E440,05/11/2020,3799940-INV-1203,556.32,WE CARE RECRUITMENT SOLUTIONS LTD.
Children and Young Peoples Services,Head of Childrens Social Care,Third Party Payments,425020,Rendered by Voluntary Organisations,05/11/2020,3799684-038/21,740.00,BUTTERWICK LTD..
Children and Young Peoples Services,Head of Childrens Social Care,Third Party Payments,425020,Rendered by Voluntary Organisations,05/11/2020,3799684-039/21,740.00,BUTTERWICK LTD..
Children and Young Peoples Services,Head of Childrens Social Care,Third Party Payments,425020,Rendered by Voluntary Organisations,05/11/2020,3799684-041/21,"1,850.00",BUTTERWICK LTD..
Children and Young Peoples Services,Head of Childrens Social Care,Third Party Payments,425020,Rendered by Voluntary Organisations,05/11/2020,3799684-042/21,900.00,BUTTERWICK LTD..
Children and Young Peoples Services,Head of Childrens Social Care,Third Party Payments,425020,Rendered by Voluntary Organisations,05/11/2020,3799684-045/21,"1,480.00",BUTTERWICK LTD..
Children and Young Peoples Services,Head of Childrens Social Care,Third Party Payments,425020,Rendered by Voluntary Organisations,05/11/2020,3799684-046/21,740.00,BUTTERWICK LTD..
Children and Young Peoples Services,Head of Childrens Social Care,Third Party Payments,425020,Rendered by Voluntary Organisations,05/11/2020,3799684-047/21,900.00,BUTTERWICK LTD..
Children and Young Peoples Services,Head of Childrens Social Care,Third Party Payments,425020,Rendered by Voluntary Organisations,05/11/2020,3799684-049/21,"1,480.00",BUTTERWICK LTD..
Children and Young Peoples Services,Head of Childrens Social Care,Third Party Payments,425020,Rendered by Voluntary Organisations,05/11/2020,3799893-8159,"3,735.63",ST OSWALD`S HOSPICE LTD.
Children and Young Peoples Services,Head of Childrens Social Care,Transport,230005,Contract Hire,05/11/2020,3799652-ADV4845,"2,180.00",ADVANCED TRAVEL.
Children and Young Peoples Services,Head of Education and Skills,Transport,230012,Contract Hire,05/11/2020,3799720-10/2020-M035,"2,057.00",DIANE GOOCH T/A COLLINS TAXIS.
Children and Young Peoples Services,Head of Education and Skills,Transport,230007,Contract Hire,05/11/2020,3799861-OCT20-4062,"1,375.13",RAYNERS COACHES.
Children and Young Peoples Services,Head of Education and Skills,Transport,230012,Contract Hire,05/11/2020,3799823-CHPK10-20,"1,541.90",MR CT WALKER T/A CW TAXIS.
Children and Young Peoples Services,Head of Education and Skills,Transport,230007,Contract Hire,05/11/2020,3799847-0956,"1,950.07",PETER`S PRIVATE HIRE/PETER BEST.
Children and Young Peoples Services,Head of Education and Skills,Transport,230007,Contract Hire,05/11/2020,3799817-008,799.00,MICHAEL TAYLOR (TAXIS).
Children and Young Peoples Services,Head of Education and Skills,Transport,230012,Contract Hire,05/11/2020,3799921-69-2020,"1,755.08",TONYS TAXIS (A BIRCH).
Children and Young Peoples Services,Head of Education and Skills,Transport,230034,Contract Hire,05/11/2020,3799698-5208/01,690.00,CHRISTOPHER MADDISON (TAXI).
Children and Young Peoples Services,Head of Education and Skills,Transport,230034,Contract Hire,05/11/2020,3799921-77-2020,"1,122.00",TONYS TAXIS (A BIRCH).
Children and Young Peoples Services,Head of Education and Skills,Transport,230034,Contract Hire,05/11/2020,3799921-78-2020,"1,386.00",TONYS TAXIS (A BIRCH).
Children and Young Peoples Services,Head of Education and Skills,Transport,230008,Contract Hire,05/11/2020,3799920-0002184,"2,074.00",TONY RIDLEY T/A COLORS TAXIS LTD.
Children and Young Peoples Services,Head of Education and Skills,Transport,230007,Contract Hire,05/11/2020,3799831-1OCTOBER2020,"1,551.25",NC TAXI`S.
Children and Young Peoples Services,Head of Education and Skills,Transport,230034,Contract Hire,05/11/2020,3799825-138,"1,020.00",MR JOHN ALLINSON T/A AALPHA TAXIS.
Children and Young Peoples Services,Head of Education and Skills,Transport,230034,Contract Hire,05/11/2020,3799783-1892,"1,312.50",JDS PRIVATE HIRE DURHAM.
Children and Young Peoples Services,Head of Education and Skills,Transport,230009,Contract Hire,05/11/2020,3799669-231020-7371,"1,662.73",AVALON TAXIS.
Children and Young Peoples Services,Head of Education and Skills,Transport,230009,Contract Hire,05/11/2020,3799669-300920-7371-2,"1,183.27",AVALON TAXIS.
Children and Young Peoples Services,Head of Education and Skills,Transport,230007,Contract Hire,05/11/2020,3799698-5269/02,608.00,CHRISTOPHER MADDISON (TAXI).
Children and Young Peoples Services,Head of Education and Skills,Transport,230007,Contract Hire,05/11/2020,3799826-099,"1,312.00",MR LJ TARRY T/A TARRY`S TAXI`S.
Children and Young Peoples Services,Head of Education and Skills,Transport,230007,Contract Hire,05/11/2020,3799744-1509,"1,089.99",FMR SILVA PITA.
Children and Young Peoples Services,Head of Education and Skills,Transport,230007,Contract Hire,05/11/2020,3799845-36,969.00,PETER NAYLOR.
Children and Young Peoples Services,Head of Education and Skills,Transport,230035,Contract Hire,05/11/2020,3799823-HERM10-20,"1,222.40",MR CT WALKER T/A CW TAXIS.
Children and Young Peoples Services,Head of Education and Skills,Transport,230007,Contract Hire,05/11/2020,3799845-35,"1,501.44",PETER NAYLOR.
Children and Young Peoples Services,Head of Education and Skills,Transport,235005,Public Transport,05/11/2020,3799941-16203,"11,742.00",WEARDALE MOTOR SERVICES LTD.
Children and Young Peoples Services,Head of Education and Skills,Transport,230007,Contract Hire,05/11/2020,3799942-7382,780.47,WEARDALE PRIVATE HIRE.
Children and Young Peoples Services,Head of Education and Skills,Transport,230012,Contract Hire,05/11/2020,3799720-10/2020-M033,"2,041.60",DIANE GOOCH T/A COLLINS TAXIS.
Children and Young Peoples Services,Head of Education and Skills,Transport,230034,Contract Hire,05/11/2020,3799787-DIALACAB3403,924.00,JL EBDON. T/A DIAL-A-CAB.
Children and Young Peoples Services,Head of Education and Skills,Transport,230035,Contract Hire,05/11/2020,3799720-10/2020-2067,"1,794.08",DIANE GOOCH T/A COLLINS TAXIS.
Children and Young Peoples Services,Head of Education and Skills,Transport,230007,Contract Hire,05/11/2020,3799898-00745OCT,"1,127.20",STEPHEN VALLANCE T/A SELECT CABS.
Children and Young Peoples Services,Head of Education and Skills,Transport,230007,Contract Hire,05/11/2020,3799744-1510,965.94,FMR SILVA PITA.
Children and Young Peoples Services,Head of Education and Skills,Transport,230012,Contract Hire,05/11/2020,3799868-330,"1,150.22",ROBBIE`S PRIVATE HIRE.
Children and Young Peoples Services,Head of Education and Skills,Transport,230009,Contract Hire,05/11/2020,3799827-107,930.00,MR NEIL LEONARD T/A LENNY`S TAXIS.
Children and Young Peoples Services,Head of Education and Skills,Transport,230007,Contract Hire,05/11/2020,3799861-OCT20-4005,"3,620.80",RAYNERS COACHES.
Children and Young Peoples Services,Head of Education and Skills,Transport,230007,Contract Hire,05/11/2020,3799823-DJS10-20,"1,540.03",MR CT WALKER T/A CW TAXIS.
Children and Young Peoples Services,Head of Education and Skills,Transport,230007,Contract Hire,05/11/2020,3799731-5124/1020,726.56,ELLIOTTS OF TRIMDON.
Children and Young Peoples Services,Head of Education and Skills,Transport,230034,Contract Hire,05/11/2020,3799715-SEDGE311020,765.00,D IRVING T/A BJ TAXIS.
Children and Young Peoples Services,Head of Education and Skills,Transport,230006,Contract Hire,05/11/2020,3799668-04159,"1,190.00",ATLAS TAXIS CONSETT.
Children and Young Peoples Services,Head of Education and Skills,Transport,230008,Contract Hire,05/11/2020,3799720-10/2020-A153,"3,009.00",DIANE GOOCH T/A COLLINS TAXIS.
Children and Young Peoples Services,Head of Education and Skills,Transport,230008,Contract Hire,05/11/2020,3799787-31/10/2020H,"2,143.36",JL EBDON. T/A DIAL-A-CAB.
Children and Young Peoples Services,Head of Education and Skills,Transport,230008,Contract Hire,05/11/2020,3799799-A097/OCT,714.00,KENNAS CABS.
Children and Young Peoples Services,Head of Education and Skills,Transport,230008,Contract Hire,05/11/2020,3799808-45,"2,074.00",M&C`S CABS LTD.
Children and Young Peoples Services,Head of Education and Skills,Transport,230008,Contract Hire,05/11/2020,3799816-OCTOBER,"1,217.71",MICHAEL A BODDY T/A MBS TAXIS.
Children and Young Peoples Services,Head of Education and Skills,Transport,230008,Contract Hire,05/11/2020,3799848-62,"1,774.46",PHILLIP BOYD T/A FILS TAXIS.
Children and Young Peoples Services,Head of Education and Skills,Transport,230007,Contract Hire,05/11/2020,3799880-OCTOBER20,"1,808.00",SHAUN MILLS T/A ASM TRAVEL.
Children and Young Peoples Services,Head of Education and Skills,Transport,230008,Contract Hire,05/11/2020,3799882-6027,"2,242.45",SHOTTON PRIVATE HIRE.
Children and Young Peoples Services,Head of Education and Skills,Transport,230006,Contract Hire,05/11/2020,3799897-2101,"2,159.00",STEPHEN REED T/A STEVE`S TAXIS.
Children and Young Peoples Services,Head of Education and Skills,Transport,230007,Contract Hire,05/11/2020,3799668-04160,683.34,ATLAS TAXIS CONSETT.
Children and Young Peoples Services,Head of Education and Skills,Transport,230007,Contract Hire,05/11/2020,3799845-37,979.20,PETER NAYLOR.
Children and Young Peoples Services,Head of Education and Skills,Transport,230008,Contract Hire,05/11/2020,3799749-6,663.00,GARY BRUNTON`S TAXI.
Children and Young Peoples Services,Head of Education and Skills,Transport,230007,Contract Hire,05/11/2020,3799750-ST021,"1,122.58",GARY JACKSON PRIVATE HIRE.
Children and Young Peoples Services,Head of Education and Skills,Transport,230003,Contract Hire,05/11/2020,3799895-55940,"2,958.00",STANLEY TRAVEL (NORTH EAST) LTD.
Children and Young Peoples Services,Head of Education and Skills,Supplies and Services,384199,Miscellaneous Expenses,05/11/2020,3799742-19,"3,842.74",FIRST POINT TRAINING LTD T/A DURHAMWORKS.
Children and Young Peoples Services,Head of Education and Skills,Supplies and Services,384199,Miscellaneous Expenses,05/11/2020,3799742-20,"3,795.00",FIRST POINT TRAINING LTD T/A DURHAMWORKS.
Children and Young Peoples Services,Head of Education and Skills,Transport,230008,Contract Hire,05/11/2020,3799703-E031-KC1020,"2,796.90",CJ`S EXECUTIVE TRAVEL LTD.
Children and Young Peoples Services,Head of Education and Skills,Transport,230008,Contract Hire,05/11/2020,3799807-196,"1,170.00",M BUTCHER T/A M & M`S TAXIS.
Children and Young Peoples Services,Head of Education and Skills,Transport,230008,Contract Hire,05/11/2020,3799662-OCTOBER20,"1,638.00",ANDREW PYGALL T/A ARP TAXIS.
Children and Young Peoples Services,Head of Education and Skills,Transport,230008,Contract Hire,05/11/2020,3799703-N115-CB1020,"1,785.00",CJ`S EXECUTIVE TRAVEL LTD.
Children and Young Peoples Services,Head of Education and Skills,Transport,230008,Contract Hire,05/11/2020,3799794-1118,"2,850.00",K & R TAXIS (STANLEY).
Children and Young Peoples Services,Head of Education and Skills,Transport,230008,Contract Hire,05/11/2020,3799823-EL110-20,"1,838.90",MR CT WALKER T/A CW TAXIS.
Children and Young Peoples Services,Head of Education and Skills,Transport,230008,Contract Hire,05/11/2020,3799823-EL210-20,"1,512.00",MR CT WALKER T/A CW TAXIS.
Children and Young Peoples Services,Head of Education and Skills,Transport,230008,Contract Hire,05/11/2020,3799828-32B,"1,404.71",MR RAYMOND RENWICK T/A RAY`S TAXIS & MINIBUSES.
Children and Young Peoples Services,Head of Education and Skills,Transport,230008,Contract Hire,05/11/2020,3799847-0961,"2,718.01",PETER`S PRIVATE HIRE/PETER BEST.
Children and Young Peoples Services,Head of Education and Skills,Transport,230008,Contract Hire,05/11/2020,3799847-0967,"1,798.00",PETER`S PRIVATE HIRE/PETER BEST.
Children and Young Peoples Services,Head of Education and Skills,Transport,230008,Contract Hire,05/11/2020,3799868-329,"1,564.29",ROBBIE`S PRIVATE HIRE.
Children and Young Peoples Services,Head of Education and Skills,Transport,230008,Contract Hire,05/11/2020,3799744-1508,"1,491.58",FMR SILVA PITA.
Children and Young Peoples Services,Head of Education and Skills,Transport,230008,Contract Hire,05/11/2020,3799686-W112016,"1,515.00",C & R TAXIS.
Children and Young Peoples Services,Head of Education and Skills,Transport,230008,Contract Hire,05/11/2020,3799783-1915,"2,760.00",JDS PRIVATE HIRE DURHAM.
Children and Young Peoples Services,Head of Education and Skills,Transport,230008,Contract Hire,05/11/2020,3799827-112,"1,597.00",MR NEIL LEONARD T/A LENNY`S TAXIS.
Children and Young Peoples Services,Head of Education and Skills,Transport,230008,Contract Hire,05/11/2020,3799833-261,"1,680.00",NEVILLE FORBES T/A FORBES TAXIS.
Children and Young Peoples Services,Head of Education and Skills,Transport,230008,Contract Hire,05/11/2020,3799748-101870,"1,980.00",G & P JOHNSON LTD T/A NIGHTINGALE COACHES.
Children and Young Peoples Services,Head of Education and Skills,Transport,230008,Contract Hire,05/11/2020,3799662-OCTOBER202,"1,714.96",ANDREW PYGALL T/A ARP TAXIS.
Children and Young Peoples Services,Head of Education and Skills,Transport,230006,Contract Hire,05/11/2020,3799824-E102OCT,821.20,MR DOMINICK JONES T/A DJ PRIVATE HIRE.
Children and Young Peoples Services,Head of Education and Skills,Transport,230006,Contract Hire,05/11/2020,3799843-SC-603,"1,414.06",PAUL BURRELL T/A PAUL BURRELL TAXIS.
Children and Young Peoples Services,Head of Education and Skills,Transport,230008,Contract Hire,05/11/2020,3799847-0957,"3,163.70",PETER`S PRIVATE HIRE/PETER BEST.
Children and Young Peoples Services,Head of Education and Skills,Transport,230008,Contract Hire,05/11/2020,3799847-0958,"1,676.54",PETER`S PRIVATE HIRE/PETER BEST.
Children and Young Peoples Services,Head of Education and Skills,Transport,230008,Contract Hire,05/11/2020,3799847-0962,666.74,PETER`S PRIVATE HIRE/PETER BEST.
Children and Young Peoples Services,Head of Education and Skills,Transport,230008,Contract Hire,05/11/2020,3799847-0965,"1,462.00",PETER`S PRIVATE HIRE/PETER BEST.
Children and Young Peoples Services,Head of Education and Skills,Transport,230008,Contract Hire,05/11/2020,3799868-328,"1,168.24",ROBBIE`S PRIVATE HIRE.
Children and Young Peoples Services,Head of Education and Skills,Transport,230008,Contract Hire,05/11/2020,3799868-331,611.49,ROBBIE`S PRIVATE HIRE.
Children and Young Peoples Services,Head of Education and Skills,Transport,230006,Contract Hire,05/11/2020,3799882-6016,"2,210.00",SHOTTON PRIVATE HIRE.
Children and Young Peoples Services,Head of Education and Skills,Transport,230008,Contract Hire,05/11/2020,3799882-6019,"2,380.00",SHOTTON PRIVATE HIRE.
Children and Young Peoples Services,Head of Education and Skills,Transport,230008,Contract Hire,05/11/2020,3799686-S006013,"1,082.04",C & R TAXIS.
Children and Young Peoples Services,Head of Education and Skills,Transport,230008,Contract Hire,05/11/2020,3799720-10/2020-S037,"2,845.46",DIANE GOOCH T/A COLLINS TAXIS.
Children and Young Peoples Services,Head of Education and Skills,Transport,230008,Contract Hire,05/11/2020,3799789-E00509,"1,759.16",JOVIAL PRIVATE HIRE.
Children and Young Peoples Services,Head of Education and Skills,Transport,230008,Contract Hire,05/11/2020,3799789-M00930,"1,399.10",JOVIAL PRIVATE HIRE.
Children and Young Peoples Services,Head of Education and Skills,Transport,230008,Contract Hire,05/11/2020,3799789-M01730,827.39,JOVIAL PRIVATE HIRE.
Children and Young Peoples Services,Head of Education and Skills,Transport,230008,Contract Hire,05/11/2020,3799794-1119,"2,244.00",K & R TAXIS (STANLEY).
Children and Young Peoples Services,Head of Education and Skills,Transport,230006,Contract Hire,05/11/2020,3799823-DT210-20,814.98,MR CT WALKER T/A CW TAXIS.
Children and Young Peoples Services,Head of Education and Skills,Transport,230008,Contract Hire,05/11/2020,3799827-108,"1,536.97",MR NEIL LEONARD T/A LENNY`S TAXIS.
Children and Young Peoples Services,Head of Education and Skills,Transport,230008,Contract Hire,05/11/2020,3799847-0966,"1,258.00",PETER`S PRIVATE HIRE/PETER BEST.
Children and Young Peoples Services,Head of Education and Skills,Transport,230005,Contract Hire,05/11/2020,3799847-0964,"1,482.00",PETER`S PRIVATE HIRE/PETER BEST.
Children and Young Peoples Services,Head of Education and Skills,Transport,230008,Contract Hire,05/11/2020,3799861-OCT20-M008,"2,369.80",RAYNERS COACHES.
Children and Young Peoples Services,Head of Education and Skills,Transport,230006,Contract Hire,05/11/2020,3799920-0002186,"1,479.00",TONY RIDLEY T/A COLORS TAXIS LTD.
Children and Young Peoples Services,Head of Education and Skills,Transport,230008,Contract Hire,05/11/2020,3799667-DCC03OCT20,"2,244.00",ATLAS TAXIS BISHOP AUCKLAND.
Children and Young Peoples Services,Head of Education and Skills,Transport,230008,Contract Hire,05/11/2020,3799667-DCC07OCT2020,"2,946.54",ATLAS TAXIS BISHOP AUCKLAND.
Children and Young Peoples Services,Head of Education and Skills,Transport,230008,Contract Hire,05/11/2020,3799667-DCC08OCT20,"3,046.74",ATLAS TAXIS BISHOP AUCKLAND.
Children and Young Peoples Services,Head of Education and Skills,Transport,230008,Contract Hire,05/11/2020,3799667-DCC11OCT20,"2,244.00",ATLAS TAXIS BISHOP AUCKLAND.
Children and Young Peoples Services,Head of Education and Skills,Transport,230008,Contract Hire,05/11/2020,3799669-231020-N325,"1,825.80",AVALON TAXIS.
Children and Young Peoples Services,Head of Education and Skills,Transport,230008,Contract Hire,05/11/2020,3799669-30920-N325-2,"1,396.20",AVALON TAXIS.
Children and Young Peoples Services,Head of Education and Skills,Transport,230008,Contract Hire,05/11/2020,3799686-W030013,"1,959.00",C & R TAXIS.
Children and Young Peoples Services,Head of Education and Skills,Transport,230008,Contract Hire,05/11/2020,3799703-M011-AA0920,"2,102.20",CJ`S EXECUTIVE TRAVEL LTD.
Children and Young Peoples Services,Head of Education and Skills,Transport,230008,Contract Hire,05/11/2020,3799703-M011-AA1020,"1,786.87",CJ`S EXECUTIVE TRAVEL LTD.
Children and Young Peoples Services,Head of Education and Skills,Transport,230008,Contract Hire,05/11/2020,3799720-10/2020-W016,"2,703.00",DIANE GOOCH T/A COLLINS TAXIS.
Children and Young Peoples Services,Head of Education and Skills,Transport,230008,Contract Hire,05/11/2020,3799784-3021,"1,562.13",JEFF ANDERSON COACHES LTD.
Children and Young Peoples Services,Head of Education and Skills,Transport,230016,Contract Hire,05/11/2020,3799787-31/10/2020A,994.00,JL EBDON. T/A DIAL-A-CAB.
Children and Young Peoples Services,Head of Education and Skills,Transport,230006,Contract Hire,05/11/2020,3799794-1123,"2,499.51",K & R TAXIS (STANLEY).
Children and Young Peoples Services,Head of Education and Skills,Transport,230016,Contract Hire,05/11/2020,3799807-195,680.00,M BUTCHER T/A M & M`S TAXIS.
Children and Young Peoples Services,Head of Education and Skills,Transport,230008,Contract Hire,05/11/2020,3799807-197,"1,054.00",M BUTCHER T/A M & M`S TAXIS.
Children and Young Peoples Services,Head of Education and Skills,Transport,230008,Contract Hire,05/11/2020,3799822-W036/9,"2,077.91",MR A MILLWARD T/A SWISS CABS PRIVATE HIRE.
Children and Young Peoples Services,Head of Education and Skills,Transport,230008,Contract Hire,05/11/2020,3799823-OAK110-20,"1,713.60",MR CT WALKER T/A CW TAXIS.
Children and Young Peoples Services,Head of Education and Skills,Transport,230008,Contract Hire,05/11/2020,3799829-010,"1,309.00",MRS SAMANTHA MACKENZIE T/A SAM`S TAXIS.
Children and Young Peoples Services,Head of Education and Skills,Transport,230008,Contract Hire,05/11/2020,3799829-W162-006,"1,386.00",MRS SAMANTHA MACKENZIE T/A SAM`S TAXIS.
Children and Young Peoples Services,Head of Education and Skills,Transport,230008,Contract Hire,05/11/2020,3799861-OCT20,"1,708.50",RAYNERS COACHES.
Children and Young Peoples Services,Head of Education and Skills,Transport,230008,Contract Hire,05/11/2020,3799882-6020,"2,476.90",SHOTTON PRIVATE HIRE.
Children and Young Peoples Services,Head of Education and Skills,Transport,230008,Contract Hire,05/11/2020,3799882-6022,"2,604.74",SHOTTON PRIVATE HIRE.
Children and Young Peoples Services,Head of Education and Skills,Transport,230008,Contract Hire,05/11/2020,3799882-6025,"1,858.78",SHOTTON PRIVATE HIRE.
Children and Young Peoples Services,Head of Education and Skills,Transport,230008,Contract Hire,05/11/2020,3799920-0002182,"3,638.00",TONY RIDLEY T/A COLORS TAXIS LTD.
Children and Young Peoples Services,Head of Education and Skills,Transport,230008,Contract Hire,05/11/2020,3799920-0002183,"1,649.00",TONY RIDLEY T/A COLORS TAXIS LTD.
Children and Young Peoples Services,Head of Education and Skills,Transport,230008,Contract Hire,05/11/2020,3799666-792,"2,205.00",AT TAXIS LTD.
Children and Young Peoples Services,Head of Education and Skills,Transport,230008,Contract Hire,05/11/2020,3799686-W046013,"1,896.99",C & R TAXIS.
Children and Young Peoples Services,Head of Education and Skills,Transport,230008,Contract Hire,05/11/2020,3799827-111,"1,520.25",MR NEIL LEONARD T/A LENNY`S TAXIS.
Children and Young Peoples Services,Head of Education and Skills,Transport,230008,Contract Hire,05/11/2020,3799942-7391,"2,511.90",WEARDALE PRIVATE HIRE.
Children and Young Peoples Services,Head of Education and Skills,Transport,230006,Contract Hire,05/11/2020,3799921-63-2020,"2,254.56",TONYS TAXIS (A BIRCH).
Children and Young Peoples Services,Head of Education and Skills,Transport,230010,Contract Hire,05/11/2020,3799806-251,"1,255.62",LUMLEY TAXIS.
Children and Young Peoples Services,Head of Education and Skills,Transport,230010,Contract Hire,05/11/2020,3799882-6026,"2,210.00",SHOTTON PRIVATE HIRE.
Children and Young Peoples Services,Head of Education and Skills,Transport,230010,Contract Hire,05/11/2020,3799900-20200004,824.00,STEVE`S CABS (TAXIS).
Children and Young Peoples Services,Head of Education and Skills,Transport,230010,Contract Hire,05/11/2020,3799900-20200004-SEPT,732.00,STEVE`S CABS (TAXIS).
Children and Young Peoples Services,Head of Education and Skills,Transport,230010,Contract Hire,05/11/2020,3799900-2020005,"1,037.00",STEVE`S CABS (TAXIS).
Children and Young Peoples Services,Head of Education and Skills,Transport,230010,Contract Hire,05/11/2020,3799943-1020,"1,309.00",WEST AUCKLAND TOWN TRAVEL (WATT).
Children and Young Peoples Services,Head of Education and Skills,Transport,230006,Contract Hire,05/11/2020,3799825-140,543.00,MR JOHN ALLINSON T/A AALPHA TAXIS.
Children and Young Peoples Services,Head of Education and Skills,Transport,230006,Contract Hire,05/11/2020,3799882-6017,780.00,SHOTTON PRIVATE HIRE.
Children and Young Peoples Services,Head of Education and Skills,Transport,230006,Contract Hire,05/11/2020,3799882-6023,824.00,SHOTTON PRIVATE HIRE.
Children and Young Peoples Services,Head of Education and Skills,Transport,230006,Contract Hire,05/11/2020,3799886-3021-OCT,"1,499.48",SIMONS TAXIS.
Children and Young Peoples Services,Head of Education and Skills,Transport,230004,Contract Hire,05/11/2020,3799942-7384,816.00,WEARDALE PRIVATE HIRE.
Resources BK0010,Legal & Democratic Services,Supplies and Services,338025,Services,05/11/2020,3799754-F2112,720.00,GORDON FLETCHER & SONS LTD.
Resources BK0010,Legal & Democratic Services,Supplies and Services,338042,Services,05/11/2020,3799925-268296/INVGM344,500.00,TRINITY CHAMBERS.
Resources BK0010,Legal & Democratic Services,Supplies and Services,338042,Services,05/11/2020,3799925-284285/INVGR276,650.00,TRINITY CHAMBERS.
Adult and Health Services,Public Health CC0450,Third Party Payments,460803,Contract Payments,05/11/2020,3799850-17378/14,"7,326.42",PIONEERING CARE PARTNERSHIP.
Neighbourhoods and Climate Change,Technical Services CM0300,Stock A926,926004,Stock,05/11/2020,3799705-400026674,"17,199.00",CLEVELAND POTASH LTD T/A ICL FERTILIZERS.
Neighbourhoods and Climate Change,Technical Services CM0300,Stock A926,926004,Stock,05/11/2020,3799705-400026675,"14,882.70",CLEVELAND POTASH LTD T/A ICL FERTILIZERS.
Neighbourhoods and Climate Change,Technical Services CM0300,Third Party Payments,430127,Rendered by Private Contractors,05/11/2020,3799779-5306005,554.00,JA GILSON (AGRICULTURAL CONTRACTORS) LTD.
Neighbourhoods and Climate Change,Technical Services CM0300,Third Party Payments,430128,Rendered by Private Contractors,05/11/2020,3799809-5963,528.00,MAKEPEACE MOTORS.
Neighbourhoods and Climate Change,Technical Services CM0300,Stock A926,926900,Stock in hand-Inventory system,05/11/2020,3799917-NSIN00045356,"2,005.61",THOMAS OWEN & SONS (NEWCASTLE) LTD.
Neighbourhoods and Climate Change,Technical Services CM0300,Stock A926,926900,Stock in hand-Inventory system,05/11/2020,3799948-145389004,"9,900.00",ZG LIGHTING (UK) LTD.
Neighbourhoods and Climate Change,Technical Services CM0300,Stock A926,926900,Stock in hand-Inventory system,05/11/2020,3799948-145390531,"32,478.90",ZG LIGHTING (UK) LTD.
Neighbourhoods and Climate Change,Technical Services CM0300,Third Party Payments,430100,Rendered by Private Contractors,05/11/2020,3799857-12809,965.29,QUANTUM POWER CONNECTIONS LTD.
Neighbourhoods and Climate Change,Technical Services CM0300,Third Party Payments,430100,Rendered by Private Contractors,05/11/2020,3799857-12840,928.00,QUANTUM POWER CONNECTIONS LTD.
Neighbourhoods and Climate Change,Technical Services CM0300,Third Party Payments,430100,Rendered by Private Contractors,05/11/2020,3799857-12859,"23,906.62",QUANTUM POWER CONNECTIONS LTD.
Neighbourhoods and Climate Change,Technical Services CM0300,Supplies and Services,304221,Equipment and Materials,05/11/2020,3799654-30339984,"1,188.28",AGGREGATE INDUSTRIES UK LTD.
Neighbourhoods and Climate Change,Technical Services CM0300,Supplies and Services,304221,Equipment and Materials,05/11/2020,3799654-30525945,606.34,AGGREGATE INDUSTRIES UK LTD.
Neighbourhoods and Climate Change,Technical Services CM0300,Supplies and Services,304221,Equipment and Materials,05/11/2020,3799654-30525946,"1,209.02",AGGREGATE INDUSTRIES UK LTD.
Neighbourhoods and Climate Change,Technical Services CM0300,Supplies and Services,304221,Equipment and Materials,05/11/2020,3799654-30538735,"1,201.70",AGGREGATE INDUSTRIES UK LTD.
Neighbourhoods and Climate Change,Technical Services CM0300,Supplies and Services,304221,Equipment and Materials,05/11/2020,3799654-30538736,"1,205.36",AGGREGATE INDUSTRIES UK LTD.
Neighbourhoods and Climate Change,Technical Services CM0300,Third Party Payments,430100,Rendered by Private Contractors,05/11/2020,3799793-1292,"2,312.50",JW BAINBRIDGE CONTRACTORS LTD.
Neighbourhoods and Climate Change,Technical Services CM0300,Third Party Payments,430100,Rendered by Private Contractors,05/11/2020,3799796-62631,"1,454.97",KAEFER LTD.
Neighbourhoods and Climate Change,Technical Services CM0300,Supplies and Services,304358,Equipment and Materials,05/11/2020,3799800-3182,991.00,KEVIN SNOWDON GROUNDWORKS LTD.
Neighbourhoods and Climate Change,Technical Services CM0300,Supplies and Services,304221,Equipment and Materials,05/11/2020,3799810-172537,521.48,MALLATITE LTD T/A MALLATITE PLASTICS LTD.
Neighbourhoods and Climate Change,Technical Services CM0300,Supplies and Services,304221,Equipment and Materials,05/11/2020,3799862-SI2030511,"4,658.25",REDIWELD RUBBER & PLASTICS LTD.
Neighbourhoods and Climate Change,Technical Services CM0300,Supplies and Services,304358,Equipment and Materials,05/11/2020,3799865-3977,"1,087.00",REUBEN SMITH (PLANT HIRE) LTD.
Neighbourhoods and Climate Change,Technical Services CM0300,Third Party Payments,460053,Contract Payments,05/11/2020,3799780-24719,575.02,JACK COUPE & SONS LTD T/A COUPE LINE.
Neighbourhoods and Climate Change,Technical Services CM0300,Third Party Payments,460053,Contract Payments,05/11/2020,3799780-24740,"3,543.67",JACK COUPE & SONS LTD T/A COUPE LINE.
"Regeneration, Economy and Growth",Business Durham CL0850,Premises,120009,Energy Costs,06/11/2020,3800016-000008613111,"2,597.35",EDF ENERGY CUSTOMERS PLC T/A EDF ENERGY.
"Regeneration, Economy and Growth",Business Durham CL0850,Supplies and Services,338078,Services,06/11/2020,3800236-INV-39408,"5,839.62",VISTECH SERVICES.
"Regeneration, Economy and Growth",Business Durham CL0850,Premises,106082,Centrally Controlled Rep and Maint,06/11/2020,3799954-45319737-61,514.49,ADT FIRE & SECURITY PLC.
"Regeneration, Economy and Growth",Business Durham CL0850,Third Party Payments,460305,Contract Payments,06/11/2020,3800230-RED-11-2020-027,"13,154.74",UMI COMMERCIAL LTD.
"Regeneration, Economy and Growth",Corporate Director - Regeneration Economy & Growth,Supplies and Services,338066,Services,06/11/2020,3799972-SIN019219,"35,240.50",BLOOM PROCUREMENT SERVICES LTD (FORMERLY NEPRO LTD).
"Regeneration, Economy and Growth",Corporate Property and Land,Premises,106080,Centrally Controlled Rep and Maint,06/11/2020,3800044-9368,"1,000.36",GREEN TEAM PARTNERSHIP.
"Regeneration, Economy and Growth",Corporate Property and Land,Third Party Payments,430100,Rendered by Private Contractors,06/11/2020,3800026-8346,"12,117.07",EURO GROUP UK.
"Regeneration, Economy and Growth",Corporate Property and Land,Supplies and Services,304221,Equipment and Materials,06/11/2020,3800234-6890353889,750.00,VIESSMANN LTD.
"Regeneration, Economy and Growth",Corporate Property and Land,Supplies and Services,304221,Equipment and Materials,06/11/2020,3800078-0108/00211646,"1,837.80",JT DOVE LTD.
"Regeneration, Economy and Growth",Corporate Property and Land,Supplies and Services,304221,Equipment and Materials,06/11/2020,3800078-0108/00211649,668.42,JT DOVE LTD.
"Regeneration, Economy and Growth",Corporate Property and Land,Third Party Payments,430100,Rendered by Private Contractors,06/11/2020,3800017-059-268335,"1,400.00",EDMUNDSON ELECTRICAL LTD.
"Regeneration, Economy and Growth",Corporate Property and Land,Premises,106082,Centrally Controlled Rep and Maint,06/11/2020,3800187-115615,"1,780.00",SMITH OF DERBY LTD.
"Regeneration, Economy and Growth",Corporate Property and Land,Premises,120021,Energy Costs,06/11/2020,3799976-992393207,534.20,BRITISH GAS BUSINESS.
Resources BK0010,COVID19 - Resources - CAC,Supplies and Services,324117,Provisions E324,06/11/2020,3800035-9002221,"5,061.89",FREEMAN CATERING BUTCHERS LTD.
"Regeneration, Economy and Growth",Culture Sport and Tourism,Premises,106080,Centrally Controlled Rep and Maint,06/11/2020,3799987-20503370,961.15,CENTRICA BUSINESS SOLUTIONS UK LTD.*
"Regeneration, Economy and Growth",Culture Sport and Tourism,Premises,106082,Centrally Controlled Rep and Maint,06/11/2020,3799952-90140970,"1,810.12",ABACUS LIGHTING LTD.
"Regeneration, Economy and Growth",Culture Sport and Tourism,Premises,106080,Centrally Controlled Rep and Maint,06/11/2020,3799987-20503371,774.78,CENTRICA BUSINESS SOLUTIONS UK LTD.*
"Regeneration, Economy and Growth",Culture Sport and Tourism,Premises,145023,Cleaning and Domestic Supplies,06/11/2020,3799992-CN30050438,"1,562.85",CITRON HYGIENE UK LTD.
"Regeneration, Economy and Growth",Culture Sport and Tourism,Premises,106080,Centrally Controlled Rep and Maint,06/11/2020,3799952-90140984,"2,484.11",ABACUS LIGHTING LTD.
"Regeneration, Economy and Growth",Culture Sport and Tourism,Supplies and Services,372009,Subscriptions E372,06/11/2020,3800154-SIN1559269,"1,533.23",PPL PRS LTD.
"Regeneration, Economy and Growth",Culture Sport and Tourism,Supplies and Services,312013,Newspapers books and periodicals E312,06/11/2020,3799963-6362212,544.09,ASKEWS & HOLTS LIBRARY SERVICES LTD.
"Regeneration, Economy and Growth",Culture Sport and Tourism,Premises,106080,Centrally Controlled Rep and Maint,06/11/2020,3800205-146907,620.00,TESGL LTD T/A SSE ENTERPRISE ENERGY SOLUTIONS.
"Regeneration, Economy and Growth",Culture Sport and Tourism,Premises,106080,Centrally Controlled Rep and Maint,06/11/2020,3800227-DLA05979,800.00,TYCO FIRE & INTEGRATED SOLUTIONS (UK) LTD.
"Regeneration, Economy and Growth",Development and Housing,Premises,106082,Centrally Controlled Rep and Maint,06/11/2020,3799960-34663,525.00,AQUAJET DRAIN CLEANING LTD.
"Regeneration, Economy and Growth",Development and Housing,Supplies and Services,384199,Miscellaneous Expenses,06/11/2020,3800207-3797868,"1,000.00",THE CABINET OFFICE..
Resources BK0010,Digital and Customer Services,Supplies and Services,304303,Equipment and Materials,06/11/2020,3800063-5039460,549.38,INSIGHT DIRECT (UK) LTD.
Neighbourhoods and Climate Change,Environmental Services,Third Party Payments,430101,Rendered by Private Contractors,06/11/2020,3800010-IV1311871,"1,834.33",DIRECT TYRE MANAGEMENT LTD (DTM).
Neighbourhoods and Climate Change,Environmental Services,Third Party Payments,430101,Rendered by Private Contractors,06/11/2020,3800010-IV1326494,"4,485.69",DIRECT TYRE MANAGEMENT LTD (DTM).
Neighbourhoods and Climate Change,Environmental Services,Transport,215005,Running Costs of Vehicles,06/11/2020,3800137-654901,"30,855.08",OIL NRG LTD.
Neighbourhoods and Climate Change,Environmental Services,Third Party Payments,430101,Rendered by Private Contractors,06/11/2020,3800010-IV1308724,"3,802.57",DIRECT TYRE MANAGEMENT LTD (DTM).
Neighbourhoods and Climate Change,Environmental Services,Third Party Payments,430101,Rendered by Private Contractors,06/11/2020,3800010-IV1316743,"3,137.92",DIRECT TYRE MANAGEMENT LTD (DTM).
Neighbourhoods and Climate Change,Environmental Services,Third Party Payments,430101,Rendered by Private Contractors,06/11/2020,3800010-IV1320886,"3,617.64",DIRECT TYRE MANAGEMENT LTD (DTM).
Neighbourhoods and Climate Change,Environmental Services,Third Party Payments,430101,Rendered by Private Contractors,06/11/2020,3800010-IV1326497,"1,463.68",DIRECT TYRE MANAGEMENT LTD (DTM).
Neighbourhoods and Climate Change,Environmental Services,Transport,230710,Contract Hire,06/11/2020,3800185-220/21/0001540,"17,453.40",SIEMENS FINANCIAL SERVICES LTD.
Neighbourhoods and Climate Change,Environmental Services,Third Party Payments,430101,Rendered by Private Contractors,06/11/2020,3800010-IV1300760,"2,085.46",DIRECT TYRE MANAGEMENT LTD (DTM).
Neighbourhoods and Climate Change,Environmental Services,Third Party Payments,430101,Rendered by Private Contractors,06/11/2020,3800010-IV1314244,"2,137.58",DIRECT TYRE MANAGEMENT LTD (DTM).
Neighbourhoods and Climate Change,Environmental Services,Third Party Payments,430101,Rendered by Private Contractors,06/11/2020,3800010-IV1318633,677.88,DIRECT TYRE MANAGEMENT LTD (DTM).
Neighbourhoods and Climate Change,Environmental Services,Premises,106080,Centrally Controlled Rep and Maint,06/11/2020,3799953-45100816-61,"17,359.78",ADT FIRE & SECURITY PLC.
Neighbourhoods and Climate Change,Environmental Services,Premises,106082,Centrally Controlled Rep and Maint,06/11/2020,3799960-34656,"1,100.00",AQUAJET DRAIN CLEANING LTD.
Neighbourhoods and Climate Change,Environmental Services,Transport,215012,Running Costs of Vehicles,06/11/2020,3799991-195390,"1,487.50",CHEVIN FLEET SOLUTIONS LTD.
Adult and Health Services,Head of Adults,Third Party Payments,472101,Purchase of Care,06/11/2020,3800129-594759,"2,166.83",NEWCROSS HEALTHCARE SOLUTIONS LTD.
Adult and Health Services,Head of Adults,Third Party Payments,478101,Purchase of Care,06/11/2020,3800021-CAS-11-2020-030,"26,588.56",ELAN CARE WHITETHORN LTD.
Children and Young Peoples Services,Head of Childrens Social Care,Premises,106082,Centrally Controlled Rep and Maint,06/11/2020,3799954-45338926-61,"1,157.78",ADT FIRE & SECURITY PLC.
Children and Young Peoples Services,Head of Childrens Social Care,Supplies and Services,304259,Equipment and Materials,06/11/2020,3799954-45327745-61,712.00,ADT FIRE & SECURITY PLC.
Children and Young Peoples Services,Head of Childrens Social Care,Supplies and Services,338043,Services,06/11/2020,3800022-11068,"1,750.00",EMG SOLICITORS LTD.
Children and Young Peoples Services,Head of Early Help Inclusion & Vulnerable Children.,Premises,108099,Service Repairs and Maintenance,06/11/2020,3799954-45100817-61,"50,207.39",ADT FIRE & SECURITY PLC.
Children and Young Peoples Services,Head of Early Help Inclusion & Vulnerable Children.,Premises,108099,Service Repairs and Maintenance,06/11/2020,3800240-13889,"6,109.92",WATERMAN ENVIRONMENTAL SERVICES.
Children and Young Peoples Services,Head of Education and Skills,Construction work A908,908105,Construction work,06/11/2020,3800025-167769,"719,245.97",ESH CONSTRUCTION LTD FORMERLY LUMSDEN & CARROLL CONSTRUCTION LTD.
Children and Young Peoples Services,Head of Education and Skills,Construction work A908,908105,Construction work,06/11/2020,3800065-ISD0332,"4,496.35",INSPIREDSPACES DURHAM (PROJECTCO1) LTD.
Children and Young Peoples Services,Head of Education and Skills,Construction work A908,908105,Construction work,06/11/2020,3800065-ISD0335,"5,447.30",INSPIREDSPACES DURHAM (PROJECTCO1) LTD.
Children and Young Peoples Services,Head of Education and Skills,Supplies and Services,336005,Advertising E336,06/11/2020,3800192-INV-5194,"8,508.19",STEVE DAVIDSON ADVERTISING LTD T/A SD ADVERTISING LTD.
Children and Young Peoples Services,Head of Education and Skills,Supplies and Services,336005,Advertising E336,06/11/2020,3800192-INV-5223,"2,708.81",STEVE DAVIDSON ADVERTISING LTD T/A SD ADVERTISING LTD.
Adult and Health Services,Public Health CC0450,Third Party Payments,460802,Contract Payments,06/11/2020,3799996-3910018216,"368,605.00",CO DURHAM & DARLINGTON NHS FOUNDATION TRUST.
Adult and Health Services,Public Health CC0450,Third Party Payments,460803,Contract Payments,06/11/2020,3799996-3910018219,"5,515.00",CO DURHAM & DARLINGTON NHS FOUNDATION TRUST.
Adult and Health Services,Public Health CC0450,Third Party Payments,460803,Contract Payments,06/11/2020,3799996-3910018217,"173,748.00",CO DURHAM & DARLINGTON NHS FOUNDATION TRUST.
Adult and Health Services,Public Health CC0450,Third Party Payments,460803,Contract Payments,06/11/2020,3799996-3910018218,"24,964.00",CO DURHAM & DARLINGTON NHS FOUNDATION TRUST.
Neighbourhoods and Climate Change,Technical Services CM0300,Stock A926,926900,Stock in hand-Inventory system,06/11/2020,3800045-06/091071,529.20,GREENHAM TRADING LTD.
Neighbourhoods and Climate Change,Technical Services CM0300,Stock A926,926900,Stock in hand-Inventory system,06/11/2020,3800078-0104/00212816,"1,259.52",JT DOVE LTD.
Neighbourhoods and Climate Change,Technical Services CM0300,Stock A926,926900,Stock in hand-Inventory system,06/11/2020,3800078-0113/00212819,528.00,JT DOVE LTD.
Neighbourhoods and Climate Change,Technical Services CM0300,Stock A926,926900,Stock in hand-Inventory system,06/11/2020,3800143-XL260730,719.10,PARK ELECTRICAL DISTRIBUTORS LTD.
Neighbourhoods and Climate Change,Technical Services CM0300,Stock A926,926900,Stock in hand-Inventory system,06/11/2020,3800143-XL261749,783.00,PARK ELECTRICAL DISTRIBUTORS LTD.
Neighbourhoods and Climate Change,Technical Services CM0300,Stock A926,926900,Stock in hand-Inventory system,06/11/2020,3800143-XL261750,850.50,PARK ELECTRICAL DISTRIBUTORS LTD.
Neighbourhoods and Climate Change,Technical Services CM0300,Stock A926,926900,Stock in hand-Inventory system,06/11/2020,3800143-XL261751,"1,040.00",PARK ELECTRICAL DISTRIBUTORS LTD.
Neighbourhoods and Climate Change,Technical Services CM0300,Stock A926,926900,Stock in hand-Inventory system,06/11/2020,3800215-NSIN00043660,"1,243.72",THOMAS OWEN & SONS (NEWCASTLE) LTD.
Neighbourhoods and Climate Change,Technical Services CM0300,Stock A926,926900,Stock in hand-Inventory system,06/11/2020,3800248-70452566,"1,607.40",WOLSELEY UK LTD.
Neighbourhoods and Climate Change,Technical Services CM0300,Stock A926,926900,Stock in hand-Inventory system,06/11/2020,3800252-145390759,"19,386.50",ZG LIGHTING (UK) LTD.
Neighbourhoods and Climate Change,Technical Services CM0300,Third Party Payments,430100,Rendered by Private Contractors,06/11/2020,3799966-CSUKOU/INV/96834,"3,271.03",BALFOUR BEATTY LIVING PLACES LTD.*
Neighbourhoods and Climate Change,Technical Services CM0300,Supplies and Services,304221,Equipment and Materials,06/11/2020,3800029-133950,"3,742.40",FABRIKAT (NOTTINGHAM) LTD.
Neighbourhoods and Climate Change,Technical Services CM0300,Supplies and Services,304221,Equipment and Materials,06/11/2020,3800218-113719,"1,190.00",TOFCO LTD.
Neighbourhoods and Climate Change,Technical Services CM0300,Supplies and Services,304358,Equipment and Materials,06/11/2020,3799960-0000034677,"9,176.00",AQUAJET DRAIN CLEANING LTD.
Neighbourhoods and Climate Change,Technical Services CM0300,Supplies and Services,304358,Equipment and Materials,06/11/2020,3800074-31017,"1,472.75",JOHN R BUTTERFIELD LTD.
Neighbourhoods and Climate Change,Technical Services CM0300,Supplies and Services,304358,Equipment and Materials,06/11/2020,3800074-31019,776.50,JOHN R BUTTERFIELD LTD.
Neighbourhoods and Climate Change,Technical Services CM0300,Supplies and Services,304358,Equipment and Materials,06/11/2020,3800074-31026,731.00,JOHN R BUTTERFIELD LTD.
Neighbourhoods and Climate Change,Technical Services CM0300,Supplies and Services,304358,Equipment and Materials,06/11/2020,3800074-31029,"1,136.00",JOHN R BUTTERFIELD LTD.
Neighbourhoods and Climate Change,Technical Services CM0300,Supplies and Services,304358,Equipment and Materials,06/11/2020,3800074-31030,"1,136.00",JOHN R BUTTERFIELD LTD.
Neighbourhoods and Climate Change,Technical Services CM0300,Supplies and Services,304358,Equipment and Materials,06/11/2020,3800074-31035,"1,283.50",JOHN R BUTTERFIELD LTD.
Neighbourhoods and Climate Change,Technical Services CM0300,Supplies and Services,304221,Equipment and Materials,06/11/2020,3800078-0113/00190488,639.00,JT DOVE LTD.
Neighbourhoods and Climate Change,Technical Services CM0300,Supplies and Services,304358,Equipment and Materials,06/11/2020,3800080-3452,"1,054.75",KEVIN SNOWDON GROUNDWORKS LTD.
Neighbourhoods and Climate Change,Technical Services CM0300,Supplies and Services,304358,Equipment and Materials,06/11/2020,3800080-3455,888.00,KEVIN SNOWDON GROUNDWORKS LTD.
Neighbourhoods and Climate Change,Technical Services CM0300,Supplies and Services,304358,Equipment and Materials,06/11/2020,3800126-NC/122/BW,"2,035.00",NEDCO CONTRACTS (NE) LTD.
Neighbourhoods and Climate Change,Technical Services CM0300,Supplies and Services,304358,Equipment and Materials,06/11/2020,3800126-NC/123/BW,"2,310.00",NEDCO CONTRACTS (NE) LTD.
Neighbourhoods and Climate Change,Technical Services CM0300,Supplies and Services,304221,Equipment and Materials,06/11/2020,3800164-SI2020318,558.50,REDIWELD RUBBER & PLASTICS LTD.
Neighbourhoods and Climate Change,Technical Services CM0300,Supplies and Services,304221,Equipment and Materials,06/11/2020,3800228-215147,952.03,TYNEDALE ROADSTONE LTD.
Neighbourhoods and Climate Change,Technical Services CM0300,Supplies and Services,304221,Equipment and Materials,06/11/2020,3800228-215248,960.68,TYNEDALE ROADSTONE LTD.
Neighbourhoods and Climate Change,Technical Services CM0300,Supplies and Services,304221,Equipment and Materials,06/11/2020,3800228-215251,595.99,TYNEDALE ROADSTONE LTD.
Neighbourhoods and Climate Change,Technical Services CM0300,Supplies and Services,304221,Equipment and Materials,06/11/2020,3800228-215261,943.38,TYNEDALE ROADSTONE LTD.
Neighbourhoods and Climate Change,Technical Services CM0300,Supplies and Services,304221,Equipment and Materials,06/11/2020,3800228-215365,750.48,TYNEDALE ROADSTONE LTD.
Neighbourhoods and Climate Change,Technical Services CM0300,Supplies and Services,304221,Equipment and Materials,06/11/2020,3800228-215494,605.89,TYNEDALE ROADSTONE LTD.
Neighbourhoods and Climate Change,Technical Services CM0300,Supplies and Services,304221,Equipment and Materials,06/11/2020,3800228-215496,749.62,TYNEDALE ROADSTONE LTD.
Neighbourhoods and Climate Change,Technical Services CM0300,Supplies and Services,304221,Equipment and Materials,06/11/2020,3800228-215500,"1,073.17",TYNEDALE ROADSTONE LTD.
Neighbourhoods and Climate Change,Technical Services CM0300,Supplies and Services,304221,Equipment and Materials,06/11/2020,3800228-215501,697.96,TYNEDALE ROADSTONE LTD.
Neighbourhoods and Climate Change,Technical Services CM0300,Supplies and Services,304221,Equipment and Materials,06/11/2020,3800228-215507,"1,079.11",TYNEDALE ROADSTONE LTD.
Neighbourhoods and Climate Change,Technical Services CM0300,Supplies and Services,304221,Equipment and Materials,06/11/2020,3800228-215508,839.58,TYNEDALE ROADSTONE LTD.
Neighbourhoods and Climate Change,Technical Services CM0300,Supplies and Services,304221,Equipment and Materials,06/11/2020,3800228-215515,675.52,TYNEDALE ROADSTONE LTD.
Neighbourhoods and Climate Change,Technical Services CM0300,Supplies and Services,304221,Equipment and Materials,06/11/2020,3800228-215686,650.45,TYNEDALE ROADSTONE LTD.
Neighbourhoods and Climate Change,Technical Services CM0300,Supplies and Services,304221,Equipment and Materials,06/11/2020,3800228-215696,"1,083.07",TYNEDALE ROADSTONE LTD.
Neighbourhoods and Climate Change,Technical Services CM0300,Supplies and Services,304221,Equipment and Materials,06/11/2020,3800228-215700,"1,076.14",TYNEDALE ROADSTONE LTD.
Neighbourhoods and Climate Change,Technical Services CM0300,Supplies and Services,304221,Equipment and Materials,06/11/2020,3800228-215705,542.02,TYNEDALE ROADSTONE LTD.
Neighbourhoods and Climate Change,Technical Services CM0300,Supplies and Services,304221,Equipment and Materials,06/11/2020,3800228-215707,974.65,TYNEDALE ROADSTONE LTD.
Neighbourhoods and Climate Change,Technical Services CM0300,Supplies and Services,304221,Equipment and Materials,06/11/2020,3800228-215709,"1,074.16",TYNEDALE ROADSTONE LTD.
Neighbourhoods and Climate Change,Technical Services CM0300,Supplies and Services,304221,Equipment and Materials,06/11/2020,3800228-215712,"1,050.40",TYNEDALE ROADSTONE LTD.
Neighbourhoods and Climate Change,Technical Services CM0300,Supplies and Services,304221,Equipment and Materials,06/11/2020,3800228-215851,"1,053.37",TYNEDALE ROADSTONE LTD.
Neighbourhoods and Climate Change,Technical Services CM0300,Supplies and Services,304221,Equipment and Materials,06/11/2020,3800228-215856,"1,072.18",TYNEDALE ROADSTONE LTD.
Neighbourhoods and Climate Change,Technical Services CM0300,Supplies and Services,304357,Equipment and Materials,06/11/2020,3800228-215708,889.75,TYNEDALE ROADSTONE LTD.
Neighbourhoods and Climate Change,Technical Services CM0300,Supplies and Services,304358,Equipment and Materials,06/11/2020,3800251-8313,718.75,YOULL CONSTRUCTION LTD.
Neighbourhoods and Climate Change,Technical Services CM0300,Supplies and Services,304358,Equipment and Materials,06/11/2020,3800251-8314,640.00,YOULL CONSTRUCTION LTD.
Neighbourhoods and Climate Change,Technical Services CM0300,Supplies and Services,304358,Equipment and Materials,06/11/2020,3800251-8337,635.63,YOULL CONSTRUCTION LTD.
Neighbourhoods and Climate Change,Technical Services CM0300,Supplies and Services,304358,Equipment and Materials,06/11/2020,3800251-8341,514.00,YOULL CONSTRUCTION LTD.
Neighbourhoods and Climate Change,Technical Services CM0300,Supplies and Services,304358,Equipment and Materials,06/11/2020,3800251-8342,910.00,YOULL CONSTRUCTION LTD.
"Regeneration, Economy and Growth",Transport and Contracted Services,Supplies and Services,304245,Equipment and Materials,06/11/2020,3800223-3IN/10362693,"7,082.35",TUNSTALL HEALTHCARE (UK) LTD.
"Regeneration, Economy and Growth",Transport and Contracted Services,Supplies and Services,384540,Miscellaneous Expenses,06/11/2020,3800047-INV-0374,"1,050.00",GRM MAPPING LTD.
"Regeneration, Economy and Growth",Transport and Contracted Services,Supplies and Services,384899,Miscellaneous Expenses,06/11/2020,3800246-RED-11-2020-026,"1,020.00",WITTON LE WEAR PARISH COUNCIL.
Adult and Health Services,Adults Excluded,Supplies and Services,338027,Services,09/11/2020,3800461-NEADASS-OCT-20,"2,100.00",MIDDLEHALL ASSOCIATES.
"Regeneration, Economy and Growth",Business Durham CL0850,Premises,120009,Energy Costs,09/11/2020,3800370-000008617114,"1,144.60",EDF ENERGY CUSTOMERS PLC T/A EDF ENERGY.
"Regeneration, Economy and Growth",Business Durham CL0850,Premises,120009,Energy Costs,09/11/2020,3800370-000008607108,"1,582.24",EDF ENERGY CUSTOMERS PLC T/A EDF ENERGY.
"Regeneration, Economy and Growth",Business Durham CL0850,Premises,120009,Energy Costs,09/11/2020,3800370-000008626345,"1,178.08",EDF ENERGY CUSTOMERS PLC T/A EDF ENERGY.
"Regeneration, Economy and Growth",Business Durham CL0850,Supplies and Services,384199,Miscellaneous Expenses,09/11/2020,3800498-914860127,714.00,NORTHUMBRIAN WATER LTD.
"Regeneration, Economy and Growth",Business Durham CL0850,Vehicles Equipment Furniture and Fittings,912529,Purchase-equipment,09/11/2020,3800578-134904,"4,516.76",SWITCHSHOP LTD.
Adult and Health Services,Central/Other,Transport,230005,Contract Hire,09/11/2020,3800288-DCC12OCT2020,"1,440.00",ATLAS TAXIS BISHOP AUCKLAND.
Adult and Health Services,Central/Other,Transport,230005,Contract Hire,09/11/2020,3800425-1917,"3,000.00",JDS PRIVATE HIRE DURHAM.
Adult and Health Services,Central/Other,Transport,230005,Contract Hire,09/11/2020,3800551-DM211-OCT,"2,244.00",S DUNCAN PRIVATE HIRE.
Adult and Health Services,Commissioning inc Supporting People,Supplies and Services,338089,Services,09/11/2020,3800274-20-0043,750.00,ACTIVCARE LTD.
Adult and Health Services,Commissioning inc Supporting People,Supplies and Services,338089,Services,09/11/2020,3800416-2697,"1,305.00",INCARE SERVICES LTD.
Adult and Health Services,Commissioning inc Supporting People,Third Party Payments,479111,Purchase of Care,09/11/2020,3800449-3473,"11,757.00",MAIN - TAKING AUTISM PERSONALLY.
Resources BK0010,Corporate Finance & Commercial Services,Third Party Payments,479112,Purchase of Care,09/11/2020,3800334-21289A,"1,718.75",CONNECT HEALTH LTD.
"Regeneration, Economy and Growth",Corporate Property and Land,Premises,145052,Cleaning and Domestic Supplies,09/11/2020,3800380-20625,542.66,EXTRACLEAN.
"Regeneration, Economy and Growth",Corporate Property and Land,Premises,145023,Cleaning and Domestic Supplies,09/11/2020,3800396-06/094733,639.54,GREENHAM TRADING LTD.
"Regeneration, Economy and Growth",Corporate Property and Land,Supplies and Services,304221,Equipment and Materials,09/11/2020,3800410-A38/0125343,"1,455.35",HOWDENS JOINERY LTD.
"Regeneration, Economy and Growth",Corporate Property and Land,Third Party Payments,430100,Rendered by Private Contractors,09/11/2020,3800503-2434,"28,000.00",PARAMOUNT CEILINGS & PARTITIONS.
"Regeneration, Economy and Growth",Corporate Property and Land,Third Party Payments,430100,Rendered by Private Contractors,09/11/2020,3800294-6745,"2,994.00",BELL CONTROL SOLUTIONS LTD.
"Regeneration, Economy and Growth",Corporate Property and Land,Third Party Payments,430100,Rendered by Private Contractors,09/11/2020,3800512-316503,"1,595.00",PEART FENCING LTD.
"Regeneration, Economy and Growth",Corporate Property and Land,Supplies and Services,304221,Equipment and Materials,09/11/2020,3800560-36021163,"3,691.52",SIG AIR HANDLING UK LTD T/A SK SALES.
"Regeneration, Economy and Growth",Corporate Property and Land,Supplies and Services,304221,Equipment and Materials,09/11/2020,3800560-36023773,824.82,SIG AIR HANDLING UK LTD T/A SK SALES.
"Regeneration, Economy and Growth",Corporate Property and Land,Third Party Payments,430100,Rendered by Private Contractors,09/11/2020,3800605-DCC/GT/153,865.00,TYNE VALLEY FLOORING & CARPETS.
"Regeneration, Economy and Growth",Corporate Property and Land,Supplies and Services,372009,Subscriptions E372,09/11/2020,3800280-00027652,805.75,AMTECH GROUP LTD.
"Regeneration, Economy and Growth",Corporate Property and Land,Supplies and Services,304221,Equipment and Materials,09/11/2020,3800371-059-270735,640.00,EDMUNDSON ELECTRICAL LTD.
"Regeneration, Economy and Growth",Corporate Property and Land,Supplies and Services,304221,Equipment and Materials,09/11/2020,3800375-SIN018793,"4,451.26",ENERGY CONSERVATION SOLUTIONS LTD (ECSL).
"Regeneration, Economy and Growth",Corporate Property and Land,Third Party Payments,430100,Rendered by Private Contractors,09/11/2020,3800482-DCC157,"1,200.00",MR WILLIAM MAGUIRE T/A VALLUM LIFTS.
"Regeneration, Economy and Growth",Corporate Property and Land,Third Party Payments,430100,Rendered by Private Contractors,09/11/2020,3800482-DCC158,"1,700.00",MR WILLIAM MAGUIRE T/A VALLUM LIFTS.
"Regeneration, Economy and Growth",Corporate Property and Land,Third Party Payments,430100,Rendered by Private Contractors,09/11/2020,3800482-DCC159,"1,500.00",MR WILLIAM MAGUIRE T/A VALLUM LIFTS.
"Regeneration, Economy and Growth",Corporate Property and Land,Supplies and Services,304221,Equipment and Materials,09/11/2020,3800596-126465,842.50,TOMMY WARDLE.
"Regeneration, Economy and Growth",Corporate Property and Land,Third Party Payments,430100,Rendered by Private Contractors,09/11/2020,3800492-00751138,695.00,NOBLE & BRETT ROOFING T/A BRETT BROS LTD.
"Regeneration, Economy and Growth",Culture Sport and Tourism,Construction work A908,908105,Construction work,09/11/2020,3800569-00375822,"33,515.92",STAGE ELECTRICS PARTNERSHIP LTD.
"Regeneration, Economy and Growth",Culture Sport and Tourism,Supplies and Services,384199,Miscellaneous Expenses,09/11/2020,3800350-VCDOCTOBER2020,"1,125.00",DEBBIE SHARRATT T/A DEBSHARRATT COMMUNICATIONS.
"Regeneration, Economy and Growth",Culture Sport and Tourism,Supplies and Services,312013,Newspapers books and periodicals E312,09/11/2020,3800253-95619641,"16,923.00",(BSI) BRITISH STANDARDS INSTITUTION.
"Regeneration, Economy and Growth",Culture Sport and Tourism,Supplies and Services,384199,Miscellaneous Expenses,09/11/2020,3800565-INV-S012897,"1,726.64",SPEKTRIX LTD.
Resources BK0010,Digital and Customer Services,Supplies and Services,342051,Computers and Communications,09/11/2020,3800310-686541,566.14,BYTES SOFTWARE SERVICES LTD.
Resources BK0010,Digital and Customer Services,Supplies and Services,342033,Computers and Communications,09/11/2020,3800317-102576,"7,344.40",CENTRAL POWER SERVICES LTD (CPS).
Resources BK0010,Digital and Customer Services,Stock A926,926900,Stock in hand-Inventory system,09/11/2020,3800351-7402657634,515.00,DELL COMPUTER CORPORATION LTD.
Resources BK0010,Digital and Customer Services,Stock A926,926900,Stock in hand-Inventory system,09/11/2020,3800351-7402660183,501.00,DELL COMPUTER CORPORATION LTD.
Resources BK0010,Digital and Customer Services,Stock A926,926900,Stock in hand-Inventory system,09/11/2020,3800628-KX68965,"3,170.80",XMA LTD.
Resources BK0010,Digital and Customer Services,Supplies and Services,304639,Equipment and Materials,09/11/2020,3800413-IN533521,614.40,HT MADDOCKS & SON (WHITCHURCH) LTD T/A MADDOCKS.
Dedicated Schools Grant BG0015,DSG High Needs Block,Third Party Payments,410037,Rendered by Other Local Authorities,09/11/2020,3800309-34938559,"1,346.94",BURY METROPOLITAN BOROUGH COUNCIL.
Dedicated Schools Grant BG0015,DSG High Needs Block,Third Party Payments,410037,Rendered by Other Local Authorities,09/11/2020,3800309-35024323,"1,036.14",BURY METROPOLITAN BOROUGH COUNCIL.
Neighbourhoods and Climate Change,Environmental Services,Third Party Payments,430101,Rendered by Private Contractors,09/11/2020,3800355-IV1316735,"3,324.65",DIRECT TYRE MANAGEMENT LTD (DTM).
Neighbourhoods and Climate Change,Environmental Services,Third Party Payments,430101,Rendered by Private Contractors,09/11/2020,3800355-IV1318626,838.72,DIRECT TYRE MANAGEMENT LTD (DTM).
Neighbourhoods and Climate Change,Environmental Services,Transport,210057,Repair and Maintenance of Vehicles,09/11/2020,3800611-22223,773.14,VERSALIFT DISTRIBUTORS (UK) LTD.
Neighbourhoods and Climate Change,Environmental Services,Transport,210057,Repair and Maintenance of Vehicles,09/11/2020,3800295-35187355,752.12,BELL TRUCK SALES LTD T/A BELL TRUCK & VAN.
Neighbourhoods and Climate Change,Environmental Services,Transport,210057,Repair and Maintenance of Vehicles,09/11/2020,3800295-35191110,747.25,BELL TRUCK SALES LTD T/A BELL TRUCK & VAN.
Neighbourhoods and Climate Change,Environmental Services,Third Party Payments,430101,Rendered by Private Contractors,09/11/2020,3800355-IV1308722,"1,589.20",DIRECT TYRE MANAGEMENT LTD (DTM).
Neighbourhoods and Climate Change,Environmental Services,Third Party Payments,430101,Rendered by Private Contractors,09/11/2020,3800355-IV1314248,"1,217.31",DIRECT TYRE MANAGEMENT LTD (DTM).
Neighbourhoods and Climate Change,Environmental Services,Third Party Payments,430101,Rendered by Private Contractors,09/11/2020,3800355-IV1320884,"2,318.46",DIRECT TYRE MANAGEMENT LTD (DTM).
Neighbourhoods and Climate Change,Environmental Services,Third Party Payments,430119,Rendered by Private Contractors,09/11/2020,3800404-118020,"6,151.43",HARPERS ENVIRONMENTAL LTD.
Neighbourhoods and Climate Change,Environmental Services,Third Party Payments,430119,Rendered by Private Contractors,09/11/2020,3800404-118019,"2,891.54",HARPERS ENVIRONMENTAL LTD.
Neighbourhoods and Climate Change,Environmental Services,Third Party Payments,430100,Rendered by Private Contractors,09/11/2020,3800585-186445,"1,400.00",TAYLOR & BRAITHWAITE LTD.
Neighbourhoods and Climate Change,Environmental Services,Third Party Payments,430100,Rendered by Private Contractors,09/11/2020,3800585-186446,"1,400.00",TAYLOR & BRAITHWAITE LTD.
Neighbourhoods and Climate Change,Environmental Services,Construction work A908,908105,Construction work,09/11/2020,3800497-DI20350039,534.94,NORTHERN POWERGRID (NORTHEAST) LTD.
Neighbourhoods and Climate Change,Environmental Services,Supplies and Services,384199,Miscellaneous Expenses,09/11/2020,3800354-1802,"3,745.00",DIFFERENTIA LTD.
Neighbourhoods and Climate Change,Environmental Services,Supplies and Services,384899,Miscellaneous Expenses,09/11/2020,3800272-RED-11-2020-042,"4,358.00",ACE MOTORCYCLE TRAINING (NE) LTD.
Resources BK0010,Finance & Transactional Services,Supplies and Services,338064,Services,09/11/2020,3800495-30445,"19,736.00",NORTH EAST REGIONAL EMPLOYERS ORGANISATION (NEREO).
Adult and Health Services,Head of Adults,Transport,230005,Contract Hire,09/11/2020,3800300-000317,720.00,BIRDS TAXIS LTD.
Adult and Health Services,Head of Adults,Transport,230005,Contract Hire,09/11/2020,3800597-75-2020,"1,000.00",TONYS TAXIS (A BIRCH).
Adult and Health Services,Head of Adults,Transport,230005,Contract Hire,09/11/2020,3800288-20,"1,387.76",ATLAS TAXIS BISHOP AUCKLAND.
Adult and Health Services,Head of Adults,Transport,230005,Contract Hire,09/11/2020,3800300-000318,704.00,BIRDS TAXIS LTD.
Adult and Health Services,Head of Adults,Transport,230005,Contract Hire,09/11/2020,3800453-000048,"1,224.00",MARK HUSBAND T/A TEAK`S TAXIS.
Adult and Health Services,Head of Adults,Transport,230005,Contract Hire,09/11/2020,3800389-101888,"1,296.50",G & P JOHNSON LTD T/A NIGHTINGALE COACHES.
Adult and Health Services,Head of Adults,Transport,230005,Contract Hire,09/11/2020,3800389-101889,"3,234.00",G & P JOHNSON LTD T/A NIGHTINGALE COACHES.
Adult and Health Services,Head of Adults,Transport,230005,Contract Hire,09/11/2020,3800471-202028,715.52,MR JR FORT T/A JRF TAXIS.
Adult and Health Services,Head of Adults,Transport,230005,Contract Hire,09/11/2020,3800414-IR2010007,748.00,I & R EXECUTIVE TRAVEL.
Adult and Health Services,Head of Adults,Transport,230005,Contract Hire,09/11/2020,3800516-0959,"1,229.40",PETER`S PRIVATE HIRE/PETER BEST.
Adult and Health Services,Head of Adults,Transport,230005,Contract Hire,09/11/2020,3800597-61-2020,711.36,TONYS TAXIS (A BIRCH).
Adult and Health Services,Head of Adults,Transport,230005,Contract Hire,09/11/2020,3800619-1229-2020,969.00,WAYNE`S TAXIS.
Adult and Health Services,Head of Adults,Transport,230005,Contract Hire,09/11/2020,3800300-000315,"1,760.00",BIRDS TAXIS LTD.
Adult and Health Services,Head of Adults,Transport,230005,Contract Hire,09/11/2020,3800517-DM204-OCT20,682.00,PETER`S TAXIS.
Adult and Health Services,Head of Adults,Transport,230005,Contract Hire,09/11/2020,3800546-1829,810.18,RON`S TAXIS (FISHBURN).
Adult and Health Services,Head of Adults,Transport,230005,Contract Hire,09/11/2020,3800597-65-2020,880.00,TONYS TAXIS (A BIRCH).
Children and Young Peoples Services,Head of Education and Skills,Transport,230034,Contract Hire,09/11/2020,3800517-3422-OCT20,884.00,PETER`S TAXIS.
Children and Young Peoples Services,Head of Education and Skills,Transport,230007,Contract Hire,09/11/2020,3800454-011020,510.00,MARK MUSGROVE T/A MARKS TAXIS.
Children and Young Peoples Services,Head of Education and Skills,Transport,230034,Contract Hire,09/11/2020,3800570-05300,"1,040.00",STANLEY TRAVEL (NORTH EAST) LTD.
Children and Young Peoples Services,Head of Education and Skills,Transport,230007,Contract Hire,09/11/2020,3800570-05309,539.24,STANLEY TRAVEL (NORTH EAST) LTD.
Children and Young Peoples Services,Head of Education and Skills,Transport,230009,Contract Hire,09/11/2020,3800570-05295,"2,119.90",STANLEY TRAVEL (NORTH EAST) LTD.
Children and Young Peoples Services,Head of Education and Skills,Transport,230035,Contract Hire,09/11/2020,3800621-7369,"1,071.00",WEARDALE PRIVATE HIRE.
Children and Young Peoples Services,Head of Education and Skills,Transport,230035,Contract Hire,09/11/2020,3800621-7383,867.00,WEARDALE PRIVATE HIRE.
Children and Young Peoples Services,Head of Education and Skills,Transport,230034,Contract Hire,09/11/2020,3800474-76/2020,"1,360.00",MR MARIUSZ LASOTA T/A BM TAXI.
Children and Young Peoples Services,Head of Education and Skills,Transport,230007,Contract Hire,09/11/2020,3800477-1860,"1,224.00",MR PETER YOUNG.
Children and Young Peoples Services,Head of Education and Skills,Transport,230034,Contract Hire,09/11/2020,3800429-0001OCT20,834.00,JORA SINGH TAXIS.
Children and Young Peoples Services,Head of Education and Skills,Transport,230007,Contract Hire,09/11/2020,3800510-1087,"1,649.00",PBS TRAVEL LTD.
Children and Young Peoples Services,Head of Education and Skills,Transport,230007,Contract Hire,09/11/2020,3800510-1087-3065,"1,734.00",PBS TRAVEL LTD.
Children and Young Peoples Services,Head of Education and Skills,Transport,230034,Contract Hire,09/11/2020,3800472-100,850.00,MR LJ TARRY T/A TARRY`S TAXI`S.
Children and Young Peoples Services,Head of Education and Skills,Transport,230012,Contract Hire,09/11/2020,3800598-TS-18/46,"1,022.72",TOP STAR TRAVEL.
Children and Young Peoples Services,Head of Education and Skills,Transport,230012,Contract Hire,09/11/2020,3800270-S023-OCT20,"1,296.42",ABA TAXIS.
Children and Young Peoples Services,Head of Education and Skills,Transport,230008,Contract Hire,09/11/2020,3800473-1/OCT2020,"1,800.00",MR M FARREY T/A TK TAXIS.
Children and Young Peoples Services,Head of Education and Skills,Transport,230034,Contract Hire,09/11/2020,3800474-77/2020,"1,342.40",MR MARIUSZ LASOTA T/A BM TAXI.
Children and Young Peoples Services,Head of Education and Skills,Transport,230012,Contract Hire,09/11/2020,3800368-1023,"1,938.00",EAST DURHAM TAXIS.
Children and Young Peoples Services,Head of Education and Skills,Transport,230008,Contract Hire,09/11/2020,3800368-1019,"2,380.00",EAST DURHAM TAXIS.
Children and Young Peoples Services,Head of Education and Skills,Transport,230008,Contract Hire,09/11/2020,3800514-679,"1,224.00",PETERLEE EXECUTIVE CARS.
Children and Young Peoples Services,Head of Education and Skills,Transport,230034,Contract Hire,09/11/2020,3800518-38126,933.00,PHOENIX TAXIS T/A PRATT`S TAXIS.
Children and Young Peoples Services,Head of Education and Skills,Transport,230007,Contract Hire,09/11/2020,3800615-89-2020,799.00,WALTONS TAXIS.
Children and Young Peoples Services,Head of Education and Skills,Transport,230007,Contract Hire,09/11/2020,3800368-1018,"2,080.00",EAST DURHAM TAXIS.
Children and Young Peoples Services,Head of Education and Skills,Transport,230007,Contract Hire,09/11/2020,3800300-000310,680.00,BIRDS TAXIS LTD.
Children and Young Peoples Services,Head of Education and Skills,Transport,230007,Contract Hire,09/11/2020,3800518-38125,782.00,PHOENIX TAXIS T/A PRATT`S TAXIS.
Children and Young Peoples Services,Head of Education and Skills,Transport,230034,Contract Hire,09/11/2020,3800478-10-20-5283,"1,129.00",MR S DOCKERY T/A SEAN'S TAXIS.
Children and Young Peoples Services,Head of Education and Skills,Transport,230006,Contract Hire,09/11/2020,3800300-000314,585.59,BIRDS TAXIS LTD.
Children and Young Peoples Services,Head of Education and Skills,Transport,230034,Contract Hire,09/11/2020,3800514-682,"2,074.00",PETERLEE EXECUTIVE CARS.
Children and Young Peoples Services,Head of Education and Skills,Transport,230013,Contract Hire,09/11/2020,3800570-05218,983.80,STANLEY TRAVEL (NORTH EAST) LTD.
Children and Young Peoples Services,Head of Education and Skills,Transport,230007,Contract Hire,09/11/2020,3800394-1-OCT20,"2,992.00",GRAHAM WILLIAMS T/A BUS 2 MINIBUS HIRE.
Children and Young Peoples Services,Head of Education and Skills,Transport,230007,Contract Hire,09/11/2020,3800581-3210PA,"1,504.50",T MOORE & SON.
Children and Young Peoples Services,Head of Education and Skills,Transport,230007,Contract Hire,09/11/2020,3800581-3110WA,"1,445.06",T MOORE & SON.
Children and Young Peoples Services,Head of Education and Skills,Transport,235005,Public Transport,09/11/2020,3800620-16201,"207,761.55",WEARDALE MOTOR SERVICES LTD.
Children and Young Peoples Services,Head of Education and Skills,Transport,230007,Contract Hire,09/11/2020,3800621-7368,918.20,WEARDALE PRIVATE HIRE.
Children and Young Peoples Services,Head of Education and Skills,Transport,230007,Contract Hire,09/11/2020,3800619-1228-2020,"1,006.40",WAYNE`S TAXIS.
Children and Young Peoples Services,Head of Education and Skills,Transport,230012,Contract Hire,09/11/2020,3800566-JP20020,901.00,SPENNYMOOR TAXIS.
Children and Young Peoples Services,Head of Education and Skills,Transport,230007,Contract Hire,09/11/2020,3800617-0002778,680.00,WATSON OF SPENNYMOOR.
Children and Young Peoples Services,Head of Education and Skills,Transport,230012,Contract Hire,09/11/2020,3800269-I1020/SE,"1,053.00",AABAT TAXIS.
Children and Young Peoples Services,Head of Education and Skills,Transport,230012,Contract Hire,09/11/2020,3800481-TNB013,867.83,MR THOMAS G GRIFFITHS T/A TNL TAXIS.
Children and Young Peoples Services,Head of Education and Skills,Transport,230007,Contract Hire,09/11/2020,3800470-141,"1,258.00",MR JOHN ALLINSON T/A AALPHA TAXIS.
Children and Young Peoples Services,Head of Education and Skills,Transport,230007,Contract Hire,09/11/2020,3800510-1087-3058-1,"2,016.00",PBS TRAVEL LTD.
Children and Young Peoples Services,Head of Education and Skills,Transport,230034,Contract Hire,09/11/2020,3800392-GT12-2020,"1,618.06",GORDON`S TAXIS.
Children and Young Peoples Services,Head of Education and Skills,Transport,230008,Contract Hire,09/11/2020,3800455-0047,"1,887.00",MARK WATSON T/A MARK`S TAXIS.
Children and Young Peoples Services,Head of Education and Skills,Transport,230034,Contract Hire,09/11/2020,3800487-OCTOBER2020,"1,500.30",ND TAXIS.
Children and Young Peoples Services,Head of Education and Skills,Transport,230012,Contract Hire,09/11/2020,3800518-38139,782.00,PHOENIX TAXIS T/A PRATT`S TAXIS.
Children and Young Peoples Services,Head of Education and Skills,Transport,230007,Contract Hire,09/11/2020,3800518-38124,732.53,PHOENIX TAXIS T/A PRATT`S TAXIS.
Children and Young Peoples Services,Head of Education and Skills,Transport,230034,Contract Hire,09/11/2020,3800475-4423/OCT2020,"1,562.30",MR MARK WILE T/A HARRY`S TAXIS.
Children and Young Peoples Services,Head of Education and Skills,Transport,230034,Contract Hire,09/11/2020,3800572-049,"1,523.89",STEVEN HENDERSON T/A HENDYS TAXIS.
Children and Young Peoples Services,Head of Education and Skills,Transport,230007,Contract Hire,09/11/2020,3800494-6601,"1,972.00",NORTH EAST COACHWAYS LTD.
Children and Young Peoples Services,Head of Education and Skills,Transport,230009,Contract Hire,09/11/2020,3800514-683,714.00,PETERLEE EXECUTIVE CARS.
Children and Young Peoples Services,Head of Education and Skills,Transport,230007,Contract Hire,09/11/2020,3800543-1465,"3,162.00",ROBERTS TOURS.
Children and Young Peoples Services,Head of Education and Skills,Transport,230007,Contract Hire,09/11/2020,3800368-1017,884.00,EAST DURHAM TAXIS.
Children and Young Peoples Services,Head of Education and Skills,Transport,230034,Contract Hire,09/11/2020,3800517-5294-OCT20,714.00,PETER`S TAXIS.
Children and Young Peoples Services,Head of Education and Skills,Transport,230034,Contract Hire,09/11/2020,3800514-680,"2,000.62",PETERLEE EXECUTIVE CARS.
Children and Young Peoples Services,Head of Education and Skills,Transport,230009,Contract Hire,09/11/2020,3800344-12-OCT20,"1,240.00",D CROOK T/A CK TAXIS.
Children and Young Peoples Services,Head of Education and Skills,Transport,230004,Contract Hire,09/11/2020,3800621-7372,696.40,WEARDALE PRIVATE HIRE.
Children and Young Peoples Services,Head of Education and Skills,Transport,230004,Contract Hire,09/11/2020,3800621-7387,591.94,WEARDALE PRIVATE HIRE.
Children and Young Peoples Services,Head of Education and Skills,Transport,230003,Contract Hire,09/11/2020,3800390-5630,"3,044.70",GEM TRAVEL.
Children and Young Peoples Services,Head of Education and Skills,Transport,230003,Contract Hire,09/11/2020,3800390-5631,"3,172.20",GEM TRAVEL.
Children and Young Peoples Services,Head of Education and Skills,Transport,230003,Contract Hire,09/11/2020,3800581-2910SL,"1,292.00",T MOORE & SON.
Children and Young Peoples Services,Head of Education and Skills,Transport,230003,Contract Hire,09/11/2020,3800581-3010SL,"1,499.06",T MOORE & SON.
Children and Young Peoples Services,Head of Education and Skills,Transport,230003,Contract Hire,09/11/2020,3800581-2710SB,"1,096.50",T MOORE & SON.
Children and Young Peoples Services,Head of Education and Skills,Transport,230006,Contract Hire,09/11/2020,3800324-F7972,738.00,CHRIS BELL T/A MEGAN`S TAXIS.
Children and Young Peoples Services,Head of Education and Skills,Transport,230008,Contract Hire,09/11/2020,3800341-110416,"2,029.00",CROFT BUSINESS SERVICES (UK) LTD T/A CROFT TAXIS.
Children and Young Peoples Services,Head of Education and Skills,Transport,230008,Contract Hire,09/11/2020,3800341-110419,"2,519.56",CROFT BUSINESS SERVICES (UK) LTD T/A CROFT TAXIS.
Children and Young Peoples Services,Head of Education and Skills,Transport,230008,Contract Hire,09/11/2020,3800357-A060OCT20/21,"1,998.86",DONNA`S TAXIS.
Children and Young Peoples Services,Head of Education and Skills,Transport,230008,Contract Hire,09/11/2020,3800389-101886,"2,825.40",G & P JOHNSON LTD T/A NIGHTINGALE COACHES.
Children and Young Peoples Services,Head of Education and Skills,Transport,230007,Contract Hire,09/11/2020,3800401-77,640.00,HAMLET TAXIS.
Children and Young Peoples Services,Head of Education and Skills,Transport,230008,Contract Hire,09/11/2020,3800422-6012,"1,177.08",J YOUNG T/A VIP TAXIS.
Children and Young Peoples Services,Head of Education and Skills,Transport,230008,Contract Hire,09/11/2020,3800434-106OCT20,"1,717.00",KINGSWAY CABS LTD.
Children and Young Peoples Services,Head of Education and Skills,Transport,230007,Contract Hire,09/11/2020,3800477-1861,"1,224.00",MR PETER YOUNG.
Children and Young Peoples Services,Head of Education and Skills,Transport,230008,Contract Hire,09/11/2020,3800513-2/20/21,"1,309.00",PETER TAYLOR T/A PT TAXI.
Children and Young Peoples Services,Head of Education and Skills,Transport,230008,Contract Hire,09/11/2020,3800544-A179-OCT,536.00,ROGERS TAXIS.
Children and Young Peoples Services,Head of Education and Skills,Transport,230008,Contract Hire,09/11/2020,3800584-10/2020/003,"2,074.00",TARNS TAXIS LTD.
Children and Young Peoples Services,Head of Education and Skills,Transport,230035,Contract Hire,09/11/2020,3800570-05298,"1,681.30",STANLEY TRAVEL (NORTH EAST) LTD.
Children and Young Peoples Services,Head of Education and Skills,Transport,230008,Contract Hire,09/11/2020,3800341-110426,"1,420.26",CROFT BUSINESS SERVICES (UK) LTD T/A CROFT TAXIS.
Children and Young Peoples Services,Head of Education and Skills,Transport,230003,Contract Hire,09/11/2020,3800570-55937,"3,145.00",STANLEY TRAVEL (NORTH EAST) LTD.
Children and Young Peoples Services,Head of Education and Skills,Transport,230003,Contract Hire,09/11/2020,3800570-55939,"3,247.00",STANLEY TRAVEL (NORTH EAST) LTD.
Children and Young Peoples Services,Head of Education and Skills,Transport,230008,Contract Hire,09/11/2020,3800509-DCC329,"1,326.00",PAUL`S TAXIS..
Children and Young Peoples Services,Head of Education and Skills,Transport,230008,Contract Hire,09/11/2020,3800619-1227-2020,"1,021.50",WAYNE`S TAXIS.
Children and Young Peoples Services,Head of Education and Skills,Transport,230008,Contract Hire,09/11/2020,3800621-7375,"3,547.05",WEARDALE PRIVATE HIRE.
Children and Young Peoples Services,Head of Education and Skills,Transport,230008,Contract Hire,09/11/2020,3800621-7392,"3,389.16",WEARDALE PRIVATE HIRE.
Children and Young Peoples Services,Head of Education and Skills,Transport,230008,Contract Hire,09/11/2020,3800393-70,"1,758.48",GP TAXIS.
Children and Young Peoples Services,Head of Education and Skills,Transport,230008,Contract Hire,09/11/2020,3800479-036,"1,722.35",MR SCOTT MALCOLM MACKENZIE T/A SCOTTS TAXIS.
Children and Young Peoples Services,Head of Education and Skills,Transport,230008,Contract Hire,09/11/2020,3800541-332,"1,293.24",ROBBIE`S PRIVATE HIRE.
Children and Young Peoples Services,Head of Education and Skills,Transport,230008,Contract Hire,09/11/2020,3800624-WESTLEA23102020,936.95,WESTLEA TAXIS.
Children and Young Peoples Services,Head of Education and Skills,Transport,230008,Contract Hire,09/11/2020,3800293-936,"1,530.68",BEELINE MINI BUSES.
Children and Young Peoples Services,Head of Education and Skills,Transport,230008,Contract Hire,09/11/2020,3800368-1025,"3,026.00",EAST DURHAM TAXIS.
Children and Young Peoples Services,Head of Education and Skills,Transport,230008,Contract Hire,09/11/2020,3800570-05301,918.00,STANLEY TRAVEL (NORTH EAST) LTD.
Children and Young Peoples Services,Head of Education and Skills,Transport,230008,Contract Hire,09/11/2020,3800570-05302,"1,003.00",STANLEY TRAVEL (NORTH EAST) LTD.
Children and Young Peoples Services,Head of Education and Skills,Transport,230008,Contract Hire,09/11/2020,3800570-05303,"1,683.00",STANLEY TRAVEL (NORTH EAST) LTD.
Children and Young Peoples Services,Head of Education and Skills,Transport,230008,Contract Hire,09/11/2020,3800570-05304,"2,128.40",STANLEY TRAVEL (NORTH EAST) LTD.
Children and Young Peoples Services,Head of Education and Skills,Transport,230008,Contract Hire,09/11/2020,3800570-05305,"2,670.95",STANLEY TRAVEL (NORTH EAST) LTD.
Children and Young Peoples Services,Head of Education and Skills,Transport,230008,Contract Hire,09/11/2020,3800597-74-2020,"1,836.00",TONYS TAXIS (A BIRCH).
Children and Young Peoples Services,Head of Education and Skills,Transport,230008,Contract Hire,09/11/2020,3800622-15390-32,"1,360.00",WENDYS` TAXIS.
Children and Young Peoples Services,Head of Education and Skills,Transport,230008,Contract Hire,09/11/2020,3800347-437,"2,562.00",DA TRAVEL.
Children and Young Peoples Services,Head of Education and Skills,Transport,230008,Contract Hire,09/11/2020,3800547-2OCT20,"1,564.00",ROUTE 1.
Children and Young Peoples Services,Head of Education and Skills,Transport,230008,Contract Hire,09/11/2020,3800552-TAS1112020CM,"1,755.28",SAFELINE TRAVEL.
Children and Young Peoples Services,Head of Education and Skills,Transport,230008,Contract Hire,09/11/2020,3800566-AL20024,"2,120.50",SPENNYMOOR TAXIS.
Children and Young Peoples Services,Head of Education and Skills,Transport,230006,Contract Hire,09/11/2020,3800293-938,"1,436.33",BEELINE MINI BUSES.
Children and Young Peoples Services,Head of Education and Skills,Transport,230008,Contract Hire,09/11/2020,3800333-N010/31,"1,296.42",COLIN STEWART T/A STEWART`S TAXIS.
Children and Young Peoples Services,Head of Education and Skills,Transport,230008,Contract Hire,09/11/2020,3800440-1853,738.00,LD TAXIS.
Children and Young Peoples Services,Head of Education and Skills,Transport,230008,Contract Hire,09/11/2020,3800509-DCC327,"1,173.68",PAUL`S TAXIS..
Children and Young Peoples Services,Head of Education and Skills,Transport,230008,Contract Hire,09/11/2020,3800570-05311,"2,363.00",STANLEY TRAVEL (NORTH EAST) LTD.
Children and Young Peoples Services,Head of Education and Skills,Transport,230008,Contract Hire,09/11/2020,3800570-05313,890.00,STANLEY TRAVEL (NORTH EAST) LTD.
Children and Young Peoples Services,Head of Education and Skills,Transport,230016,Contract Hire,09/11/2020,3800625-VR151,"1,440.24",WHITTONSTALL TAXIS SERVICE.
Children and Young Peoples Services,Head of Education and Skills,Transport,230008,Contract Hire,09/11/2020,3800302-8023-2020,"1,889.04",BOBBY DOVE PRIVATE HIRE.
Children and Young Peoples Services,Head of Education and Skills,Transport,230006,Contract Hire,09/11/2020,3800368-1015,"3,200.00",EAST DURHAM TAXIS.
Children and Young Peoples Services,Head of Education and Skills,Transport,230008,Contract Hire,09/11/2020,3800368-1021,"2,282.08",EAST DURHAM TAXIS.
Children and Young Peoples Services,Head of Education and Skills,Transport,230008,Contract Hire,09/11/2020,3800368-E0301022,"3,263.15",EAST DURHAM TAXIS.
Children and Young Peoples Services,Head of Education and Skills,Transport,230006,Contract Hire,09/11/2020,3800514-684,"2,414.00",PETERLEE EXECUTIVE CARS.
Children and Young Peoples Services,Head of Education and Skills,Transport,230007,Contract Hire,09/11/2020,3800517-N103-OCT20,"1,334.00",PETER`S TAXIS.
Children and Young Peoples Services,Head of Education and Skills,Transport,230008,Contract Hire,09/11/2020,3800566-LTDD20025,"1,394.00",SPENNYMOOR TAXIS.
Children and Young Peoples Services,Head of Education and Skills,Transport,230008,Contract Hire,09/11/2020,3800566-LTDD20026,"1,394.00",SPENNYMOOR TAXIS.
Children and Young Peoples Services,Head of Education and Skills,Transport,230008,Contract Hire,09/11/2020,3800573-SI-717,"1,706.00",STEVEN PRATT T/A PTL TAXIS DURHAM.
Children and Young Peoples Services,Head of Education and Skills,Transport,230008,Contract Hire,09/11/2020,3800598-TS35/13,"1,394.00",TOP STAR TRAVEL.
Children and Young Peoples Services,Head of Education and Skills,Transport,230008,Contract Hire,09/11/2020,3800603-12/OCT2020,"1,745.34",TRIDENT TAXIS.
Children and Young Peoples Services,Head of Education and Skills,Transport,230008,Contract Hire,09/11/2020,3800293-937,"1,773.27",BEELINE MINI BUSES.
Children and Young Peoples Services,Head of Education and Skills,Transport,230006,Contract Hire,09/11/2020,3800368-1020,"2,312.00",EAST DURHAM TAXIS.
Children and Young Peoples Services,Head of Education and Skills,Transport,230008,Contract Hire,09/11/2020,3800368-1024,"2,312.00",EAST DURHAM TAXIS.
Children and Young Peoples Services,Head of Education and Skills,Transport,230008,Contract Hire,09/11/2020,3800523-1351,"2,454.97",PODA TAXIS LTD.
Children and Young Peoples Services,Head of Education and Skills,Transport,230008,Contract Hire,09/11/2020,3800557-6012,"2,340.94",SHOTTON PRIVATE HIRE.
Children and Young Peoples Services,Head of Education and Skills,Transport,230008,Contract Hire,09/11/2020,3800300-000311,"1,360.00",BIRDS TAXIS LTD.
Children and Young Peoples Services,Head of Education and Skills,Transport,230008,Contract Hire,09/11/2020,3800346-1699,"1,666.08",DA TAXIS.
Children and Young Peoples Services,Head of Education and Skills,Transport,230008,Contract Hire,09/11/2020,3800346-1700,"1,418.04",DA TAXIS.
Children and Young Peoples Services,Head of Education and Skills,Transport,230008,Contract Hire,09/11/2020,3800423-021AC,"2,492.54",JACKIES TAXIS.
Children and Young Peoples Services,Head of Education and Skills,Transport,230008,Contract Hire,09/11/2020,3800429-0022,"2,275.96",JORA SINGH TAXIS.
Children and Young Peoples Services,Head of Education and Skills,Transport,230008,Contract Hire,09/11/2020,3800455-0048,"1,224.00",MARK WATSON T/A MARK`S TAXIS.
Children and Young Peoples Services,Head of Education and Skills,Transport,230008,Contract Hire,09/11/2020,3800546-1831,"1,734.00",RON`S TAXIS (FISHBURN).
Children and Young Peoples Services,Head of Education and Skills,Transport,230008,Contract Hire,09/11/2020,3800566-20021,"1,649.00",SPENNYMOOR TAXIS.
Children and Young Peoples Services,Head of Education and Skills,Transport,230008,Contract Hire,09/11/2020,3800598-TS-101/13,"1,564.00",TOP STAR TRAVEL.
Children and Young Peoples Services,Head of Education and Skills,Transport,230008,Contract Hire,09/11/2020,3800617-0002777,"1,890.40",WATSON OF SPENNYMOOR.
Children and Young Peoples Services,Head of Education and Skills,Transport,230008,Contract Hire,09/11/2020,3800267-0205,"1,126.50",A HENDERSON T/A CHUCKS TAXIS.
Children and Young Peoples Services,Head of Education and Skills,Transport,230008,Contract Hire,09/11/2020,3800287-771,"3,840.00",AT TAXIS LTD.
Children and Young Peoples Services,Head of Education and Skills,Transport,230008,Contract Hire,09/11/2020,3800345-DI202010,"1,609.00",D&I TAXIS.
Children and Young Peoples Services,Head of Education and Skills,Transport,230008,Contract Hire,09/11/2020,3800346-1697,"1,598.00",DA TAXIS.
Children and Young Peoples Services,Head of Education and Skills,Transport,230008,Contract Hire,09/11/2020,3800428-31/10/2020A1,"1,598.63",JL EBDON. T/A DIAL-A-CAB.
Children and Young Peoples Services,Head of Education and Skills,Transport,230008,Contract Hire,09/11/2020,3800428-31/10/2020C,"2,236.50",JL EBDON. T/A DIAL-A-CAB.
Children and Young Peoples Services,Head of Education and Skills,Transport,230008,Contract Hire,09/11/2020,3800545-0013,"2,295.00",RONS TAXI (CHESTER LE ST).
Children and Young Peoples Services,Head of Education and Skills,Transport,230008,Contract Hire,09/11/2020,3800566-20022,"1,552.50",SPENNYMOOR TAXIS.
Children and Young Peoples Services,Head of Education and Skills,Transport,230008,Contract Hire,09/11/2020,3800450-64,"1,082.09",MALCOLM CARR T/A CARLY CABS.
Children and Young Peoples Services,Head of Education and Skills,Transport,230010,Contract Hire,09/11/2020,3800267-0198,"2,640.00",A HENDERSON T/A CHUCKS TAXIS.
Children and Young Peoples Services,Head of Education and Skills,Transport,230010,Contract Hire,09/11/2020,3800415-WOOD001OCT,"1,315.97",IAN SOULSBY.
Children and Young Peoples Services,Head of Education and Skills,Transport,230010,Contract Hire,09/11/2020,3800475-BL031/OCT2020,"1,037.00",MR MARK WILE T/A HARRY`S TAXIS.
Children and Young Peoples Services,Head of Education and Skills,Transport,230008,Contract Hire,09/11/2020,3800572-048,"1,368.00",STEVEN HENDERSON T/A HENDYS TAXIS.
Children and Young Peoples Services,Head of Education and Skills,Transport,230006,Contract Hire,09/11/2020,3800261-102015,"1,178.82",24/7 TAXI SERVICES LTD.
Children and Young Peoples Services,Head of Education and Skills,Transport,230006,Contract Hire,09/11/2020,3800267-0206,"1,547.00",A HENDERSON T/A CHUCKS TAXIS.
Children and Young Peoples Services,Head of Education and Skills,Transport,230006,Contract Hire,09/11/2020,3800368-1026,"1,122.00",EAST DURHAM TAXIS.
Children and Young Peoples Services,Head of Education and Skills,Transport,230006,Contract Hire,09/11/2020,3800399-0023,957.00,GUY`S TAXIS.
Children and Young Peoples Services,Head of Education and Skills,Transport,230006,Contract Hire,09/11/2020,3800474-75/2020,663.40,MR MARIUSZ LASOTA T/A BM TAXI.
Children and Young Peoples Services,Head of Education and Skills,Transport,230006,Contract Hire,09/11/2020,3800475-F866/OCT2020,719.00,MR MARK WILE T/A HARRY`S TAXIS.
Children and Young Peoples Services,Head of Education and Skills,Transport,230006,Contract Hire,09/11/2020,3800476-110,992.00,MR NEIL LEONARD T/A LENNY`S TAXIS.
Children and Young Peoples Services,Head of Education and Skills,Transport,230006,Contract Hire,09/11/2020,3800514-681,660.00,PETERLEE EXECUTIVE CARS.
Children and Young Peoples Services,Head of Education and Skills,Transport,230006,Contract Hire,09/11/2020,3800518-38132,"1,797.00",PHOENIX TAXIS T/A PRATT`S TAXIS.
Children and Young Peoples Services,Head of Education and Skills,Transport,230006,Contract Hire,09/11/2020,3800518-38136,"1,110.00",PHOENIX TAXIS T/A PRATT`S TAXIS.
Children and Young Peoples Services,Head of Education and Skills,Transport,230006,Contract Hire,09/11/2020,3800518-38138,588.00,PHOENIX TAXIS T/A PRATT`S TAXIS.
Children and Young Peoples Services,Head of Education and Skills,Transport,230006,Contract Hire,09/11/2020,3800518-38141,"1,952.00",PHOENIX TAXIS T/A PRATT`S TAXIS.
Children and Young Peoples Services,Head of Education and Skills,Transport,230006,Contract Hire,09/11/2020,3800536-002-F857,"1,350.00",RAYMOND CHURNSIDE T/A S & L TAXI.
Children and Young Peoples Services,Head of Education and Skills,Transport,230006,Contract Hire,09/11/2020,3800572-047,"1,164.00",STEVEN HENDERSON T/A HENDYS TAXIS.
Children and Young Peoples Services,Head of Education and Skills,Transport,230006,Contract Hire,09/11/2020,3800573-SI-718,828.00,STEVEN PRATT T/A PTL TAXIS DURHAM.
Children and Young Peoples Services,Head of Education and Skills,Transport,230006,Contract Hire,09/11/2020,3800574-00136,561.34,STEVES TAXIS.
Children and Young Peoples Services,Head of Education and Skills,Transport,230006,Contract Hire,09/11/2020,3800581-2810BC,"1,134.00",T MOORE & SON.
Children and Young Peoples Services,Head of Education and Skills,Transport,230006,Contract Hire,09/11/2020,3800626-AA1,540.00,WILLIAM PINDER T/A FEATHERBED TAXIS.
Resources BK0010,Legal & Democratic Services,Supplies and Services,338025,Services,09/11/2020,3800332-3980039074,"18,906.00",CO DURHAM & DARLINGTON NHS FOUNDATION TRUST.
Resources BK0010,Legal & Democratic Services,Supplies and Services,338025,Services,09/11/2020,3800367-10/20,780.00,EAST DURHAM FUNERAL SERVICE LTD.
Resources BK0010,Legal & Democratic Services,Supplies and Services,338042,Services,09/11/2020,3800506-INV/HWH33,550.00,PARKLANE PLOWDEN CHAMBERS (BARRISTERS).
Adult and Health Services,Public Health CC0450,Premises,145050,Cleaning and Domestic Supplies,09/11/2020,3800297-405148,"1,537.49",BETTAKLEEN LTD.
Adult and Health Services,Public Health CC0450,Third Party Payments,460803,Contract Payments,09/11/2020,3800402-DCCDA008,"41,416.75",HARBOUR SUPPORT SERVICES.
Adult and Health Services,Public Health CC0450,Third Party Payments,460803,Contract Payments,09/11/2020,3800402-DCCVC008,"4,321.42",HARBOUR SUPPORT SERVICES.
Adult and Health Services,Public Health CC0450,Supplies and Services,384199,Miscellaneous Expenses,09/11/2020,3800408-96655658,746.03,HOPE EDUCATION LTD.
Neighbourhoods and Climate Change,Technical Services CM0300,Stock A926,926900,Stock in hand-Inventory system,09/11/2020,3800256-39367,"2,200.00",1ST COVERALL COMPANY LTD.
Neighbourhoods and Climate Change,Technical Services CM0300,Stock A926,926900,Stock in hand-Inventory system,09/11/2020,3800420-754168,"2,212.00",INSTARMAC GROUP PLC.
Neighbourhoods and Climate Change,Technical Services CM0300,Stock A926,926900,Stock in hand-Inventory system,09/11/2020,3800505-XL261714,"2,816.93",PARK ELECTRICAL DISTRIBUTORS LTD.
Neighbourhoods and Climate Change,Technical Services CM0300,Stock A926,926900,Stock in hand-Inventory system,09/11/2020,3800630-145390986,"2,484.00",ZG LIGHTING (UK) LTD.
Neighbourhoods and Climate Change,Technical Services CM0300,Supplies and Services,304221,Equipment and Materials,09/11/2020,3800283-26987,538.15,ARBOR TIMBER & BUILDERS MERCHANTS LTD.
Neighbourhoods and Climate Change,Technical Services CM0300,Third Party Payments,430100,Rendered by Private Contractors,09/11/2020,3800526-166968,"77,671.33",PREMIER TRAFFIC MANAGEMENT LTD.
Neighbourhoods and Climate Change,Technical Services CM0300,Supplies and Services,304221,Equipment and Materials,09/11/2020,3800606-214211,501.60,TYNEDALE ROADSTONE LTD.
Neighbourhoods and Climate Change,Technical Services CM0300,Supplies and Services,304999,Equipment and Materials,09/11/2020,3800431-0303/00214145,"4,830.00",JT DOVE LTD.
"Regeneration, Economy and Growth",Transport and Contracted Services,Third Party Payments,430106,Rendered by Private Contractors,09/11/2020,3800382-PUBLICSERVICEOCTOBER20,"3,702.80",FERRYHILL VILLAGE TRAVEL.
"Regeneration, Economy and Growth",Transport and Contracted Services,Third Party Payments,430100,Rendered by Private Contractors,09/11/2020,3800529-138161,"1,101.23",PROTECTOR SECURITY GROUP LTD.
Adult and Health Services,Adults Excluded,Supplies and Services,338027,Services,10/11/2020,3801643-VB0012,"1,500.00",VANESSA BAINBRIDGE (CONSULTANT).
"Regeneration, Economy and Growth",Business Durham CL0850,Supplies and Services,352001,Conference Expenses,10/11/2020,3801648-INV00107784,"2,310.00",VISTAGE INTERNATIONAL (UK) LTD.
"Regeneration, Economy and Growth",Business Durham CL0850,Supplies and Services,377015,County Durham Development,10/11/2020,3801505-NMPR04112013,"5,000.00",NEWSMAKER PR & VIDEO PRODUCTION LTD.
"Regeneration, Economy and Growth",Business Durham CL0850,Premises,120009,Energy Costs,10/11/2020,3801365-000008626041,"14,011.11",EDF ENERGY CUSTOMERS PLC T/A EDF ENERGY.
"Regeneration, Economy and Growth",Business Durham CL0850,Supplies and Services,336005,Advertising E336,10/11/2020,3801455-BD002,"1,000.00",LEC CONSULTANCY LTD.
"Regeneration, Economy and Growth",Business Durham CL0850,Premises,120009,Energy Costs,10/11/2020,3801365-000008619683,"5,845.71",EDF ENERGY CUSTOMERS PLC T/A EDF ENERGY.
"Regeneration, Economy and Growth",Business Durham CL0850,Premises,120009,Energy Costs,10/11/2020,3801365-000008625763,"2,085.76",EDF ENERGY CUSTOMERS PLC T/A EDF ENERGY.
"Regeneration, Economy and Growth",Business Durham CL0850,Supplies and Services,352001,Conference Expenses,10/11/2020,3801379-DCI008,500.00,FAR NORTH LTD.
"Regeneration, Economy and Growth",Business Durham CL0850,Construction work A908,908105,Construction work,10/11/2020,3801664-575085,"1,722.52",WILLIAM SMITH GROUP 1832.
Children and Young Peoples Services,Central Charges (CYPS),Supplies and Services,384197,Miscellaneous Expenses,10/11/2020,3801294-A0022324,595.32,BOX IT NORTH.
Children and Young Peoples Services,Central Charges (CYPS),Supplies and Services,384197,Miscellaneous Expenses,10/11/2020,3801294-A0022325,"1,558.27",BOX IT NORTH.
Resources - C A C,Centrally Administered costs 069006,Supplies and Services,338066,Services,10/11/2020,3801583-INV-0719,"4,975.00",SECURITY RISK MANAGEMENT LTD.
Resources BK0010,Corporate Finance & Commercial Services,Supplies and Services,384150,Miscellaneous Expenses,10/11/2020,3801448-0000330655,"1,320.00",KAYS MEDICAL LTD.
"Regeneration, Economy and Growth",Corporate Property and Land,Supplies and Services,384199,Miscellaneous Expenses,10/11/2020,3801290-1359937,"37,500.00",BLAENAU GWENT COUNTY BOROUGH COUNCIL.
"Regeneration, Economy and Growth",Corporate Property and Land,Supplies and Services,384199,Miscellaneous Expenses,10/11/2020,3801290-1359940,"103,233.33",BLAENAU GWENT COUNTY BOROUGH COUNCIL.
"Regeneration, Economy and Growth",Corporate Property and Land,Third Party Payments,430100,Rendered by Private Contractors,10/11/2020,3801481-30559/92177244,"1,566.66",MITIE PROPERTY SERVICES (UK) LTD.
"Regeneration, Economy and Growth",Corporate Property and Land,Third Party Payments,430100,Rendered by Private Contractors,10/11/2020,3801338-N524201,520.00,D-DRILL (MASTER DRILLERS) LTD.
"Regeneration, Economy and Growth",Corporate Property and Land,Supplies and Services,304221,Equipment and Materials,10/11/2020,3801605-JE02057/1/TL/HLB,"4,115.00",T MANNERS & SONS LTD.
"Regeneration, Economy and Growth",Corporate Property and Land,Supplies and Services,304221,Equipment and Materials,10/11/2020,3801418-A38/0124900,"1,342.47",HOWDENS JOINERY LTD.
"Regeneration, Economy and Growth",Corporate Property and Land,Third Party Payments,430100,Rendered by Private Contractors,10/11/2020,3801426-9807,"6,659.39",INGLEFORD SCAFFOLDING LTD.
"Regeneration, Economy and Growth",Corporate Property and Land,Third Party Payments,430100,Rendered by Private Contractors,10/11/2020,3801426-9808,"1,566.60",INGLEFORD SCAFFOLDING LTD.
"Regeneration, Economy and Growth",Corporate Property and Land,Supplies and Services,304221,Equipment and Materials,10/11/2020,3801445-0113/00211651,"1,461.49",JT DOVE LTD.
"Regeneration, Economy and Growth",Corporate Property and Land,Supplies and Services,304221,Equipment and Materials,10/11/2020,3801445-0113/00211654,"1,976.40",JT DOVE LTD.
"Regeneration, Economy and Growth",Corporate Property and Land,Supplies and Services,304221,Equipment and Materials,10/11/2020,3801445-0113/00214144,605.33,JT DOVE LTD.
"Regeneration, Economy and Growth",Corporate Property and Land,Supplies and Services,304221,Equipment and Materials,10/11/2020,3801445-0120/00198638,678.40,JT DOVE LTD.
"Regeneration, Economy and Growth",Corporate Property and Land,Third Party Payments,430100,Rendered by Private Contractors,10/11/2020,3801546-138433,608.28,PROTECTOR SECURITY GROUP LTD.
"Regeneration, Economy and Growth",Corporate Property and Land,Third Party Payments,430100,Rendered by Private Contractors,10/11/2020,3801670-C398/972,"24,330.40",WRAM FABRICATIONS LTD.
"Regeneration, Economy and Growth",Corporate Property and Land,Supplies and Services,304221,Equipment and Materials,10/11/2020,3801445-0108/00212817,"1,391.24",JT DOVE LTD.
"Regeneration, Economy and Growth",Corporate Property and Land,Third Party Payments,430100,Rendered by Private Contractors,10/11/2020,3801570-5847,"1,335.68",SAFE STRIP UK LTD.
"Regeneration, Economy and Growth",Corporate Property and Land,Third Party Payments,430100,Rendered by Private Contractors,10/11/2020,3801639-INV-1381,"1,700.00",UK VENTILATION LTD.
"Regeneration, Economy and Growth",Corporate Property and Land,Supplies and Services,304221,Equipment and Materials,10/11/2020,3801410-4681864,"1,096.44",HEADLAM (FLOORCOVERING DISTRIBUTORS) LTD.
"Regeneration, Economy and Growth",Corporate Property and Land,Supplies and Services,304221,Equipment and Materials,10/11/2020,3801366-059-270778,639.68,EDMUNDSON ELECTRICAL LTD.
"Regeneration, Economy and Growth",Corporate Property and Land,Supplies and Services,304221,Equipment and Materials,10/11/2020,3801366-059-270803,999.72,EDMUNDSON ELECTRICAL LTD.
"Regeneration, Economy and Growth",Corporate Property and Land,Supplies and Services,304221,Equipment and Materials,10/11/2020,3801366-059-270192,"4,900.82",EDMUNDSON ELECTRICAL LTD.
"Regeneration, Economy and Growth",Corporate Property and Land,Supplies and Services,304221,Equipment and Materials,10/11/2020,3801366-059-270944,"3,826.11",EDMUNDSON ELECTRICAL LTD.
"Regeneration, Economy and Growth",Corporate Property and Land,Supplies and Services,304221,Equipment and Materials,10/11/2020,3801366-059-271107,724.15,EDMUNDSON ELECTRICAL LTD.
"Regeneration, Economy and Growth",Corporate Property and Land,Construction work A908,908105,Construction work,10/11/2020,3801450-10004929,"2,427,007.82",KIER PROPERTY DEVELOPMENTS LTD.
Regeneration and Local Services,COVID19 - Regeneration Economy and Growth,Supplies and Services,338047,Services,10/11/2020,3801284-BEC-DCC-SOT-29102020,900.00,BETHANY ELEN COYLE (MUSICIAN).
"Regeneration, Economy and Growth",Development and Housing,Cap Exp on Grants & Other Financial Assistance (REFCUS),918004,Contributions to other bodies 918004,10/11/2020,3801371-RED-11-2020-044,"1,003.10",EMILY CHARLOTTE OSBORNE T/A THE DURHAM YOGA STUDIO.
Resources BK0010,Digital and Customer Services,Supplies and Services,342051,Computers and Communications,10/11/2020,3801468-12545076,"2,236.00",MAINTEL EUROPE LTD.
Resources BK0010,Digital and Customer Services,Supplies and Services,342051,Computers and Communications,10/11/2020,3801468-12545077,"2,756.00",MAINTEL EUROPE LTD.
Resources BK0010,Digital and Customer Services,Vehicles Equipment Furniture and Fittings,912701,Computer equipment,10/11/2020,3801344-7402657437,"126,466.00",DELL COMPUTER CORPORATION LTD.
Resources BK0010,Digital and Customer Services,Vehicles Equipment Furniture and Fittings,912701,Computer equipment,10/11/2020,3801671-KX67179,"101,722.00",XMA LTD.
Resources BK0010,Digital and Customer Services,Vehicles Equipment Furniture and Fittings,912701,Computer equipment,10/11/2020,3801671-KX72130,"6,210.00",XMA LTD.
Resources BK0010,Digital and Customer Services,Supplies and Services,332029,Printing Stationery and Gen Off Exps,10/11/2020,3801553-18559,860.00,RADECAL SIGNS GRAPHICS & ADVERTISING.
Resources BK0010,Digital and Customer Services,Supplies and Services,332029,Printing Stationery and Gen Off Exps,10/11/2020,3801618-831,924.00,THE ACCESSIBLE DIGITAL DOCUMENTS CO LTD.
Resources BK0010,Digital and Customer Services,Supplies and Services,304639,Equipment and Materials,10/11/2020,3801632-132126,700.00,TP ELECTRICAL SUPPLIES & FIXINGS LTD.
Resources BK0010,Digital and Customer Services,Supplies and Services,304303,Equipment and Materials,10/11/2020,3801632-132178,"1,550.00",TP ELECTRICAL SUPPLIES & FIXINGS LTD.
Resources BK0010,Digital and Customer Services,Supplies and Services,342033,Computers and Communications,10/11/2020,3801671-KX70534,"10,598.75",XMA LTD.
Resources BK0010,Digital and Customer Services,Vehicles Equipment Furniture and Fittings,912701,Computer equipment,10/11/2020,3801603-134865,"1,605.00",SWITCHSHOP LTD.
Resources BK0010,Digital and Customer Services,Supplies and Services,304040,Equipment and Materials,10/11/2020,3801591-INV02725663,"1,387.50",SOFTCAT LTD.
Resources BK0010,Digital and Customer Services,Vehicles Equipment Furniture and Fittings,912701,Computer equipment,10/11/2020,3801326-3882648422,"261,190.32",COMPUTACENTER (UK) LTD.
Resources BK0010,Digital and Customer Services,Supplies and Services,342033,Computers and Communications,10/11/2020,3801303-109212,"30,809.00",C-WAYS.
Resources BK0010,Digital and Customer Services,Vehicles Equipment Furniture and Fittings,912701,Computer equipment,10/11/2020,3801344-7402658826,"8,540.03",DELL COMPUTER CORPORATION LTD.
Resources BK0010,Digital and Customer Services,Supplies and Services,344131,Telephones,10/11/2020,3801468-12544931,"10,205.00",MAINTEL EUROPE LTD.
Resources BK0010,Digital and Customer Services,Supplies and Services,344131,Telephones,10/11/2020,3801468-12544946,"1,050.00",MAINTEL EUROPE LTD.
Resources BK0010,Digital and Customer Services,Supplies and Services,344014,Telephones,10/11/2020,3801651-OP14456,976.00,VODAFONE LTD.
Resources BK0010,Digital and Customer Services,Stock A926,926900,Stock in hand-Inventory system,10/11/2020,3801344-7402660557,"2,505.00",DELL COMPUTER CORPORATION LTD.
Resources BK0010,Digital and Customer Services,Stock A926,926900,Stock in hand-Inventory system,10/11/2020,3801344-7402660560,501.00,DELL COMPUTER CORPORATION LTD.
Resources BK0010,Digital and Customer Services,Stock A926,926900,Stock in hand-Inventory system,10/11/2020,3801427-5053698,817.00,INSIGHT DIRECT (UK) LTD.
Dedicated Schools Grant BG0015,DSG High Needs Block,Transfer Payments,510025,School Children,10/11/2020,3801266-SEN-TOPUPT2&T3-ADJ20/21,"1,777.00",ADVENTURE VALLEY DAY NURSERY LTD.
Dedicated Schools Grant BG0015,DSG High Needs Block,Transfer Payments,510025,School Children,10/11/2020,3801307-SEN-TOPUPT2&T3-ADJ20/21,"2,244.00",CASTLE KINDERGARTEN LTD.
Dedicated Schools Grant BG0015,DSG High Needs Block,Transfer Payments,510025,School Children,10/11/2020,3801342-SEN-TOPUPT2&T3-ADJ20/21,"1,309.00",DAYPARK LTD T/A YELLOW WELLIES.
Dedicated Schools Grant BG0015,DSG High Needs Block,Transfer Payments,510025,School Children,10/11/2020,3801343-SEN-TOPUPT2&T3-ADJ20/21,"1,608.00",DAYPARK LTD T/A YELLOW WELLIES.
Dedicated Schools Grant BG0015,DSG High Needs Block,Transfer Payments,510025,School Children,10/11/2020,3801359-SEN-TOPUPT2&T3-ADJ20/21,"2,200.00",DURHAM & NEWCASTLE DIOCESAN LEARNING TRUST T/A INGLETON CE PRIMARY SCHOOL
Dedicated Schools Grant BG0015,DSG High Needs Block,Transfer Payments,510025,School Children,10/11/2020,3801376-SEN-TOPUPT2&T3-ADJ20/21,592.00,EXPLORERS DAY CARE.
Dedicated Schools Grant BG0015,DSG High Needs Block,Transfer Payments,510025,School Children,10/11/2020,3801460-SEN-TOPUPT2&T3-ADJ20/21,"5,923.00",LITTLE WAVES DAY NURSERY LTD.
Dedicated Schools Grant BG0015,DSG High Needs Block,Transfer Payments,510025,School Children,10/11/2020,3801601-SEN-TOPUPT2&T3-ADJ20/21,"2,618.00",SUNSHINE DAY NURSERY LTD.
Dedicated Schools Grant BG0015,DSG High Needs Block,Transfer Payments,510025,School Children,10/11/2020,3801622-SEN-TOPUPT2&T3-ADJ20/21,"5,515.00",THE NURSERY.
Dedicated Schools Grant BG0015,DSG High Needs Block,Transfer Payments,510025,School Children,10/11/2020,3801654-SEN-TOPUPT2&T3-ADJ20/21,"1,777.00",WAYMAN DEVELOPMENTS LTD T/A CHILDSPLAY PRIVATE NURSERY.
Dedicated Schools Grant BG0015,DSG High Needs Block,Transfer Payments,510025,School Children,10/11/2020,3801669-SEN-TOPUPT2&T3-ADJ20/21,"3,667.00",WOODLANDS DAY NURSERY.
Dedicated Schools Grant BG0015,DSG High Needs Block,Central Support and Other Recharges,689988,Unclassified E690,10/11/2020,3801265-SEN-TOPUPT2&T3-ADJ20/21,"10,874.00",ADVANCE LEARNING PARTNERSHIP.
Dedicated Schools Grant BG0015,DSG High Needs Block,Central Support and Other Recharges,689989,Unclassified E690,10/11/2020,3801319-SEN-TOPUPT2&T3-ADJ20/21,"7,279.00",CLEVES CROSS LEARNING TRUST T/A ROSA STREET PRIMARY SCHOOL.
Dedicated Schools Grant BG0015,DSG High Needs Block,Central Support and Other Recharges,689989,Unclassified E690,10/11/2020,3801360-SEN-TOPUPT2&T3-ADJ20/21,"6,955.00",DURHAM & NEWCASTLE DIOCESAN LEARNING TRUST T/A STANHOPE BARRINGTON C OF E PRIMARY SCHOOL.
Dedicated Schools Grant BG0015,DSG High Needs Block,Central Support and Other Recharges,689988,Unclassified E690,10/11/2020,3801558-SEN-TOPUPT2&T3-ADJ20/21,"9,251.00",RIBBON ACADEMY TRUST.
Dedicated Schools Grant BG0015,DSG High Needs Block,Central Support and Other Recharges,689988,Unclassified E690,10/11/2020,3801587-SEN-TOPUPT2&T3-ADJ20/21,"2,531.00",SHIELD ROW ACADEMY.
Dedicated Schools Grant BG0015,DSG High Needs Block,Central Support and Other Recharges,689988,Unclassified E690,10/11/2020,3801635-SEN-TOPUPT2&T3-ADJ20/21,"11,978.00",TUDHOE COLLIERY ACADEMY.
Dedicated Schools Grant BG0015,DSG High Needs Block,Central Support and Other Recharges,689988,Unclassified E690,10/11/2020,3801264-SEN-TOPUPT2&T3-ADJ20/21,"3,084.00",ADVANCE LEARNING PARTNERSHIP.
Dedicated Schools Grant BG0015,DSG High Needs Block,Central Support and Other Recharges,689988,Unclassified E690,10/11/2020,3801345-SEN-TOPUPT2&T3-ADJ20/21,"3,001.00",DENE ACADEMY.
Dedicated Schools Grant BG0015,DSG High Needs Block,Central Support and Other Recharges,689989,Unclassified E690,10/11/2020,3801345-SEN-TOPUPT2&T3-ADJ20/21B,"2,954.00",DENE ACADEMY.
Dedicated Schools Grant BG0015,DSG High Needs Block,Central Support and Other Recharges,689988,Unclassified E690,10/11/2020,3801412-SEN-TOPUPT2&T3-ADJ20/21,"2,690.00",HERMITAGE ACADEMY (NORTH EAST LEARNING ACADEMY).
Dedicated Schools Grant BG0015,DSG High Needs Block,Central Support and Other Recharges,689988,Unclassified E690,10/11/2020,3801509-SEN-TOPUPT2&T3-ADJ20/21,"4,970.00",NORTH DURHAM ACADEMY.
Dedicated Schools Grant BG0015,DSG High Needs Block,Central Support and Other Recharges,689988,Unclassified E690,10/11/2020,3801594-SEN-TOPUPT2&T3-ADJ20/21,"8,475.00",ST BEDES CATHOLIC ACADEMY (LANCHESTER).
Dedicated Schools Grant BG0015,DSG High Needs Block,Central Support and Other Recharges,689996,Unclassified E690,10/11/2020,3801416-MONTHLYTOPUPFUNDING,"87,130.00",HOPE WOOD ACADEMY.
Dedicated Schools Grant BG0015,DSG High Needs Block,Third Party Payments,425005,Rendered by Voluntary Organisations,10/11/2020,3801422-4140001436,"6,774.78",HURWORTH HOUSE PRIORY.
Dedicated Schools Grant BG0015,DSG High Needs Block,Third Party Payments,425005,Rendered by Voluntary Organisations,10/11/2020,3801422-4140001437,"6,774.78",HURWORTH HOUSE PRIORY.
Dedicated Schools Grant BG0015,DSG High Needs Block,Third Party Payments,425005,Rendered by Voluntary Organisations,10/11/2020,3801422-4140001438,"5,444.66",HURWORTH HOUSE PRIORY.
Dedicated Schools Grant BG0015,DSG High Needs Block,Third Party Payments,425005,Rendered by Voluntary Organisations,10/11/2020,3801422-4140001439,"5,172.44",HURWORTH HOUSE PRIORY.
Dedicated Schools Grant BG0015,DSG High Needs Block,Third Party Payments,425005,Rendered by Voluntary Organisations,10/11/2020,3801422-4140001440,"6,436.04",HURWORTH HOUSE PRIORY.
Dedicated Schools Grant BG0015,DSG High Needs Block,Third Party Payments,425005,Rendered by Voluntary Organisations,10/11/2020,3801422-4140001441,"6,266.65",HURWORTH HOUSE PRIORY.
Dedicated Schools Grant BG0015,DSG High Needs Block,Third Party Payments,425005,Rendered by Voluntary Organisations,10/11/2020,3801422-4140001442,"5,444.66",HURWORTH HOUSE PRIORY.
Dedicated Schools Grant BG0015,DSG High Needs Block,Third Party Payments,425005,Rendered by Voluntary Organisations,10/11/2020,3801422-4140001443,"6,868.94",HURWORTH HOUSE PRIORY.
Dedicated Schools Grant BG0015,DSG High Needs Block,Third Party Payments,440080,Other third party payments E440,10/11/2020,3801510-0000054576,"27,032.92",NORTH EAST AUTISM SOCIETY.
